Ref No,Fund Type,Dept,Cost Centre Description    ,Description    ,Creditor Name    ,GL Code Net Amount,Payment date        
2,Revenue,CAHD,Bed Purchasing - North,Permanent Nursing,.,4891.20, 03-Jul-2018
3,Revenue,CAHD,Bed Purchasing - North,Permanent Nursing,.,4891.20, 31-Jul-2018
4,Revenue,CAHD,Bed Purchasing - Southmead Hospital,Permanent Nursing,.,12387.00, 03-Jul-2018
5,Revenue,CAHD,Bed Purchasing - Southmead Hospital,Permanent Nursing,.,4954.80, 03-Jul-2018
6,Revenue,CAHD,Bed Purchasing - Southmead Hospital,Fees & Charges Income - General,.,1341.56, 03-Jul-2018
7,Revenue,CAHD,Bed Purchasing - Southmead Hospital,Permanent Nursing,.,4954.80, 31-Jul-2018
8,Revenue,CAHD,Bed Purchasing - South,Permanent Nursing,.,6410.70, 03-Jul-2018
9,Revenue,CAHD,Bed Purchasing - South,Permanent Nursing,.,2564.28, 03-Jul-2018
10,Revenue,CAHD,Bed Purchasing - South,Fees & Charges Income - General,.,2206.03, 03-Jul-2018
11,Revenue,CAHD,Bed Purchasing - South,Permanent Nursing,.,2564.28, 31-Jul-2018
12,Revenue,CAHD,Bed Purchasing - Elderly S117- North,Permanent Nursing,.,3975.88, 03-Jul-2018
13,Revenue,CAHD,Bed Purchasing - Elderly S117- North,Permanent Nursing,.,3975.88, 31-Jul-2018
14,Revenue,CAHD,Bed Purchasing - South,Permanent Residential,.,4279.80, 03-Jul-2018
15,Revenue,CAHD,Bed Purchasing - South,Permanent Residential,.,4279.80, 31-Jul-2018
16,Revenue,CAHD,Bed Purchasing - Elderly S117- North,Permanent Nursing,.,4309.64, 03-Jul-2018
17,Revenue,CAHD,Bed Purchasing - Elderly S117- North,Permanent Nursing,.,4309.64, 31-Jul-2018
18,Revenue,CAHD,Bed Purchasing - North,Permanent Nursing,.,4954.80, 03-Jul-2018
19,Revenue,CAHD,Bed Purchasing - North,Permanent Nursing,.,4954.80, 31-Jul-2018
20,Revenue,CAHD,Bed Purchasing - South,Respite Emergency - Residential,.,1114.29, 31-Jul-2018
21,Revenue,CAHD,Bed Purchasing - Elderly S117- North,Permanent Nursing,.,5523.20, 03-Jul-2018
22,Revenue,CAHD,Bed Purchasing - Elderly S117- North,Permanent Nursing,.,5523.20, 31-Jul-2018
23,Revenue,CAHD,Bed Purchasing - South,Permanent Nursing,.,4891.20, 03-Jul-2018
24,Revenue,CAHD,Bed Purchasing - South,Permanent Nursing,.,4891.20, 31-Jul-2018
25,Revenue,CAHD,Bed Purchasing - North,Permanent Nursing,.,3356.88, 03-Jul-2018
26,Revenue,CAHD,South Glos Users in South Glos Homes,Permanent Nursing,.,632.64, 03-Jul-2018
27,Revenue,CAHD,Bed Purchasing - North,Permanent Nursing,.,3356.88, 31-Jul-2018
28,Revenue,CAHD,South Glos Users in South Glos Homes,Permanent Nursing,.,632.64, 31-Jul-2018
29,Revenue,CAHD,Bed Purchasing - North,Permanent Nursing,.,1934.85, 31-Jul-2018
30,Revenue,CAHD,Bed Purchasing - South,Permanent Nursing,.,3413.20, 03-Jul-2018
31,Revenue,CAHD,South Glos Users in South Glos Homes,Permanent Nursing,.,632.64, 03-Jul-2018
32,Revenue,CAHD,Bed Purchasing - South,Permanent Nursing,.,3413.20, 31-Jul-2018
33,Revenue,CAHD,South Glos Users in South Glos Homes,Permanent Nursing,.,632.64, 31-Jul-2018
34,Revenue,CAHD,Bed Purchasing - North,Permanent Nursing,.,4483.60, 03-Jul-2018
35,Revenue,CAHD,South Glos Users in South Glos Homes,Permanent Nursing,.,632.64, 03-Jul-2018
36,Revenue,CAHD,Bed Purchasing - North,Permanent Nursing,.,4483.60, 31-Jul-2018
37,Revenue,CAHD,South Glos Users in South Glos Homes,Permanent Nursing,.,632.64, 31-Jul-2018
38,Revenue,CAHD,South Glos Users in South Glos Homes,Permanent Nursing,.,632.64, 03-Jul-2018
39,Revenue,CAHD,South Glos Users in South Glos Homes,Permanent Nursing,.,632.64, 31-Jul-2018
40,Revenue,CAHD,Bed Purchasing - South,Permanent Nursing,.,4483.60, 03-Jul-2018
41,Revenue,CAHD,South Glos Users in South Glos Homes,Permanent Nursing,.,632.64, 03-Jul-2018
42,Revenue,CAHD,Bed Purchasing - South,Permanent Nursing,.,4483.60, 31-Jul-2018
43,Revenue,CAHD,South Glos Users in South Glos Homes,Permanent Nursing,.,632.64, 31-Jul-2018
44,Revenue,CAHD,Bed Purchasing - South,Permanent Nursing,.,3356.88, 03-Jul-2018
45,Revenue,CAHD,South Glos Users in South Glos Homes,Permanent Nursing,.,632.64, 03-Jul-2018
46,Revenue,CAHD,Bed Purchasing - South,Permanent Nursing,.,3356.88, 31-Jul-2018
47,Revenue,CAHD,South Glos Users in South Glos Homes,Permanent Nursing,.,632.64, 31-Jul-2018
48,Revenue,CAHD,Bed Purchasing - Southmead Hospital,Permanent Nursing,.,4891.20, 03-Jul-2018
49,Revenue,CAHD,South Glos Users in South Glos Homes,Permanent Nursing,.,632.64, 03-Jul-2018
50,Revenue,CAHD,Bed Purchasing - Southmead Hospital,Permanent Nursing,.,4891.20, 31-Jul-2018
51,Revenue,CAHD,South Glos Users in South Glos Homes,Permanent Nursing,.,632.64, 31-Jul-2018
52,Revenue,CAHD,South Glos Users in South Glos Homes,Permanent Nursing,.,1513.82, 31-Jul-2018
53,Revenue,CAHD,South Glos Users in South Glos Homes,Permanent Nursing,.,632.64, 31-Jul-2018
54,Revenue,CAHD,Bed Purchasing - North,Permanent Residential,.,4335.44, 03-Jul-2018
55,Revenue,CAHD,South Glos Users in South Glos Homes,Permanent Nursing,.,632.64, 03-Jul-2018
56,Revenue,CAHD,Bed Purchasing - North,Permanent Residential,.,4335.44, 31-Jul-2018
57,Revenue,CAHD,South Glos Users in South Glos Homes,Permanent Nursing,.,632.64, 31-Jul-2018
58,Revenue,CAHD,Bed Purchasing - South,Permanent Nursing,.,3690.28, 03-Jul-2018
59,Revenue,CAHD,South Glos Users in South Glos Homes,Permanent Nursing,.,632.64, 03-Jul-2018
60,Revenue,CAHD,Bed Purchasing - South,Permanent Nursing,.,3690.28, 31-Jul-2018
61,Revenue,CAHD,South Glos Users in South Glos Homes,Permanent Nursing,.,632.64, 31-Jul-2018
62,Revenue,CAHD,South Glos Users in South Glos Homes,Permanent Nursing,.,1528.35, 31-Jul-2018
63,Revenue,CAHD,Bed Purchasing - Southmead Hospital,Permanent Nursing,.,3896.72, 03-Jul-2018
64,Revenue,CAHD,South Glos Users in South Glos Homes,Permanent Nursing,.,632.64, 03-Jul-2018
65,Revenue,CAHD,Bed Purchasing - Southmead Hospital,Permanent Nursing,.,3896.72, 31-Jul-2018
66,Revenue,CAHD,South Glos Users in South Glos Homes,Permanent Nursing,.,632.64, 31-Jul-2018
67,Revenue,CAHD,South Glos Users in South Glos Homes,Permanent Nursing,.,632.64, 03-Jul-2018
68,Revenue,CAHD,South Glos Users in South Glos Homes,Permanent Nursing,.,632.64, 31-Jul-2018
69,Revenue,CAHD,South Glos Users in South Glos Homes,Permanent Nursing,.,632.64, 03-Jul-2018
70,Revenue,CAHD,South Glos Users in South Glos Homes,Permanent Nursing,.,632.64, 31-Jul-2018
71,Revenue,CAHD,South Glos Users in South Glos Homes,Permanent Nursing,.,632.64, 03-Jul-2018
72,Revenue,CAHD,South Glos Users in South Glos Homes,Permanent Nursing,.,632.64, 31-Jul-2018
73,Revenue,CAHD,South Glos Users in South Glos Homes,Permanent Nursing,.,632.64, 03-Jul-2018
74,Revenue,CAHD,South Glos Users in South Glos Homes,Permanent Nursing,.,632.64, 31-Jul-2018
75,Revenue,CAHD,Bed Purchasing - Southmead Hospital,Permanent Nursing,.,4483.60, 03-Jul-2018
76,Revenue,CAHD,Bed Purchasing - Southmead Hospital,Permanent Nursing,.,4483.60, 31-Jul-2018
77,Revenue,CAHD,South Glos Users in South Glos Homes,Permanent Nursing,.,2394.99, 31-Jul-2018
78,Revenue,CAHD,South Glos Users in South Glos Homes,Permanent Nursing,.,632.64, 31-Jul-2018
79,Revenue,CAHD,South Glos Users in South Glos Homes,Permanent Nursing,.,575.90, 31-Jul-2018
80,Revenue,CAHD,South Glos Users in South Glos Homes,Permanent Nursing,.,632.64, 03-Jul-2018
81,Revenue,CAHD,South Glos Users in South Glos Homes,Permanent Nursing,.,632.64, 31-Jul-2018
82,Revenue,CAHD,Bed Purchasing - North,Permanent Nursing,.,4308.92, 03-Jul-2018
83,Revenue,CAHD,South Glos Users in South Glos Homes,Permanent Nursing,.,632.64, 03-Jul-2018
84,Revenue,CAHD,Bed Purchasing - North,Permanent Nursing,.,4308.92, 31-Jul-2018
85,Revenue,CAHD,South Glos Users in South Glos Homes,Permanent Nursing,.,632.64, 31-Jul-2018
86,Revenue,CAHD,South Glos Users in South Glos Homes,Permanent Nursing,.,632.64, 31-Jul-2018
87,Revenue,CAHD,South Glos Users in South Glos Homes,Permanent Nursing,.,632.64, 03-Jul-2018
88,Revenue,CAHD,South Glos Users in South Glos Homes,Permanent Nursing,.,632.64, 31-Jul-2018
89,Revenue,CAHD,South Glos Users in South Glos Homes,Permanent Nursing,.,632.64, 03-Jul-2018
90,Revenue,CAHD,South Glos Users in South Glos Homes,Permanent Nursing,.,632.64, 31-Jul-2018
91,Revenue,CAHD,South Glos Users in South Glos Homes,Permanent Nursing,.,632.64, 03-Jul-2018
92,Revenue,CAHD,South Glos Users in South Glos Homes,Permanent Nursing,.,632.64, 31-Jul-2018
93,Revenue,CAHD,South Glos Users in South Glos Homes,Permanent Nursing,.,632.64, 03-Jul-2018
94,Revenue,CAHD,South Glos Users in South Glos Homes,Permanent Nursing,.,632.64, 31-Jul-2018
95,Revenue,CAHD,South Glos Users in South Glos Homes,Permanent Nursing,.,632.64, 03-Jul-2018
96,Revenue,CAHD,South Glos Users in South Glos Homes,Permanent Nursing,.,632.64, 31-Jul-2018
97,Revenue,CAHD,Bed Purchasing - North,Permanent Nursing,.,4483.60, 03-Jul-2018
98,Revenue,CAHD,South Glos Users in South Glos Homes,Permanent Nursing,.,632.64, 03-Jul-2018
99,Revenue,CAHD,Bed Purchasing - North,Permanent Nursing,.,4483.60, 31-Jul-2018
100,Revenue,CAHD,South Glos Users in South Glos Homes,Permanent Nursing,.,632.64, 31-Jul-2018
101,Revenue,CAHD,South Glos Users in South Glos Homes,Permanent Nursing,.,632.64, 03-Jul-2018
102,Revenue,CAHD,South Glos Users in South Glos Homes,Permanent Nursing,.,632.64, 31-Jul-2018
103,Revenue,CAHD,Bed Purchasing - North,Permanent Nursing,.,4259.20, 03-Jul-2018
104,Revenue,CAHD,South Glos Users in South Glos Homes,Permanent Nursing,.,632.64, 03-Jul-2018
105,Revenue,CAHD,Bed Purchasing - North,Permanent Nursing,.,4259.20, 31-Jul-2018
106,Revenue,CAHD,South Glos Users in South Glos Homes,Permanent Nursing,.,632.64, 31-Jul-2018
107,Revenue,CAHD,South Glos Users in South Glos Homes,Permanent Nursing,.,632.64, 03-Jul-2018
108,Revenue,CAHD,South Glos Users in South Glos Homes,Permanent Nursing,.,632.64, 31-Jul-2018
109,Revenue,CAHD,South Glos Users in South Glos Homes,Permanent Nursing,.,632.64, 03-Jul-2018
110,Revenue,CAHD,South Glos Users in South Glos Homes,Permanent Nursing,.,632.64, 31-Jul-2018
111,Revenue,CAHD,South Glos Users in South Glos Homes,Permanent Nursing,.,632.64, 03-Jul-2018
112,Revenue,CAHD,South Glos Users in South Glos Homes,Permanent Nursing,.,632.64, 31-Jul-2018
113,Revenue,CAHD,South Glos Users in South Glos Homes,Permanent Nursing,.,632.64, 03-Jul-2018
114,Revenue,CAHD,South Glos Users in South Glos Homes,Permanent Nursing,.,632.64, 31-Jul-2018
115,Revenue,CAHD,South Glos Users in South Glos Homes,Permanent Nursing,.,632.64, 03-Jul-2018
116,Revenue,CAHD,South Glos Users in South Glos Homes,Permanent Nursing,.,632.64, 31-Jul-2018
117,Revenue,CAHD,Bed Purchasing - North,Permanent Nursing,.,942.86, 31-Jul-2018
118,Revenue,CAHD,South Glos Users in South Glos Homes,Permanent Nursing,.,1333.06, 31-Jul-2018
119,Revenue,CAHD,South Glos Users in South Glos Homes,Permanent Nursing,.,632.64, 31-Jul-2018
120,Revenue,CAHD,South Glos Users in South Glos Homes,Permanent Nursing,.,632.64, 03-Jul-2018
121,Revenue,CAHD,South Glos Users in South Glos Homes,Permanent Nursing,.,632.64, 31-Jul-2018
122,Revenue,CAHD,South Glos Users in South Glos Homes,Permanent Nursing,.,632.64, 03-Jul-2018
123,Revenue,CAHD,South Glos Users in South Glos Homes,Permanent Nursing,.,632.64, 31-Jul-2018
124,Revenue,CAHD,South Glos Users in South Glos Homes,Permanent Nursing,.,632.64, 03-Jul-2018
125,Revenue,CAHD,South Glos Users in South Glos Homes,Permanent Nursing,.,632.64, 31-Jul-2018
126,Revenue,CAHD,South Glos Users in South Glos Homes,Permanent Nursing,.,632.64, 03-Jul-2018
127,Revenue,CAHD,South Glos Users in South Glos Homes,Permanent Nursing,.,632.64, 31-Jul-2018
128,Revenue,CAHD,South Glos Users in South Glos Homes,Permanent Nursing,.,632.64, 03-Jul-2018
129,Revenue,CAHD,South Glos Users in South Glos Homes,Permanent Nursing,.,632.64, 31-Jul-2018
130,Revenue,CAHD,South Glos Users in South Glos Homes,Permanent Nursing,.,1378.25, 31-Jul-2018
131,Revenue,CAHD,South Glos Users in South Glos Homes,Permanent Nursing,.,632.64, 31-Jul-2018
132,Revenue,CAHD,South Glos Users in South Glos Homes,Permanent Nursing,.,1423.44, 31-Jul-2018
133,Revenue,CAHD,South Glos Users in South Glos Homes,Permanent Nursing,.,632.64, 31-Jul-2018
134,Revenue,CAHD,South Glos Users in South Glos Homes,Permanent Nursing,.,3300.35, 31-Jul-2018
135,Revenue,CAHD,South Glos Users in South Glos Homes,Permanent Nursing,.,2394.99, 31-Jul-2018
136,Revenue,CAHD,South Glos Users in South Glos Homes,Permanent Nursing,.,632.64, 31-Jul-2018
137,Revenue,CAHD,South Glos Users in South Glos Homes,Permanent Nursing,.,632.64, 03-Jul-2018
138,Revenue,CAHD,South Glos Users in South Glos Homes,Permanent Nursing,.,632.64, 31-Jul-2018
139,Revenue,CAHD,South Glos Users in South Glos Homes,Permanent Nursing,.,2394.99, 31-Jul-2018
140,Revenue,CAHD,South Glos Users in South Glos Homes,Permanent Nursing,.,632.64, 31-Jul-2018
141,Revenue,CAHD,Bed Purchasing - North,Permanent Nursing,.,3174.16, 03-Jul-2018
142,Revenue,CAHD,South Glos Users in South Glos Homes,Permanent Nursing,.,632.64, 03-Jul-2018
143,Revenue,CAHD,Bed Purchasing - North,Permanent Nursing,.,3174.16, 31-Jul-2018
144,Revenue,CAHD,South Glos Users in South Glos Homes,Permanent Nursing,.,632.64, 31-Jul-2018
145,Revenue,CAHD,Bed Purchasing - South,Permanent Nursing,.,3851.60, 03-Jul-2018
146,Revenue,CAHD,South Glos Users in South Glos Homes,Permanent Nursing,.,632.64, 03-Jul-2018
147,Revenue,CAHD,Bed Purchasing - South,Permanent Nursing,.,3851.60, 31-Jul-2018
148,Revenue,CAHD,South Glos Users in South Glos Homes,Permanent Nursing,.,632.64, 31-Jul-2018
149,Revenue,CAHD,South Glos Users in South Glos Homes,Permanent Nursing,.,632.64, 03-Jul-2018
150,Revenue,CAHD,South Glos Users in South Glos Homes,Permanent Nursing,.,632.64, 31-Jul-2018
151,Revenue,CAHD,Bed Purchasing - North,Permanent Nursing,.,1282.13, 03-Jul-2018
152,Revenue,CAHD,Bed Purchasing - North,Permanent Nursing,.,11560.90, 03-Jul-2018
153,Revenue,CAHD,Bed Purchasing - North,Permanent Nursing,.,11831.63, 03-Jul-2018
154,Revenue,CAHD,Bed Purchasing - North,Permanent Nursing,.,4624.36, 03-Jul-2018
155,Revenue,CAHD,South Glos Users in South Glos Homes,Permanent Nursing,.,632.64, 03-Jul-2018
156,Revenue,CAHD,Bed Purchasing - North,Fees & Charges Income - General,.,3542.36, 03-Jul-2018
157,Revenue,CAHD,Bed Purchasing - North,Fees & Charges Income - General,.,3584.06, 03-Jul-2018
158,Revenue,CAHD,Bed Purchasing - North,Permanent Nursing,.,4624.36, 31-Jul-2018
159,Revenue,CAHD,South Glos Users in South Glos Homes,Permanent Nursing,.,632.64, 31-Jul-2018
160,Revenue,CAHD,Bed Purchasing - Southmead Hospital,Permanent Nursing,.,3896.72, 03-Jul-2018
161,Revenue,CAHD,South Glos Users in South Glos Homes,Permanent Nursing,.,632.64, 03-Jul-2018
162,Revenue,CAHD,Bed Purchasing - Southmead Hospital,Permanent Nursing,.,3896.72, 31-Jul-2018
163,Revenue,CAHD,South Glos Users in South Glos Homes,Permanent Nursing,.,632.64, 31-Jul-2018
164,Revenue,CAHD,Bed Purchasing - North,Fees & Charges Income - General,.,11219.90, 03-Jul-2018
165,Revenue,CAHD,Bed Purchasing - North,Fees & Charges Income - General,.,8815.64, 03-Jul-2018
166,Revenue,CAHD,Bed Purchasing - North,Permanent Nursing,.,4573.24, 03-Jul-2018
167,Revenue,CAHD,South Glos Users in South Glos Homes,Permanent Nursing,.,632.64, 03-Jul-2018
168,Revenue,CAHD,Bed Purchasing - North,Permanent Nursing,.,5879.88, 03-Jul-2018
169,Revenue,CAHD,Bed Purchasing - North,Permanent Nursing,.,5553.22, 03-Jul-2018
170,Revenue,CAHD,Bed Purchasing - North,Permanent Nursing,.,11861.04, 03-Jul-2018
171,Revenue,CAHD,Bed Purchasing - North,Fees & Charges Income - General,.,651.04, 03-Jul-2018
172,Revenue,CAHD,Bed Purchasing - North,Permanent Nursing,.,4573.24, 31-Jul-2018
173,Revenue,CAHD,South Glos Users in South Glos Homes,Permanent Nursing,.,632.64, 31-Jul-2018
174,Revenue,CAHD,South Glos Users in South Glos Homes,Permanent Nursing,.,632.64, 03-Jul-2018
175,Revenue,CAHD,South Glos Users in South Glos Homes,Permanent Nursing,.,632.64, 31-Jul-2018
176,Revenue,CAHD,South Glos Users in South Glos Homes,Permanent Nursing,.,632.64, 03-Jul-2018
177,Revenue,CAHD,South Glos Users in South Glos Homes,Permanent Nursing,.,632.64, 31-Jul-2018
178,Revenue,CAHD,Bed Purchasing - North,Permanent Residential,.,7225.76, 03-Jul-2018
179,Revenue,CAHD,Bed Purchasing - North,Fees & Charges Income - General,.,1250.91, 03-Jul-2018
180,Revenue,CAHD,Bed Purchasing - North,Permanent Residential,.,3612.88, 31-Jul-2018
181,Revenue,CAHD,Bed Purchasing - South,Permanent Residential,.,3096.76, 03-Jul-2018
182,Revenue,CAHD,Bed Purchasing - South,Permanent Residential,.,3096.76, 31-Jul-2018
183,Revenue,CAHD,Bed Purchasing - South,Permanent Nursing,.,2934.72, 03-Jul-2018
184,Revenue,CAHD,Bed Purchasing - South,Permanent Nursing,.,2934.72, 31-Jul-2018
185,Revenue,CAHD,Bed Purchasing - North,Permanent Residential,.,2832.84, 03-Jul-2018
186,Revenue,CAHD,Bed Purchasing - North,Permanent Residential,.,2832.84, 31-Jul-2018
187,Revenue,CAHD,Bed Purchasing - North,Permanent Residential,.,3668.40, 03-Jul-2018
188,Revenue,CAHD,Bed Purchasing - North,Permanent Residential,.,3668.40, 31-Jul-2018
189,Revenue,CAHD,Bed Purchasing - North,Permanent Residential,.,3668.40, 03-Jul-2018
190,Revenue,CAHD,Bed Purchasing - North,Permanent Residential,.,3668.40, 31-Jul-2018
191,Revenue,CAHD,Bed Purchasing - North,Permanent Residential,.,3668.40, 03-Jul-2018
192,Revenue,CAHD,Bed Purchasing - North,Permanent Residential,.,3668.40, 31-Jul-2018
193,Revenue,CAHD,Bed Purchasing - North,Permanent Residential,.,3668.40, 03-Jul-2018
194,Revenue,CAHD,Bed Purchasing - North,Permanent Residential,.,3668.40, 31-Jul-2018
195,Revenue,CAHD,Bed Purchasing - North,Permanent Residential,.,3668.40, 03-Jul-2018
196,Revenue,CAHD,Bed Purchasing - North,Permanent Residential,.,3668.40, 31-Jul-2018
197,Revenue,CAHD,Bed Purchasing - North,Permanent Residential,.,3600.00, 03-Jul-2018
198,Revenue,CAHD,Bed Purchasing - North,Permanent Residential,.,4400.00, 31-Jul-2018
199,Revenue,CAHD,Bed Purchasing - North,Permanent Residential,.,3142.86, 31-Jul-2018
200,Revenue,CAHD,Bed Purchasing - Southmead Hospital,Respite Planned - Residential,.,5400.00, 31-Jul-2018
201,Revenue,CAHD,Bed Purchasing - Southmead Hospital,Respite Planned - Residential,.,4716.51, 31-Jul-2018
202,Revenue,CAHD,Bed Purchasing - Southmead Hospital,Respite Planned - Residential,.,642.86, 31-Jul-2018
203,Revenue,CAHD,Bed Purchasing - North,Permanent Residential,.,3668.40, 03-Jul-2018
204,Revenue,CAHD,Bed Purchasing - North,Permanent Residential,.,3668.40, 31-Jul-2018
205,Revenue,CAHD,Bed Purchasing - North,Permanent Residential,.,3668.40, 03-Jul-2018
206,Revenue,CAHD,Bed Purchasing - North,Permanent Residential,.,3668.40, 31-Jul-2018
207,Revenue,CAHD,Bed Purchasing - Elderly S117- North,Permanent Residential,.,4400.00, 03-Jul-2018
208,Revenue,CAHD,Bed Purchasing - Elderly S117- North,Permanent Residential,.,4400.00, 31-Jul-2018
209,Revenue,CAHD,Bed Purchasing - North,Permanent Residential,.,3600.00, 03-Jul-2018
210,Revenue,CAHD,Bed Purchasing - North,Fees & Charges Income - General,.,769.41, 03-Jul-2018
211,Revenue,CAHD,Bed Purchasing - North,Permanent Residential,.,3600.00, 31-Jul-2018
212,Revenue,CAHD,Bed Purchasing - Southmead Hospital,Respite Emergency - Residential,.,1157.14, 03-Jul-2018
213,Revenue,CAHD,Bed Purchasing - North,Permanent Residential,.,4400.00, 03-Jul-2018
214,Revenue,CAHD,Bed Purchasing - North,Permanent Residential,.,4400.00, 31-Jul-2018
215,Revenue,CAHD,Bed Purchasing - South,Respite Emergency - Residential,.,2200.00, 03-Jul-2018
216,Revenue,CAHD,Bed Purchasing - South,Respite Emergency - Residential,.,628.57, 03-Jul-2018
217,Revenue,CAHD,Bed Purchasing - South,Permanent Residential,.,3928.57, 31-Jul-2018
218,Revenue,CAHD,Bed Purchasing - South,Respite Emergency - Residential,.,1100.00, 31-Jul-2018
219,Revenue,CAHD,Bed Purchasing - South,Respite Emergency - Residential,.,628.57, 31-Jul-2018
220,Revenue,CAHD,Bed Purchasing - North,Permanent Residential,.,3668.40, 03-Jul-2018
221,Revenue,CAHD,Bed Purchasing - North,Permanent Residential,.,3668.40, 31-Jul-2018
222,Revenue,CAHD,Bed Purchasing - Central,Permanent Residential,.,3600.00, 31-Jul-2018
223,Revenue,CAHD,Bed Purchasing - Central,Permanent Residential,.,1542.86, 31-Jul-2018
224,Revenue,CAHD,Bed Purchasing - North,Permanent Residential,.,3057.00, 03-Jul-2018
225,Revenue,CAHD,Bed Purchasing - North,Permanent Residential,.,10699.50, 31-Jul-2018
226,Revenue,CAHD,Bed Purchasing - North,Permanent Residential,.,4500.00, 31-Jul-2018
227,Revenue,CAHD,Bed Purchasing - North,Permanent Residential,.,3057.00, 31-Jul-2018
228,Revenue,CAHD,Bed Purchasing - North,Fees & Charges Income - General,.,787.49, 31-Jul-2018
229,Revenue,CAHD,Bed Purchasing - North,Fees & Charges Income - General,.,1913.67, 31-Jul-2018
230,Revenue,CAHD,Bed Purchasing - Southmead Hospital,Respite Planned - Nursing,.,3444.00, 03-Jul-2018
231,Revenue,CAHD,Bed Purchasing - Southmead Hospital,Respite Planned - Nursing,.,3476.73, 31-Jul-2018
232,Revenue,CAHD,Bed Purchasing - Southmead Hospital,Respite Planned - Nursing,.,1722.00, 31-Jul-2018
233,Revenue,CAHD,Bed Purchasing - South,Respite Planned - Nursing,.,5710.71, 31-Jul-2018
234,Revenue,CAHD,Bed Purchasing - South,Permanent Nursing,.,3900.00, 31-Jul-2018
235,Revenue,CAHD,Bed Purchasing - South,Permanent Nursing,.,1392.86, 31-Jul-2018
236,Revenue,CAHD,MH Purchasing - Younger,Respite Planned - Residential,.,5292.86, 03-Jul-2018
237,Revenue,CAHD,MH Purchasing - Younger,Permanent Residential,.,4577.86, 03-Jul-2018
238,Revenue,CAHD,MH Purchasing - Younger,Permanent Residential,.,3770.00, 31-Jul-2018
239,Revenue,CAHD,Bed Purchasing - South,Respite Planned - Residential,.,5271.43, 03-Jul-2018
240,Revenue,CAHD,Bed Purchasing - South,Respite Planned - Residential,.,3600.00, 03-Jul-2018
241,Revenue,CAHD,Bed Purchasing - South,Respite Planned - Residential,.,1928.57, 31-Jul-2018
242,Revenue,CAHD,Bed Purchasing - North,Permanent Residential,.,5300.00, 03-Jul-2018
243,Revenue,CAHD,Bed Purchasing - North,Permanent Residential,.,2800.00, 31-Jul-2018
244,Revenue,CAHD,Bed Purchasing - Southmead Hospital,Permanent Nursing,.,5570.00, 03-Jul-2018
245,Revenue,CAHD,Bed Purchasing - South,Permanent Nursing,.,14571.43, 03-Jul-2018
246,Revenue,CAHD,Bed Purchasing - South,Permanent Nursing,.,14857.51, 31-Jul-2018
247,Revenue,CAHD,Bed Purchasing - South,Permanent Nursing,.,12235.60, 31-Jul-2018
248,Revenue,CAHD,Bed Purchasing - North,Permanent Residential,.,8331.28, 31-Jul-2018
249,Revenue,CAHD,Jointly Funded H&SC Packages,Permanent Residential,.,2517.28, 31-Jul-2018
250,Revenue,CAHD,Bed Purchasing - North,Respite Planned - Residential,.,1830.00, 31-Jul-2018
251,Revenue,CAHD,18-25 Year Olds,Permanent Residential,1 St Georges House,13021.00, 03-Jul-2018
252,Revenue,CAHD,18-25 Year Olds,Permanent Residential,1 St Georges House,13021.00, 31-Jul-2018
253,Revenue,CAHD,CSC - Asylum Seekers - Unaccompanied,Client Transport,1625 Independent People,66.25, 24-Jul-2018
254,Revenue,CAHD,CSC - Asylum Seekers - Unaccompanied,Radio Pager/Mobile Phones,1625 Independent People,40.00, 24-Jul-2018
255,Revenue,CAHD,CSC - Asylum Seekers - Unaccompanied,Computer Equipment - Purchase,1625 Independent People,207.00, 24-Jul-2018
256,Revenue,CAHD,CSC - Asylum Seekers - Unaccompanied,Leaving Care,1625 Independent People,191.80, 24-Jul-2018
257,Revenue,CAHD,CSC - Asylum Seekers - Unaccompanied,Training Expenses,1625 Independent People,66.25, 03-Jul-2018
258,Revenue,CAHD,CSC - Asylum Seekers - Unaccompanied,Furniture & Fittings Loose,1625 Independent People,723.98, 03-Jul-2018
259,Revenue,CAHD,CSC - Asylum Seekers - Unaccompanied,Independent Living,1625 Independent People,92.93, 03-Jul-2018
260,Revenue,CAHD,Supporting People Programme,Grants to Voluntary Bodies,1625 Independent People,9811.67, 04-Jul-2018
261,Revenue,CAHD,CSC - Care Leavers Independent Living,Independent Living,1625 Independent People,1344.84, 13-Jul-2018
262,Revenue,CAHD,CSC - Care Leavers Independent Living,Independent Living,1625 Independent People,1344.84, 13-Jul-2018
263,Revenue,CAHD,CSC - Care Leavers Independent Living,Independent Living,1625 Independent People,1344.84, 13-Jul-2018
264,Revenue,CAHD,CSC - Care Leavers Independent Living,Independent Living,1625 Independent People,1382.64, 13-Jul-2018
265,Revenue,CAHD,Bed Purchasing - Southmead Hospital,Permanent Residential,1St Floor Lingfield House,2649.40, 03-Jul-2018
266,Revenue,CAHD,Bed Purchasing - Southmead Hospital,Permanent Residential,1St Floor Lingfield House,6597.48, 31-Jul-2018
267,Revenue,CAHD,Bed Purchasing - Southmead Hospital,Fees & Charges Income - General,1St Floor Lingfield House,509.23, 31-Jul-2018
268,Revenue,CAHD,Bed Purchasing - North,Permanent Residential,1St Floor Lingfield House,2649.40, 03-Jul-2018
269,Revenue,CAHD,Bed Purchasing - North,Permanent Residential,1St Floor Lingfield House,2677.24, 31-Jul-2018
270,Revenue,CAHD,Bed Purchasing - North,Permanent Residential,1St Floor Lingfield House,9370.34, 31-Jul-2018
271,Revenue,CAHD,Home Care - Elderly - South,Day Care / Social Activities,3 Trees Community Support Ltd,95.20, 16-Jul-2018
272,Revenue,CAHD,Home Care - Elderly - North,Day Care / Social Activities,3 Trees Community Support Ltd,1170.96, 16-Jul-2018
273,Revenue,CAHD,Home Care - Elderly - North,Other Small Contracts,3 Trees Community Support Ltd,723.52, 16-Jul-2018
274,Revenue,CAHD,Home Care - Elderly - North,Supported Living,3 Trees Community Support Ltd,7590.38, 16-Jul-2018
275,Revenue,CAHD,Home Care - Elderly - South,Day Care / Social Activities,3 Trees Community Support Ltd,95.20, 16-Jul-2018
276,Revenue,CAHD,Home Care - Elderly - North,Day Care / Social Activities,3 Trees Community Support Ltd,1047.20, 16-Jul-2018
277,Revenue,CAHD,Home Care - Elderly - North,Other Small Contracts,3 Trees Community Support Ltd,856.80, 16-Jul-2018
278,Revenue,CAHD,Home Care - Elderly - North,Supported Living,3 Trees Community Support Ltd,7575.48, 16-Jul-2018
279,Revenue,CAHD,Home Care - Elderly - South,Day Care / Social Activities,3 Trees Community Support Ltd,95.20, 27-Jul-2018
280,Revenue,CAHD,Home Care - Elderly - North,Day Care / Social Activities,3 Trees Community Support Ltd,1042.44, 27-Jul-2018
281,Revenue,CAHD,Home Care - Elderly - North,Other Small Contracts,3 Trees Community Support Ltd,856.80, 27-Jul-2018
282,Revenue,CAHD,Home Care - Elderly - North,Supported Living,3 Trees Community Support Ltd,7617.64, 27-Jul-2018
283,Revenue,CAHD,Home Care - Elderly - South,Day Care / Social Activities,3 Trees Community Support Ltd,95.20, 27-Jul-2018
284,Revenue,CAHD,Home Care - Elderly - North,Day Care / Social Activities,3 Trees Community Support Ltd,1042.44, 27-Jul-2018
285,Revenue,CAHD,Home Care - Elderly - North,Other Small Contracts,3 Trees Community Support Ltd,856.80, 27-Jul-2018
286,Revenue,CAHD,Home Care - Elderly - North,Supported Living,3 Trees Community Support Ltd,7591.82, 27-Jul-2018
287,Revenue,CAHD,18-25 Year Olds,Permanent Residential,5Th Floor Harlech Court,14897.40, 03-Jul-2018
288,Revenue,CAHD,18-25 Year Olds,Permanent Residential,5Th Floor Harlech Court,14897.40, 31-Jul-2018
289,Revenue,CAHD,18-25 Year Olds,Permanent Residential,5Th Floor Harlech Court,15040.44, 03-Jul-2018
290,Revenue,CAHD,18-25 Year Olds,Permanent Residential,5Th Floor Harlech Court,15040.44, 31-Jul-2018
291,Revenue,CAHD,18-25 Year Olds,Permanent Residential,5Th Floor Harlech Court,13380.24, 03-Jul-2018
292,Revenue,CAHD,18-25 Year Olds,Permanent Residential,5Th Floor Harlech Court,13380.24, 31-Jul-2018
293,Revenue,CAHD,18-25 Year Olds,Permanent Residential,5Th Floor Harlech Court,17792.32, 03-Jul-2018
294,Revenue,CAHD,18-25 Year Olds,Permanent Residential,5Th Floor Harlech Court,17792.32, 31-Jul-2018
295,Revenue,CAHD,Bed Purchasing - North,Permanent Residential,5Th Floor Harlech Court,13492.04, 03-Jul-2018
296,Revenue,CAHD,Bed Purchasing - North,Permanent Residential,5Th Floor Harlech Court,13492.04, 31-Jul-2018
297,Revenue,CAHD,18-25 Year Olds,Permanent Residential,5Th Floor Harlech Court,13505.44, 03-Jul-2018
298,Revenue,CAHD,18-25 Year Olds,Permanent Residential,5Th Floor Harlech Court,13505.44, 31-Jul-2018
299,Revenue,CAHD,Bed Purchasing - North,Permanent Residential,5Th Floor Harlech Court,14372.24, 03-Jul-2018
300,Revenue,CAHD,Jointly Funded H&SC Packages,Permanent Residential,5Th Floor Harlech Court,3556.48, 03-Jul-2018
301,Revenue,CAHD,Bed Purchasing - North,Permanent Residential,5Th Floor Harlech Court,14372.24, 31-Jul-2018
302,Revenue,CAHD,Jointly Funded H&SC Packages,Permanent Residential,5Th Floor Harlech Court,3556.48, 31-Jul-2018
303,Revenue,CAHD,18-25 Year Olds,Permanent Residential,5Th Floor Harlech Court,17021.40, 03-Jul-2018
304,Revenue,CAHD,18-25 Year Olds,Permanent Residential,5Th Floor Harlech Court,17021.40, 31-Jul-2018
305,Revenue,CAHD,Bed Purchasing - South,Permanent Residential,5Th Floor Harlech Court,16276.48, 03-Jul-2018
306,Revenue,CAHD,Bed Purchasing - South,Permanent Residential,5Th Floor Harlech Court,16276.48, 31-Jul-2018
307,Revenue,CAHD,Bed Purchasing - South,Permanent Residential,5Th Floor Harlech Court,10175.32, 03-Jul-2018
308,Revenue,CAHD,Bed Purchasing - South,Permanent Residential,5Th Floor Harlech Court,10175.32, 31-Jul-2018
309,Revenue,CAHD,Bed purchasing - S28A Under 65 - South,Permanent Residential,5Th Floor Harlech Court,10649.12, 03-Jul-2018
310,Revenue,CAHD,Bed purchasing - S28A Under 65 - South,Permanent Residential,5Th Floor Harlech Court,10649.12, 31-Jul-2018
311,Revenue,CAHD,Bed Purchasing - South,Permanent Residential,5Th Floor Harlech Court,11168.36, 03-Jul-2018
312,Revenue,CAHD,Bed Purchasing - South,Permanent Residential,5Th Floor Harlech Court,11168.36, 31-Jul-2018
313,Revenue,CAHD,Bed Purchasing - South,Permanent Residential,5Th Floor Harlech Court,7425.64, 03-Jul-2018
314,Revenue,CAHD,Jointly Funded H&SC Packages,Permanent Residential,5Th Floor Harlech Court,2743.16, 03-Jul-2018
315,Revenue,CAHD,Bed Purchasing - South,Permanent Residential,5Th Floor Harlech Court,7425.64, 31-Jul-2018
316,Revenue,CAHD,Jointly Funded H&SC Packages,Permanent Residential,5Th Floor Harlech Court,2743.16, 31-Jul-2018
317,Revenue,CAHD,EARLY YEARS DEPRIVATION PAYMENT,Preventative Assistance,Abacus @ Baileys Court Activity Centre,848.10, 06-Jul-2018
318,Revenue,CAHD,Early Years Pupil Premium Grant,Preventative Assistance,Abacus @ Baileys Court Activity Centre,516.75, 06-Jul-2018
319,Revenue,CAHD,EARLY YEARS DEPRIVATION PAYMENT,Preventative Assistance,Abacus @ Filton Hill,639.34, 06-Jul-2018
320,Revenue,CAHD,EARLY YEARS DEPRIVATION PAYMENT,Preventative Assistance,Abacus Pre School @ Mangotsfield,508.86, 06-Jul-2018
321,Revenue,CAHD,EARLY YEARS DEPRIVATION PAYMENT,Preventative Assistance,Abacus Pre-School (Meadowbrook),814.18, 06-Jul-2018
322,Revenue,CAHD,EARLY YEARS DEPRIVATION PAYMENT,Preventative Assistance,Abbeywood Tots Day Nursery Ltd,678.48, 06-Jul-2018
323,Revenue,CAHD,Transport OLA Special Schools and RB,Client Transport,ABC Taxis,650.00, 26-Jul-2018
324,Revenue,CAHD,Transport OLA Special Schools and RB,Client Transport,ABC Taxis,650.00, 26-Jul-2018
325,Revenue,CAHD,Home Care - Elderly - South,Day Care / Social Activities,About Me Care and Support Limited,1386.32, 18-Jul-2018
326,Revenue,CAHD,Home Care - Elderly - North,Day Care / Social Activities,About Me Care and Support Limited,626.08, 18-Jul-2018
327,Revenue,CAHD,Section 117 Placements MH Younger,Permanent Residential,Acorn Care Providers,6453.32, 03-Jul-2018
328,Revenue,CAHD,Section 117 Placements MH Younger,Permanent Residential,Acorn Care Providers,6453.32, 31-Jul-2018
329,Revenue,CAHD,Training - Adult Services,Training Expenses,Acorn Health & Safety Limited,465.00, 12-Jul-2018
330,Revenue,CAHD,Training - Adult Services,Training Expenses,Acorn Health & Safety Limited,465.00, 19-Jul-2018
331,Revenue,CAHD,Training - Adult Services,Training Expenses,Acorn Health & Safety Limited,453.00, 19-Jul-2018
332,Revenue,CAHD,CSC - Agency Fostering,Foster Parent Allowances,Action for Children,3352.34, 26-Jul-2018
333,Revenue,CAHD,CSC - Agency Fostering,Foster Parent Allowances,Action for Children,6975.00, 26-Jul-2018
334,Revenue,CAHD,Education Psychology,Training Expenses,Adams Psychology Services Ltd,1050.00, 19-Jul-2018
335,Revenue,CAHD,Home Care - Elderly - South,Other Small Contracts,Advantedge Commercial Finance Limited,930.00, 11-Jul-2018
336,Revenue,CAHD,CSC - Allowances,Membership Fees,After Adoption,4190.00, 03-Jul-2018
337,Revenue,CAHD,Home Care - Elderly - South,Other Small Contracts,Agincare UK Limited,2193.85, 27-Jul-2018
338,Revenue,CAHD,Home Care - Elderly - North,Other Small Contracts,Agincare UK Limited,1050.20, 27-Jul-2018
339,Revenue,CAHD,Home Care - Elderly - South,Other Small Contracts,Agincare UK Limited,2327.35, 27-Jul-2018
340,Revenue,CAHD,Home Care - Elderly - North,Other Small Contracts,Agincare UK Limited,1294.95, 27-Jul-2018
341,Revenue,CAHD,Home Care - Elderly - South,Other Small Contracts,Agincare UK Limited,1989.15, 27-Jul-2018
342,Revenue,CAHD,Home Care - Elderly - North,Other Small Contracts,Agincare UK Limited,1272.70, 27-Jul-2018
343,Revenue,CAHD,Home Care - Elderly - South,Other Small Contracts,Agincare UK Limited,2314.00, 31-Jul-2018
344,Revenue,CAHD,Home Care - Elderly - North,Other Small Contracts,Agincare UK Limited,1165.90, 31-Jul-2018
345,Revenue,CAHD,Home Care - Elderly - South,Other Small Contracts,Agincare UK Limited,2162.70, 31-Jul-2018
346,Revenue,CAHD,Home Care - Elderly - North,Other Small Contracts,Agincare UK Limited,1312.75, 31-Jul-2018
347,Revenue,CAHD,Home Care - Elderly - South,Other Small Contracts,Agincare UK Limited,2015.85, 31-Jul-2018
348,Revenue,CAHD,Home Care - Elderly - North,Other Small Contracts,Agincare UK Limited,1165.90, 31-Jul-2018
349,Revenue,CAHD,Home Care - Elderly - South,Other Small Contracts,Agincare UK Limited,2042.55, 31-Jul-2018
350,Revenue,CAHD,Home Care - Elderly - North,Other Small Contracts,Agincare UK Limited,1263.80, 31-Jul-2018
351,Revenue,CAHD,Extra Care Housing,Private & Voluntary Home Care,Agincare UK Limited,25811.00, 04-Jul-2018
352,Revenue,CAHD,Extra Care Housing,Private & Voluntary Home Care,Agincare UK Limited,2324.89, 17-Jul-2018
353,Revenue,CAHD,Extra Care Housing,Private & Voluntary Home Care,Agincare UK Limited,2133.18, 17-Jul-2018
354,Revenue,CAHD,Extra Care Housing,Private & Voluntary Home Care,Agincare UK Limited,5326.75, 20-Jul-2018
355,Revenue,CAHD,Prison Assessments & Costs,Other Supplies & Services,Agincare UK Limited,5783.50, 09-Jul-2018
356,Revenue,CAHD,Home Care - Elderly - South,Other Small Contracts,AliMo Care Ltd,872.87, 12-Jul-2018
357,Revenue,CAHD,Home Care - Elderly - South,Other Small Contracts,AliMo Care Ltd,850.02, 13-Jul-2018
358,Revenue,CAHD,Bed Purchasing - Southmead Hospital,Permanent Nursing,Allambie Court,2266.04, 03-Jul-2018
359,Revenue,CAHD,Bed Purchasing - Southmead Hospital,Permanent Nursing,Allambie Court,2266.04, 31-Jul-2018
360,Revenue,CAHD,Bed Purchasing - Southmead Hospital,Permanent Nursing,Allambie Court,2266.04, 03-Jul-2018
361,Revenue,CAHD,Bed Purchasing - Southmead Hospital,Permanent Nursing,Allambie Court,2266.04, 31-Jul-2018
362,Revenue,CAHD,Bed Purchasing - South,Permanent Nursing,Ambleside Nusing Home,632.60, 03-Jul-2018
363,Revenue,CAHD,Bed Purchasing - Southmead Hospital,Permanent Nursing,Amerind Grove Nursing Home,2642.88, 03-Jul-2018
364,Revenue,CAHD,Bed Purchasing - Southmead Hospital,Permanent Nursing,Amerind Grove Nursing Home,2642.88, 31-Jul-2018
365,Revenue,CAHD,CSC - Agency Fostering,Foster Parent Allowances,Amicus Foster Care Ltd,5397.81, 31-Jul-2018
366,Revenue,CAHD,CSC - Agency Fostering,Foster Parent Allowances,Amicus Foster Care Ltd,4879.00, 31-Jul-2018
367,Revenue,CAHD,CSC - Special Guardianship Orders,Special Payments,Individual,1206.80, 06-Jul-2018
368,Revenue,CAHD,CSC - Section 17 0-25,Preventative Assistance,Angel Care Support Limited,5544.00, 20-Jul-2018
369,Revenue,CAHD,CSC - Section 17 0-25,Preventative Assistance,Angel Care Support Limited,2268.00, 20-Jul-2018
370,Revenue,CAHD,CAHC - Complaints & Advocacy Service,Complaints External Expenses,Annette Upshall,515.25, 17-Jul-2018
371,Revenue,CAHD,CSC - Vinney Green Secure Unit,R & M by Departments,Aquatak Limited,832.00, 19-Jul-2018
372,Revenue,CAHD,"Education, Learning and Skills",Premises Hire,Aquaterra Leisure,608.75, 05-Jul-2018
373,Revenue,CAHD,Drug and Alcohol Programme,Premises Hire,Aquaterra Leisure,908.35, 10-Jul-2018
374,Revenue,CAHD,Schools Specific Grant Income,Other Public Bodies,Arc Schools,630.00, 20-Jul-2018
375,Revenue,CAHD,Bed Purchasing - North,Permanent Residential,Ark Care Homes Ltd,11480.92, 03-Jul-2018
376,Revenue,CAHD,Bed Purchasing - North,Permanent Residential,Ark Care Homes Ltd,11480.92, 31-Jul-2018
377,Revenue,CAHD,Bed Purchasing - South,Permanent Nursing,Ash Grove House,2890.28, 03-Jul-2018
378,Revenue,CAHD,Bed Purchasing - South,Permanent Nursing,Ash Grove House,2890.28, 31-Jul-2018
379,Revenue,CAHD,Jointly Funded H&SC Packages,Permanent Residential,Ash View House,2713.40, 03-Jul-2018
380,Revenue,CAHD,Bed Purchasing - South,Permanent Residential,Ash View House,13234.90, 03-Jul-2018
381,Revenue,CAHD,Jointly Funded H&SC Packages,Permanent Residential,Ash View House,1085.36, 03-Jul-2018
382,Revenue,CAHD,Bed Purchasing - South,Permanent Residential,Ash View House,5293.96, 03-Jul-2018
383,Revenue,CAHD,Bed Purchasing - South,Fees & Charges Income - General,Ash View House,905.38, 03-Jul-2018
384,Revenue,CAHD,Jointly Funded H&SC Packages,Permanent Residential,Ash View House,1085.36, 31-Jul-2018
385,Revenue,CAHD,Bed Purchasing - South,Permanent Residential,Ash View House,5293.96, 31-Jul-2018
386,Revenue,CAHD,S117 Placements PCT,Permanent Residential,Ash View House,7379.20, 03-Jul-2018
387,Revenue,CAHD,S117 Placements PCT,Permanent Residential,Ash View House,7379.20, 31-Jul-2018
388,Revenue,CAHD,18-25 Year Olds,Permanent Residential,Ash View House,6933.12, 03-Jul-2018
389,Revenue,CAHD,18-25 Year Olds,Permanent Residential,Ash View House,6933.12, 31-Jul-2018
390,Revenue,CAHD,Section 117 Placements MH Younger,Permanent Residential,Ash View House,4808.72, 03-Jul-2018
391,Revenue,CAHD,Jointly Funded H&SC Packages,Permanent Residential,Ash View House,2060.92, 03-Jul-2018
392,Revenue,CAHD,Section 117 Placements MH Younger,Permanent Residential,Ash View House,4808.72, 31-Jul-2018
393,Revenue,CAHD,Jointly Funded H&SC Packages,Permanent Residential,Ash View House,2060.92, 31-Jul-2018
394,Revenue,CAHD,Bed purchasing - Elderly S117 - South,Permanent Residential,Ash View House,6535.92, 03-Jul-2018
395,Revenue,CAHD,Bed purchasing - Elderly S117 - South,Permanent Residential,Ash View House,6535.92, 31-Jul-2018
396,Revenue,CAHD,18-25 Year Olds,Permanent Residential,Ash View House,6460.48, 03-Jul-2018
397,Revenue,CAHD,18-25 Year Olds,Permanent Residential,Ash View House,6460.48, 31-Jul-2018
398,Revenue,CAHD,Bed Purchasing - North,Permanent Residential,Aspects 2 Limited,7062.40, 03-Jul-2018
399,Revenue,CAHD,Bed Purchasing - North,Permanent Residential,Aspects 2 Limited,7062.40, 31-Jul-2018
400,Revenue,CAHD,HQ Office & Communications (ICT),Membership Fees,Association of Directors of Childrens Services Ltd,2351.25, 10-Jul-2018
401,Revenue,CAHD,Home Care - Elderly - South,Adults - Family Support,Ategi Limited,1242.37, 19-Jul-2018
402,Revenue,CAHD,Bed Purchasing - South,Adults - Family Support,Ategi Limited,12387.12, 03-Jul-2018
403,Revenue,CAHD,Bed Purchasing - South,Adults - Family Support,Ategi Limited,12387.12, 31-Jul-2018
404,Revenue,CAHD,CSC - Residential Placements,Permanent Residential,Aurora Care & Education,49370.89, 18-Jul-2018
405,Revenue,CAHD,Independent Special Placements - Post 16,Other Private Contractors,Aurora Care & Education,32913.92, 18-Jul-2018
406,Revenue,CAHD,Independent Special Placements - Pre 16,Other Private Contractors,Aurora Hedgeway School,3581.88, 09-Jul-2018
407,Revenue,CAHD,Independent Special Placements - Pre 16,Other Private Contractors,Aurora Hedgeway School,2033.88, 09-Jul-2018
408,Revenue,CAHD,Independent Special Placements - Pre 16,Other Private Contractors,Aurora Hedgeway School,15154.33, 30-Jul-2018
409,Revenue,CAHD,Independent Special Placements - Pre 16,Other Private Contractors,Aurora Hedgeway School,15154.33, 30-Jul-2018
410,Revenue,CAHD,Independent Special Placements - Pre 16,Other Private Contractors,Aurora Hedgeway School,15154.33, 30-Jul-2018
411,Revenue,CAHD,Independent Special Placements - Pre 16,Other Private Contractors,Aurora Hedgeway School,15154.33, 30-Jul-2018
412,Revenue,CAHD,Bed Purchasing - South,Permanent Residential,Autism Specialised Care Homes,6354.36, 03-Jul-2018
413,Revenue,CAHD,Bed Purchasing - South,Permanent Residential,Autism Specialised Care Homes,6354.36, 31-Jul-2018
414,Revenue,CAHD,CSC - Adoption Support Fund,Post Adoption,Individual,820.00, 06-Jul-2018
415,Revenue,CAHD,Bed Purchasing - South,Permanent Residential,Avery Homes Downend Limited,6650.00, 03-Jul-2018
416,Revenue,CAHD,Bed Purchasing - South,Permanent Residential,Avery Homes Downend Limited,3392.86, 03-Jul-2018
417,Revenue,CAHD,Bed Purchasing - South,Fees & Charges Income - General,Avery Homes Downend Limited,823.20, 03-Jul-2018
418,Revenue,CAHD,Bed Purchasing - South,Permanent Residential,Avery Homes Downend Limited,3800.00, 31-Jul-2018
419,Revenue,CAHD,Bed Purchasing - South,Permanent Residential,Avery Homes Downend Limited,3392.86, 03-Jul-2018
420,Revenue,CAHD,Bed Purchasing - South,Permanent Residential,Avery Homes Downend Limited,3800.00, 31-Jul-2018
421,Revenue,CAHD,Bed Purchasing - Southmead Hospital,Permanent Residential,Avery Homes Downend Limited,4200.00, 03-Jul-2018
422,Revenue,CAHD,Bed Purchasing - Southmead Hospital,Permanent Residential,Avery Homes Downend Limited,750.00, 03-Jul-2018
423,Revenue,CAHD,Bed Purchasing - Southmead Hospital,Permanent Residential,Avery Homes Downend Limited,4200.00, 31-Jul-2018
424,Revenue,CAHD,Younger Adult Mental Health,Health Services (Third Party Payments),Avon & Wiltshire Mental Health,1693.33, 06-Jul-2018
425,Revenue,CAHD,Early Years High Needs Support,Other Private Contractors,Baker Street Nursery & Pre-School,910.13, 23-Jul-2018
426,Revenue,CAHD,CSC - Vinney Green Secure Unit,Support Services Recharges (above line),Barnardo Services Limited,3780.00, 16-Jul-2018
427,Revenue,CAHD,CSC - Family Group Conferencing,Grants to Voluntary Bodies,Barnardo Services Limited,5422.75, 16-Jul-2018
428,Revenue,CAHD,CSC - Family Group Conferencing,Grants to Voluntary Bodies,Barnardo Services Limited,5422.75, 26-Jul-2018
429,Revenue,CAHD,Children & Young People�s Health,Other Small Contracts,Barnardos,7650.00, 19-Jul-2018
430,Revenue,CAHD,Purchase of RAC places,Other L.A.'s - General,Bath & North East Somerset Council,966.08, 03-Jul-2018
431,Revenue,CAHD,Pensions - Non DSG,Annual Pension,Bath & North East Somerset Council,111639.92, 05-Jul-2018
432,Revenue,CAHD,Purchase of RAC places,Other L.A.'s - General,Bath & North East Somerset Council,1417.60, 13-Jul-2018
433,Revenue,CAHD,Pensions - Non DSG,Annual Pension,Bath & North East Somerset Council,112039.32, 11-Jul-2018
434,Revenue,CAHD,Early Years Development,Books & Publications,Bath & North East Somerset Council,500.00, 18-Jul-2018
435,Revenue,CAHD,CSC - Safeguarding Board,Publicity & Promotions,Bath & North East Somerset Council,1042.00, 26-Jul-2018
436,Revenue,CAHD,"Education, Learning and Skills",Catering,Bawa Healthcare & Leisure,348.33, 26-Jul-2018
437,Revenue,CAHD,"Education, Learning and Skills",Premises Hire,Bawa Healthcare & Leisure,310.00, 26-Jul-2018
438,Revenue,CAHD,Drug and Alcohol Programme,Refuse Collection Charges,BDB Lock & Safe T/A All About Safes,2100.00, 17-Jul-2018
439,Revenue,CAHD,Pathway 3 - (Complex Beds),Permanent Nursing,Beaufort Care Ltd,5339.00, 12-Jul-2018
440,Revenue,CAHD,South Glos Users in South Glos Homes,Permanent Nursing,Beaufort Grange Care Home,1897.92, 31-Jul-2018
441,Revenue,CAHD,South Glos Users in South Glos Homes,Permanent Nursing,Beaufort Grange Care Home,1897.92, 31-Jul-2018
442,Revenue,CAHD,South Glos Users in South Glos Homes,Permanent Nursing,Beaufort Grange Care Home,1897.92, 31-Jul-2018
443,Revenue,CAHD,South Glos Users in South Glos Homes,Permanent Nursing,Beaufort Grange Care Home,1897.92, 31-Jul-2018
444,Revenue,CAHD,South Glos Users in South Glos Homes,Permanent Nursing,Beaufort Grange Care Home,1897.92, 31-Jul-2018
445,Revenue,CAHD,South Glos Users in South Glos Homes,Permanent Nursing,Beaufort Grange Care Home,1897.92, 31-Jul-2018
446,Revenue,CAHD,South Glos Users in South Glos Homes,Permanent Nursing,Beaufort Grange Care Home,1897.92, 31-Jul-2018
447,Revenue,CAHD,South Glos Users in South Glos Homes,Permanent Nursing,Beaufort Grange Care Home,1897.92, 31-Jul-2018
448,Revenue,CAHD,South Glos Users in South Glos Homes,Permanent Nursing,Beaufort Grange Care Home,1897.92, 31-Jul-2018
449,Revenue,CAHD,South Glos Users in South Glos Homes,Permanent Nursing,Beaufort Grange Care Home,1897.92, 31-Jul-2018
450,Revenue,CAHD,Bed Purchasing - Elderly S117- North,Permanent Nursing,Beaufort Grange Care Home,14288.16, 31-Jul-2018
451,Revenue,CAHD,South Glos Users in South Glos Homes,Permanent Nursing,Beaufort Grange Care Home,1897.92, 31-Jul-2018
452,Revenue,CAHD,South Glos Users in South Glos Homes,Permanent Nursing,Beaufort Grange Care Home,1897.92, 31-Jul-2018
453,Revenue,CAHD,South Glos Users in South Glos Homes,Permanent Nursing,Beaufort Grange Care Home,1897.92, 31-Jul-2018
454,Revenue,CAHD,South Glos Users in South Glos Homes,Permanent Nursing,Beaufort Grange Care Home,1897.92, 31-Jul-2018
455,Revenue,CAHD,South Glos Users in South Glos Homes,Permanent Nursing,Beaufort Grange Care Home,1927.05, 31-Jul-2018
456,Revenue,CAHD,South Glos Users in South Glos Homes,Permanent Nursing,Beaufort Grange Care Home,1897.92, 31-Jul-2018
457,Revenue,CAHD,South Glos Users in South Glos Homes,Permanent Nursing,Beaufort Grange Care Home,1129.71, 31-Jul-2018
458,Revenue,CAHD,South Glos Users in South Glos Homes,Permanent Nursing,Beaufort Grange Care Home,1897.92, 31-Jul-2018
459,Revenue,CAHD,South Glos Users in South Glos Homes,Permanent Nursing,Beaufort Grange Care Home,1129.71, 31-Jul-2018
460,Revenue,CAHD,South Glos Users in South Glos Homes,Permanent Nursing,Beaufort Grange Care Home,1129.65, 31-Jul-2018
461,Revenue,CAHD,South Glos Users in South Glos Homes,Permanent Nursing,Beaufort Grange Care Home,3078.85, 31-Jul-2018
462,Revenue,CAHD,South Glos Users in South Glos Homes,Permanent Nursing,Beaufort Grange Care Home,1897.92, 31-Jul-2018
463,Revenue,CAHD,South Glos Users in South Glos Homes,Permanent Nursing,Beaufort Grange Care Home,1129.71, 31-Jul-2018
464,Revenue,CAHD,South Glos Users in South Glos Homes,Permanent Nursing,Beaufort Grange Care Home,1897.92, 31-Jul-2018
465,Revenue,CAHD,South Glos Users in South Glos Homes,Permanent Nursing,Beaufort Grange Care Home,858.58, 31-Jul-2018
466,Revenue,CAHD,South Glos Users in South Glos Homes,Permanent Nursing,Beaufort Grange Care Home,1897.92, 31-Jul-2018
467,Revenue,CAHD,South Glos Users in South Glos Homes,Permanent Nursing,Beaufort Grange Care Home,1129.71, 31-Jul-2018
468,Revenue,CAHD,South Glos Users in South Glos Homes,Permanent Nursing,Beaufort Grange Care Home,708.80, 31-Jul-2018
469,Revenue,CAHD,South Glos Users in South Glos Homes,Permanent Nursing,Beaufort Grange Care Home,1897.92, 31-Jul-2018
470,Revenue,CAHD,South Glos Users in South Glos Homes,Permanent Nursing,Beaufort Grange Care Home,1129.71, 31-Jul-2018
471,Revenue,CAHD,South Glos Users in South Glos Homes,Permanent Nursing,Beaufort Grange Care Home,841.70, 31-Jul-2018
472,Revenue,CAHD,South Glos Users in South Glos Homes,Permanent Nursing,Beaufort Grange Care Home,1897.92, 31-Jul-2018
473,Revenue,CAHD,Bed Purchasing - North,Permanent Residential,Beaufort House,2489.80, 03-Jul-2018
474,Revenue,CAHD,Bed Purchasing - North,Permanent Residential,Beaufort House,2489.80, 31-Jul-2018
475,Revenue,CAHD,Bed Purchasing - Southmead Hospital,Permanent Nursing,Beaufort House,2247.60, 03-Jul-2018
476,Revenue,CAHD,Bed Purchasing - Southmead Hospital,Permanent Nursing,Beaufort House,561.90, 03-Jul-2018
477,Revenue,CAHD,Bed Purchasing - Southmead Hospital,Permanent Nursing,Beaufort House,3500.00, 31-Jul-2018
478,Revenue,CAHD,Bed Purchasing - Southmead Hospital,Permanent Nursing,Beaufort House,2100.00, 31-Jul-2018
479,Revenue,CAHD,Bed Purchasing - Southmead Hospital,Permanent Nursing,Beaufort House,700.00, 31-Jul-2018
480,Revenue,CAHD,Bed Purchasing - Southmead Hospital,Fees & Charges Income - General,Beaufort House,670.77, 31-Jul-2018
481,Revenue,CAHD,Bed Purchasing - Southmead Hospital,Permanent Residential,Beaufort House,2710.56, 03-Jul-2018
482,Revenue,CAHD,Bed Purchasing - Southmead Hospital,Permanent Residential,Beaufort House,2710.56, 31-Jul-2018
483,Revenue,CAHD,Bed Purchasing - North,Respite Emergency - Residential,Beaufort House,3964.29, 31-Jul-2018
484,Revenue,CAHD,Bed Purchasing - North,Permanent Residential,Beaufort House,2511.12, 03-Jul-2018
485,Revenue,CAHD,Bed Purchasing - North,Permanent Residential,Beaufort House,2511.12, 31-Jul-2018
486,Revenue,CAHD,Bed Purchasing - South,Permanent Residential,Beaufort House,2477.40, 03-Jul-2018
487,Revenue,CAHD,Bed Purchasing - South,Permanent Residential,Beaufort House,2477.40, 31-Jul-2018
488,Revenue,CAHD,Bed Purchasing - South,Permanent Residential,Beaufort House,2383.84, 03-Jul-2018
489,Revenue,CAHD,Bed Purchasing - South,Permanent Residential,Beaufort House,2383.84, 31-Jul-2018
490,Revenue,CAHD,Bed Purchasing - Southmead Hospital,Permanent Residential,Beaufort House,1933.60, 03-Jul-2018
491,Revenue,CAHD,Bed Purchasing - Southmead Hospital,Respite Planned - Residential,Beaufort House,2710.56, 03-Jul-2018
492,Revenue,CAHD,Bed Purchasing - Southmead Hospital,Respite Planned - Residential,Beaufort House,2710.56, 31-Jul-2018
493,Revenue,CAHD,Bed Purchasing - North,Permanent Residential,Beaufort House,2453.56, 03-Jul-2018
494,Revenue,CAHD,Bed Purchasing - North,Permanent Residential,Beaufort House,2453.56, 31-Jul-2018
495,Revenue,CAHD,Bed Purchasing - Southmead Hospital,Permanent Residential,Beaufort House,2710.56, 03-Jul-2018
496,Revenue,CAHD,Bed Purchasing - Southmead Hospital,Permanent Residential,Beaufort House,2710.56, 31-Jul-2018
497,Revenue,CAHD,Bed Purchasing - North,Permanent Residential,Beaufort House,2636.64, 03-Jul-2018
498,Revenue,CAHD,Bed Purchasing - North,Permanent Residential,Beaufort House,2636.64, 31-Jul-2018
499,Revenue,CAHD,Bed Purchasing - South,Permanent Residential,Beaufort House,2649.40, 03-Jul-2018
500,Revenue,CAHD,Bed Purchasing - South,Permanent Residential,Beaufort House,2649.40, 31-Jul-2018
501,Revenue,CAHD,Bed Purchasing - Southmead Hospital,Permanent Residential,Beaufort House,2511.12, 03-Jul-2018
502,Revenue,CAHD,Bed Purchasing - Southmead Hospital,Permanent Residential,Beaufort House,2683.84, 03-Jul-2018
503,Revenue,CAHD,Bed Purchasing - Southmead Hospital,Fees & Charges Income - General,Beaufort House,1420.41, 03-Jul-2018
504,Revenue,CAHD,Bed Purchasing - Southmead Hospital,Permanent Residential,Beaufort House,2683.84, 31-Jul-2018
505,Revenue,CAHD,South Glos Users in South Glos Homes,Permanent Nursing,Beech House,632.64, 03-Jul-2018
506,Revenue,CAHD,South Glos Users in South Glos Homes,Permanent Nursing,Beech House,632.64, 31-Jul-2018
507,Revenue,CAHD,Bed Purchasing - South,Permanent Residential,Beech House,2890.28, 03-Jul-2018
508,Revenue,CAHD,South Glos Users in South Glos Homes,Permanent Nursing,Beech House,632.64, 03-Jul-2018
509,Revenue,CAHD,Bed Purchasing - South,Permanent Residential,Beech House,2890.28, 31-Jul-2018
510,Revenue,CAHD,South Glos Users in South Glos Homes,Permanent Nursing,Beech House,632.64, 31-Jul-2018
511,Revenue,CAHD,Bed Purchasing - Southmead Hospital,Permanent Residential,Beech House,4055.64, 03-Jul-2018
512,Revenue,CAHD,Bed Purchasing - Southmead Hospital,Permanent Residential,Beech House,4055.64, 31-Jul-2018
513,Revenue,CAHD,South Glos Users in South Glos Homes,Permanent Nursing,Beech House,632.64, 03-Jul-2018
514,Revenue,CAHD,South Glos Users in South Glos Homes,Permanent Nursing,Beech House,632.64, 31-Jul-2018
515,Revenue,CAHD,South Glos Users in South Glos Homes,Permanent Nursing,Beech House,632.64, 03-Jul-2018
516,Revenue,CAHD,South Glos Users in South Glos Homes,Permanent Nursing,Beech House,632.64, 31-Jul-2018
517,Revenue,CAHD,South Glos Users in South Glos Homes,Permanent Nursing,Beech House,632.64, 03-Jul-2018
518,Revenue,CAHD,South Glos Users in South Glos Homes,Permanent Nursing,Beech House,632.64, 31-Jul-2018
519,Revenue,CAHD,Bed Purchasing - North,Permanent Nursing,Beech House,2761.24, 03-Jul-2018
520,Revenue,CAHD,South Glos Users in South Glos Homes,Permanent Nursing,Beech House,632.64, 03-Jul-2018
521,Revenue,CAHD,Bed Purchasing - North,Permanent Nursing,Beech House,2761.24, 31-Jul-2018
522,Revenue,CAHD,South Glos Users in South Glos Homes,Permanent Nursing,Beech House,632.64, 31-Jul-2018
523,Revenue,CAHD,South Glos Users in South Glos Homes,Permanent Nursing,Beech House,632.64, 03-Jul-2018
524,Revenue,CAHD,South Glos Users in South Glos Homes,Permanent Nursing,Beech House,632.64, 31-Jul-2018
525,Revenue,CAHD,Bed Purchasing - North,Permanent Nursing,Beech House,3088.64, 03-Jul-2018
526,Revenue,CAHD,South Glos Users in South Glos Homes,Permanent Nursing,Beech House,632.64, 03-Jul-2018
527,Revenue,CAHD,Bed Purchasing - North,Permanent Nursing,Beech House,3088.64, 31-Jul-2018
528,Revenue,CAHD,South Glos Users in South Glos Homes,Permanent Nursing,Beech House,632.64, 31-Jul-2018
529,Revenue,CAHD,Bed Purchasing - North,Permanent Nursing,Beech House,3464.60, 03-Jul-2018
530,Revenue,CAHD,South Glos Users in South Glos Homes,Permanent Nursing,Beech House,632.64, 03-Jul-2018
531,Revenue,CAHD,Bed Purchasing - North,Permanent Nursing,Beech House,3464.60, 31-Jul-2018
532,Revenue,CAHD,South Glos Users in South Glos Homes,Permanent Nursing,Beech House,632.64, 31-Jul-2018
533,Revenue,CAHD,Bed Purchasing - North,Permanent Residential,Beech House,2890.28, 03-Jul-2018
534,Revenue,CAHD,South Glos Users in South Glos Homes,Permanent Nursing,Beech House,632.64, 03-Jul-2018
535,Revenue,CAHD,Bed Purchasing - North,Permanent Residential,Beech House,2890.28, 31-Jul-2018
536,Revenue,CAHD,South Glos Users in South Glos Homes,Permanent Nursing,Beech House,632.64, 31-Jul-2018
537,Revenue,CAHD,South Glos Users in South Glos Homes,Permanent Nursing,Beech House,632.64, 03-Jul-2018
538,Revenue,CAHD,South Glos Users in South Glos Homes,Permanent Nursing,Beech House,632.64, 31-Jul-2018
539,Revenue,CAHD,South Glos Users in South Glos Homes,Permanent Nursing,Beech House,632.64, 03-Jul-2018
540,Revenue,CAHD,South Glos Users in South Glos Homes,Permanent Nursing,Beech House,632.64, 31-Jul-2018
541,Revenue,CAHD,South Glos Users in South Glos Homes,Permanent Nursing,Beech House,632.64, 03-Jul-2018
542,Revenue,CAHD,South Glos Users in South Glos Homes,Permanent Nursing,Beech House,632.64, 31-Jul-2018
543,Revenue,CAHD,South Glos Users in South Glos Homes,Permanent Nursing,Beech House,632.64, 03-Jul-2018
544,Revenue,CAHD,South Glos Users in South Glos Homes,Permanent Nursing,Beech House,632.64, 31-Jul-2018
545,Revenue,CAHD,South Glos Users in South Glos Homes,Permanent Nursing,Beech House,632.64, 03-Jul-2018
546,Revenue,CAHD,South Glos Users in South Glos Homes,Permanent Nursing,Beech House,632.64, 31-Jul-2018
547,Revenue,CAHD,South Glos Users in South Glos Homes,Permanent Nursing,Beech House,632.64, 31-Jul-2018
548,Revenue,CAHD,South Glos Users in South Glos Homes,Permanent Nursing,Beech House,519.67, 31-Jul-2018
549,Revenue,CAHD,South Glos Users in South Glos Homes,Permanent Nursing,Beech House,632.64, 03-Jul-2018
550,Revenue,CAHD,South Glos Users in South Glos Homes,Permanent Nursing,Beech House,632.64, 31-Jul-2018
551,Revenue,CAHD,Bed Purchasing - North,Permanent Residential,Beech House,3974.12, 03-Jul-2018
552,Revenue,CAHD,Bed Purchasing - North,Fees & Charges Income - General,Beech House,11496.56, 31-Jul-2018
553,Revenue,CAHD,Bed Purchasing - North,Permanent Residential,Beech House,3974.12, 31-Jul-2018
554,Revenue,CAHD,Bed Purchasing - North,Fees & Charges Income - General,Beech House,1409.50, 31-Jul-2018
555,Revenue,CAHD,Bed Purchasing - North,Permanent Residential,Beech House,13909.42, 31-Jul-2018
556,Revenue,CAHD,Bed Purchasing - North,Permanent Residential,Beech House,696.43, 31-Jul-2018
557,Revenue,CAHD,Bed Purchasing - North,Fees & Charges Income - General,Beech House,1913.67, 31-Jul-2018
558,Revenue,CAHD,Bed Purchasing - Southmead Hospital,Permanent Residential,Beech House,3749.92, 03-Jul-2018
559,Revenue,CAHD,Bed Purchasing - Southmead Hospital,Permanent Residential,Beech House,3749.92, 31-Jul-2018
560,Revenue,CAHD,South Glos Users in South Glos Homes,Permanent Nursing,Beech House,2033.49, 31-Jul-2018
561,Revenue,CAHD,South Glos Users in South Glos Homes,Permanent Nursing,Beech House,632.64, 31-Jul-2018
562,Revenue,CAHD,South Glos Users in South Glos Homes,Permanent Nursing,Beech House,2101.27, 31-Jul-2018
563,Revenue,CAHD,South Glos Users in South Glos Homes,Permanent Nursing,Beech House,632.64, 31-Jul-2018
564,Revenue,CAHD,South Glos Users in South Glos Homes,Permanent Nursing,Beech House,632.64, 03-Jul-2018
565,Revenue,CAHD,South Glos Users in South Glos Homes,Permanent Nursing,Beech House,632.64, 31-Jul-2018
566,Revenue,CAHD,Bed Purchasing - North,Permanent Residential,Beech House,9246.00, 03-Jul-2018
567,Revenue,CAHD,Bed Purchasing - North,Fees & Charges Income - General,Beech House,1480.70, 03-Jul-2018
568,Revenue,CAHD,South Glos Users in South Glos Homes,Permanent Nursing,Beech House,2394.99, 31-Jul-2018
569,Revenue,CAHD,South Glos Users in South Glos Homes,Permanent Nursing,Beech House,632.64, 31-Jul-2018
570,Revenue,CAHD,South Glos Users in South Glos Homes,Permanent Nursing,Beech House,723.02, 03-Jul-2018
571,Revenue,CAHD,South Glos Users in South Glos Homes,Permanent Nursing,Beech House,575.90, 03-Jul-2018
572,Revenue,CAHD,Bed Purchasing - North,Permanent Nursing,Beech House,3362.72, 03-Jul-2018
573,Revenue,CAHD,South Glos Users in South Glos Homes,Permanent Nursing,Beech House,632.64, 03-Jul-2018
574,Revenue,CAHD,Bed Purchasing - North,Permanent Nursing,Beech House,3362.72, 31-Jul-2018
575,Revenue,CAHD,South Glos Users in South Glos Homes,Permanent Nursing,Beech House,632.64, 31-Jul-2018
576,Revenue,CAHD,Bed Purchasing - North,Permanent Nursing,Beech House,3229.92, 03-Jul-2018
577,Revenue,CAHD,South Glos Users in South Glos Homes,Permanent Nursing,Beech House,632.64, 03-Jul-2018
578,Revenue,CAHD,Bed Purchasing - North,Permanent Nursing,Beech House,3229.92, 31-Jul-2018
579,Revenue,CAHD,South Glos Users in South Glos Homes,Permanent Nursing,Beech House,632.64, 31-Jul-2018
580,Revenue,CAHD,South Glos Users in South Glos Homes,Permanent Nursing,Beech House,632.64, 03-Jul-2018
581,Revenue,CAHD,South Glos Users in South Glos Homes,Permanent Nursing,Beech House,632.64, 31-Jul-2018
582,Revenue,CAHD,South Glos Users in South Glos Homes,Permanent Nursing,Beech House,632.64, 03-Jul-2018
583,Revenue,CAHD,South Glos Users in South Glos Homes,Permanent Nursing,Beech House,632.64, 03-Jul-2018
584,Revenue,CAHD,South Glos Users in South Glos Homes,Permanent Nursing,Beech House,632.64, 31-Jul-2018
585,Revenue,CAHD,Bed Purchasing - Southmead Hospital,Permanent Residential,Beech House,2323.16, 03-Jul-2018
586,Revenue,CAHD,Bed Purchasing - Southmead Hospital,Permanent Residential,Beech House,1100.44, 03-Jul-2018
587,Revenue,CAHD,Bed Purchasing - Southmead Hospital,Permanent Residential,Beech House,3423.60, 31-Jul-2018
588,Revenue,CAHD,Statemented Support Payments to OLAs,Other L.A.'s - General,Beechen Cliff School,718.49, 26-Jul-2018
589,Revenue,CAHD,Independent Special Placements - Pre 16,Other Private Contractors,Belgrave School,5533.00, 06-Jul-2018
590,Revenue,CAHD,Independent Special Placements - Pre 16,Other Private Contractors,Belgrave School,729.00, 02-Jul-2018
591,Revenue,CAHD,Court Case & Counsel's Advice Costs,Legal Fees,Bevan Brittan LLP,1650.00, 09-Jul-2018
592,Revenue,CAHD,Planning & Development,Training Expenses,Birmingham City Council,695.00, 26-Jul-2018
593,Revenue,CAHD,Bed Purchasing - Southmead Hospital,Permanent Nursing,Bloomfield Care Centre,10606.44, 03-Jul-2018
594,Revenue,CAHD,Bed Purchasing - Southmead Hospital,Permanent Nursing,Bloomfield Care Centre,4367.36, 03-Jul-2018
595,Revenue,CAHD,Bed Purchasing - Southmead Hospital,Fees & Charges Income - General,Bloomfield Care Centre,5147.25, 03-Jul-2018
596,Revenue,CAHD,Bed Purchasing - Southmead Hospital,Permanent Nursing,Bloomfield Care Centre,4367.36, 31-Jul-2018
597,Revenue,CAHD,Bed Purchasing - Southmead Hospital,Permanent Nursing,Blossom Field,4600.00, 03-Jul-2018
598,Revenue,CAHD,South Glos Users in South Glos Homes,Permanent Nursing,Blossom Field,1649.38, 31-Jul-2018
599,Revenue,CAHD,Bed Purchasing - Southmead Hospital,Permanent Nursing,Blossom Field,2300.00, 31-Jul-2018
600,Revenue,CAHD,South Glos Users in South Glos Homes,Permanent Nursing,Blossom Field,632.64, 31-Jul-2018
601,Revenue,CAHD,Bed purchasing - Elderly S117 - South,Permanent Nursing,Blossom Field,4259.20, 03-Jul-2018
602,Revenue,CAHD,South Glos Users in South Glos Homes,Permanent Nursing,Blossom Field,632.64, 03-Jul-2018
603,Revenue,CAHD,Bed purchasing - Elderly S117 - South,Permanent Nursing,Blossom Field,4259.20, 31-Jul-2018
604,Revenue,CAHD,South Glos Users in South Glos Homes,Permanent Nursing,Blossom Field,632.64, 31-Jul-2018
605,Revenue,CAHD,Bed Purchasing - North,Permanent Nursing,Blossom Field,3590.88, 03-Jul-2018
606,Revenue,CAHD,South Glos Users in South Glos Homes,Permanent Nursing,Blossom Field,632.64, 03-Jul-2018
607,Revenue,CAHD,Bed Purchasing - Elderly S117- North,Permanent Nursing,Blossom Field,3607.00, 03-Jul-2018
608,Revenue,CAHD,South Glos Users in South Glos Homes,Permanent Nursing,Blossom Field,632.64, 03-Jul-2018
609,Revenue,CAHD,Bed Purchasing - Elderly S117- North,Permanent Nursing,Blossom Field,3607.00, 31-Jul-2018
610,Revenue,CAHD,South Glos Users in South Glos Homes,Permanent Nursing,Blossom Field,632.64, 31-Jul-2018
611,Revenue,CAHD,South Glos Users in South Glos Homes,Permanent Nursing,Blossom Field,632.64, 03-Jul-2018
612,Revenue,CAHD,South Glos Users in South Glos Homes,Permanent Nursing,Blossom Field,632.64, 31-Jul-2018
613,Revenue,CAHD,Bed Purchasing - Southmead Hospital,Respite Planned - Nursing,Blossom Field,6107.14, 31-Jul-2018
614,Revenue,CAHD,South Glos Users in South Glos Homes,Permanent Nursing,Blossom Field,948.96, 31-Jul-2018
615,Revenue,CAHD,Bed Purchasing - Southmead Hospital,Respite Planned - Nursing,Blossom Field,542.86, 31-Jul-2018
616,Revenue,CAHD,South Glos Users in South Glos Homes,Permanent Nursing,Blossom Field,632.64, 03-Jul-2018
617,Revenue,CAHD,South Glos Users in South Glos Homes,Permanent Nursing,Blossom Field,632.64, 31-Jul-2018
618,Revenue,CAHD,South Glos Users in South Glos Homes,Permanent Nursing,Blossom Field,632.64, 03-Jul-2018
619,Revenue,CAHD,South Glos Users in South Glos Homes,Permanent Nursing,Blossom Field,632.64, 31-Jul-2018
620,Revenue,CAHD,Bed Purchasing - North,Permanent Nursing,Blossom Field,3080.00, 03-Jul-2018
621,Revenue,CAHD,South Glos Users in South Glos Homes,Permanent Nursing,Blossom Field,632.64, 03-Jul-2018
622,Revenue,CAHD,Bed Purchasing - North,Permanent Nursing,Blossom Field,3080.00, 31-Jul-2018
623,Revenue,CAHD,South Glos Users in South Glos Homes,Permanent Nursing,Blossom Field,632.64, 31-Jul-2018
624,Revenue,CAHD,South Glos Users in South Glos Homes,Permanent Nursing,Blossom Field,632.64, 03-Jul-2018
625,Revenue,CAHD,South Glos Users in South Glos Homes,Permanent Nursing,Blossom Field,632.64, 31-Jul-2018
626,Revenue,CAHD,South Glos Users in South Glos Homes,Permanent Nursing,Blossom Field,632.64, 03-Jul-2018
627,Revenue,CAHD,South Glos Users in South Glos Homes,Permanent Nursing,Blossom Field,632.64, 31-Jul-2018
628,Revenue,CAHD,South Glos Users in South Glos Homes,Permanent Nursing,Blossom Field,632.64, 03-Jul-2018
629,Revenue,CAHD,South Glos Users in South Glos Homes,Permanent Nursing,Blossom Field,632.64, 31-Jul-2018
630,Revenue,CAHD,South Glos Users in South Glos Homes,Permanent Nursing,Blossom Field,632.64, 03-Jul-2018
631,Revenue,CAHD,South Glos Users in South Glos Homes,Permanent Nursing,Blossom Field,632.64, 31-Jul-2018
632,Revenue,CAHD,South Glos Users in South Glos Homes,Permanent Nursing,Blossom Field,632.64, 03-Jul-2018
633,Revenue,CAHD,South Glos Users in South Glos Homes,Permanent Nursing,Blossom Field,632.64, 31-Jul-2018
634,Revenue,CAHD,Bed Purchasing - Southmead Hospital,Permanent Nursing,Blossom Field,4076.00, 03-Jul-2018
635,Revenue,CAHD,South Glos Users in South Glos Homes,Permanent Nursing,Blossom Field,632.64, 03-Jul-2018
636,Revenue,CAHD,Bed Purchasing - Southmead Hospital,Permanent Nursing,Blossom Field,4076.00, 31-Jul-2018
637,Revenue,CAHD,South Glos Users in South Glos Homes,Permanent Nursing,Blossom Field,632.64, 31-Jul-2018
638,Revenue,CAHD,Bed Purchasing - South,Permanent Nursing,Blossom Field,4309.64, 03-Jul-2018
639,Revenue,CAHD,South Glos Users in South Glos Homes,Permanent Nursing,Blossom Field,632.64, 03-Jul-2018
640,Revenue,CAHD,Bed Purchasing - South,Permanent Nursing,Blossom Field,4309.64, 31-Jul-2018
641,Revenue,CAHD,South Glos Users in South Glos Homes,Permanent Nursing,Blossom Field,632.64, 31-Jul-2018
642,Revenue,CAHD,South Glos Users in South Glos Homes,Permanent Nursing,Blossom Field,632.64, 03-Jul-2018
643,Revenue,CAHD,South Glos Users in South Glos Homes,Permanent Nursing,Blossom Field,632.64, 31-Jul-2018
644,Revenue,CAHD,South Glos Users in South Glos Homes,Permanent Nursing,Blossom Field,632.64, 03-Jul-2018
645,Revenue,CAHD,South Glos Users in South Glos Homes,Permanent Nursing,Blossom Field,632.64, 31-Jul-2018
646,Revenue,CAHD,Bed Purchasing - North,Permanent Nursing,Blossom Field,4687.40, 03-Jul-2018
647,Revenue,CAHD,Bed Purchasing - North,Permanent Nursing,Blossom Field,4687.40, 31-Jul-2018
648,Revenue,CAHD,South Glos Users in South Glos Homes,Permanent Nursing,Blossom Field,2282.02, 31-Jul-2018
649,Revenue,CAHD,South Glos Users in South Glos Homes,Permanent Nursing,Blossom Field,632.64, 31-Jul-2018
650,Revenue,CAHD,South Glos Users in South Glos Homes,Permanent Nursing,Blossom Field,632.64, 03-Jul-2018
651,Revenue,CAHD,South Glos Users in South Glos Homes,Permanent Nursing,Blossom Field,632.64, 31-Jul-2018
652,Revenue,CAHD,South Glos Users in South Glos Homes,Permanent Nursing,Blossom Field,632.64, 03-Jul-2018
653,Revenue,CAHD,South Glos Users in South Glos Homes,Permanent Nursing,Blossom Field,632.64, 31-Jul-2018
654,Revenue,CAHD,South Glos Users in South Glos Homes,Permanent Nursing,Blossom Field,632.64, 03-Jul-2018
655,Revenue,CAHD,South Glos Users in South Glos Homes,Permanent Nursing,Blossom Field,632.64, 31-Jul-2018
656,Revenue,CAHD,South Glos Users in South Glos Homes,Permanent Nursing,Blossom Field,632.64, 03-Jul-2018
657,Revenue,CAHD,South Glos Users in South Glos Homes,Permanent Nursing,Blossom Field,632.64, 31-Jul-2018
658,Revenue,CAHD,South Glos Users in South Glos Homes,Permanent Nursing,Blossom Field,2394.99, 31-Jul-2018
659,Revenue,CAHD,South Glos Users in South Glos Homes,Permanent Nursing,Blossom Field,632.64, 31-Jul-2018
660,Revenue,CAHD,South Glos Users in South Glos Homes,Permanent Nursing,Blossom Field,2394.99, 31-Jul-2018
661,Revenue,CAHD,South Glos Users in South Glos Homes,Permanent Nursing,Blossom Field,708.80, 31-Jul-2018
662,Revenue,CAHD,South Glos Users in South Glos Homes,Permanent Nursing,Blossom Field,632.64, 31-Jul-2018
663,Revenue,CAHD,Bed Purchasing - South,Permanent Nursing,Blossom Field,4587.56, 03-Jul-2018
664,Revenue,CAHD,Bed Purchasing - South,Permanent Nursing,Blossom Field,15401.09, 31-Jul-2018
665,Revenue,CAHD,Bed Purchasing - South,Permanent Nursing,Blossom Field,4587.56, 31-Jul-2018
666,Revenue,CAHD,South Glos Users in South Glos Homes,Permanent Nursing,Blossom Field,2056.08, 31-Jul-2018
667,Revenue,CAHD,South Glos Users in South Glos Homes,Permanent Nursing,Blossom Field,632.64, 31-Jul-2018
668,Revenue,CAHD,Bed Purchasing - South,Fees & Charges Income - General,Blossom Field,1373.07, 31-Jul-2018
669,Revenue,CAHD,Bed Purchasing - North,Permanent Nursing,Blossom Field,4259.20, 03-Jul-2018
670,Revenue,CAHD,South Glos Users in South Glos Homes,Permanent Nursing,Blossom Field,632.64, 03-Jul-2018
671,Revenue,CAHD,Bed Purchasing - North,Permanent Nursing,Blossom Field,4259.20, 31-Jul-2018
672,Revenue,CAHD,South Glos Users in South Glos Homes,Permanent Nursing,Blossom Field,632.64, 31-Jul-2018
673,Revenue,CAHD,Bed Purchasing - North,Permanent Nursing,Blossom Field,3896.72, 03-Jul-2018
674,Revenue,CAHD,South Glos Users in South Glos Homes,Permanent Nursing,Blossom Field,632.64, 03-Jul-2018
675,Revenue,CAHD,Bed Purchasing - North,Permanent Nursing,Blossom Field,3896.72, 31-Jul-2018
676,Revenue,CAHD,South Glos Users in South Glos Homes,Permanent Nursing,Blossom Field,632.64, 31-Jul-2018
677,Revenue,CAHD,South Glos Users in South Glos Homes,Permanent Nursing,Blossom Field,632.64, 03-Jul-2018
678,Revenue,CAHD,South Glos Users in South Glos Homes,Permanent Nursing,Blossom Field,632.64, 31-Jul-2018
679,Revenue,CAHD,Bed Purchasing - North,Permanent Nursing,Blossom Field,3549.76, 03-Jul-2018
680,Revenue,CAHD,South Glos Users in South Glos Homes,Permanent Nursing,Blossom Field,632.64, 03-Jul-2018
681,Revenue,CAHD,Bed Purchasing - North,Permanent Nursing,Blossom Field,3549.76, 31-Jul-2018
682,Revenue,CAHD,South Glos Users in South Glos Homes,Permanent Nursing,Blossom Field,632.64, 31-Jul-2018
683,Revenue,CAHD,South Glos Users in South Glos Homes,Permanent Nursing,Blossom Field,632.64, 03-Jul-2018
684,Revenue,CAHD,South Glos Users in South Glos Homes,Permanent Nursing,Blossom Field,632.64, 31-Jul-2018
685,Revenue,CAHD,CSC - Vinney Green Secure Unit,Furniture & Fittings Loose,Blue Elephant Catering Equipment Limited,7900.00, 06-Jul-2018
686,Revenue,CAHD,EARLY YEARS DEPRIVATION PAYMENT,Preventative Assistance,Bluebells Pre School,780.25, 06-Jul-2018
687,Revenue,CAHD,Home Care - Elderly - South,Other Small Contracts,Bluebird Care (South Gloucestershire),236.70, 24-Jul-2018
688,Revenue,CAHD,Home Care - Elderly - North,Other Small Contracts,Bluebird Care (South Gloucestershire),1794.53, 24-Jul-2018
689,Revenue,CAHD,Home Care - Elderly - North,Other Small Contracts,Bluebird Care (South Gloucestershire),1351.52, 24-Jul-2018
690,Revenue,CAHD,Home Care - Elderly - South,Other Small Contracts,Bluebird Care (South Gloucestershire),236.70, 24-Jul-2018
691,Revenue,CAHD,Home Care - Elderly - North,Other Small Contracts,Bluebird Care (South Gloucestershire),1354.34, 24-Jul-2018
692,Revenue,CAHD,Pathway 1 - Re-Ablement Home Care,Other Small Contracts,Bluebird Care (South Gloucestershire),958.85, 03-Jul-2018
693,Revenue,CAHD,Training - Adult Services,Training Expenses,Bob Dawson,1150.00, 12-Jul-2018
694,Revenue,CAHD,CSC - Allowances,Legal Fees,Bobbetts Mackan Solicitors & Advocates,473.36, 09-Jul-2018
695,Revenue,CAHD,CSC - Vinney Green Secure Unit,"Provisions (Food, etc)",Booker Cash & Carry,633.69, 30-Jul-2018
696,Revenue,CAHD,Schools Specific Grant Income,Other Public Bodies,Booktrust,516.72, 05-Jul-2018
697,Revenue,CAHD,Sexual Health,Other Small Contracts,Boots UK Ltd,515.64, 23-Jul-2018
698,Revenue,CAHD,Bed purchasing - S28A Under 65 - South,Permanent Residential,Bradbury House,4946.40, 03-Jul-2018
699,Revenue,CAHD,Bed purchasing - S28A Under 65 - South,Permanent Residential,Bradbury House,4946.40, 31-Jul-2018
700,Revenue,CAHD,Bed Purchasing - South,Permanent Residential,Bradbury House,2901.90, 03-Jul-2018
701,Revenue,CAHD,18-25 Year Olds,Permanent Residential,Bradbury House,9684.64, 03-Jul-2018
702,Revenue,CAHD,18-25 Year Olds,Permanent Residential,Bradbury House,9684.64, 31-Jul-2018
703,Revenue,CAHD,Bed Purchasing - North,Permanent Residential,Bradbury House,15164.90, 03-Jul-2018
704,Revenue,CAHD,Jointly Funded H&SC Packages,Permanent Residential,Bradbury House,20948.50, 03-Jul-2018
705,Revenue,CAHD,Bed Purchasing - North,Permanent Residential,Bradbury House,6065.96, 03-Jul-2018
706,Revenue,CAHD,Jointly Funded H&SC Packages,Permanent Residential,Bradbury House,8379.40, 03-Jul-2018
707,Revenue,CAHD,Bed Purchasing - North,Permanent Residential,Bradbury House,6065.96, 31-Jul-2018
708,Revenue,CAHD,Jointly Funded H&SC Packages,Permanent Residential,Bradbury House,8379.40, 31-Jul-2018
709,Revenue,CAHD,Bed Purchasing - North,Permanent Residential,Bradbury House,2751.32, 03-Jul-2018
710,Revenue,CAHD,Bed Purchasing - North,Permanent Residential,Bradbury House,2751.32, 31-Jul-2018
711,Revenue,CAHD,Home Care - Elderly - North,Other Small Contracts,Bramble Home Care Limited,1010.94, 26-Jul-2018
712,Revenue,CAHD,CSC - Residential Placements,Permanent Residential,Branas ISAF Ltd,20357.14, 02-Jul-2018
713,Revenue,CAHD,CSC - Residential Placements,Permanent Residential,Branas ISAF Ltd,19285.71, 26-Jul-2018
714,Revenue,CAHD,CSC - Residential Placements,Permanent Residential,Branas ISAF Ltd,19285.71, 26-Jul-2018
715,Revenue,CAHD,Social Lettings Agency,Fees - General,Individual,11.41, 03-Jul-2018
716,Revenue,CAHD,Social Lettings Agency,Other Supplies & Services,Individual,746.54, 03-Jul-2018
717,Revenue,CAHD,Bed Purchasing - Southmead Hospital,Permanent Residential,Bridge House Care Home,2469.12, 03-Jul-2018
718,Revenue,CAHD,Bed Purchasing - Southmead Hospital,Permanent Residential,Bridge House Care Home,2469.12, 31-Jul-2018
719,Revenue,CAHD,Bed Purchasing - North,Permanent Residential,Bridge House Care Home,2427.40, 03-Jul-2018
720,Revenue,CAHD,Bed Purchasing - North,Permanent Residential,Bridge House Care Home,2427.40, 31-Jul-2018
721,Revenue,CAHD,Bed Purchasing - North,Permanent Residential,Bridge House Care Home,638.13, 03-Jul-2018
722,Revenue,CAHD,Bed Purchasing - North,Permanent Residential,Bridgwater Court,10521.12, 03-Jul-2018
723,Revenue,CAHD,Bed Purchasing - North,Permanent Residential,Bridgwater Court,10521.12, 31-Jul-2018
724,Revenue,CAHD,EARLY YEARS DEPRIVATION PAYMENT,Preventative Assistance,Bright Sparks,508.86, 06-Jul-2018
725,Revenue,CAHD,Yate Detached,Rent,Brimsham Green School,645.46, 30-Jul-2018
726,Revenue,CAHD,Statemented Support Academies,Schools Funding,Bristol & South Gloucestershire UTC,7298.24, 26-Jul-2018
727,Revenue,CAHD,0-25 Management Team,Grants to Voluntary Bodies,Bristol City Council,17952.00, 30-Jul-2018
728,Revenue,CAHD,Transport OLA Special Schools and RB,Client Transport,Bristol City Council,2152.75, 06-Jul-2018
729,Revenue,CAHD,Early Years Development,Membership Fees,Bristol City Council,583.00, 27-Jul-2018
730,Revenue,CAHD,Schools Specific Grant Income,Other Public Bodies,Bristol City Council,630.00, 02-Jul-2018
731,Revenue,CAHD,Schools Specific Grant Income,Other Public Bodies,Bristol City Council,630.00, 02-Jul-2018
732,Revenue,CAHD,Placements OLA Special Schools and RB,Other L.A.'s - General,Bristol City Council - Schools,2050.17, 27-Jul-2018
733,Revenue,CAHD,Placements OLA Special Schools and RB,Other L.A.'s - General,Bristol City Council - Schools,2578.00, 27-Jul-2018
734,Revenue,CAHD,Placements OLA Special Schools and RB,Other L.A.'s - General,Bristol City Council - Schools,1350.17, 27-Jul-2018
735,Revenue,CAHD,Statemented Support Payments to OLAs,Other L.A.'s - General,Bristol City Council - Schools,1378.83, 26-Jul-2018
736,Revenue,CAHD,Statemented Support Payments to OLAs,Other L.A.'s - General,Bristol City Council - Schools,1296.28, 26-Jul-2018
737,Revenue,CAHD,Placements OLA Special Schools and RB,Other L.A.'s - General,Bristol City Council - Schools,914.33, 27-Jul-2018
738,Revenue,CAHD,Placements OLA Special Schools and RB,Other L.A.'s - General,Bristol City Council - Schools,2578.00, 27-Jul-2018
739,Revenue,CAHD,Placements OLA Special Schools and RB,Other L.A.'s - General,Bristol City Council - Schools,1305.58, 27-Jul-2018
740,Revenue,CAHD,Placements OLA Special Schools and RB,Other L.A.'s - General,Bristol City Council - Schools,1244.17, 27-Jul-2018
741,Revenue,CAHD,Placements OLA Special Schools and RB,Other L.A.'s - General,Bristol City Council - Schools,3356.33, 27-Jul-2018
742,Revenue,CAHD,Placements OLA Special Schools and RB,Other L.A.'s - General,Bristol City Council - Schools,7311.58, 27-Jul-2018
743,Revenue,CAHD,Statemented Support Payments to OLAs,Other L.A.'s - General,Bristol City Council - Schools,907.16, 26-Jul-2018
744,Revenue,CAHD,Placements OLA Special Schools and RB,Other L.A.'s - General,Bristol City Council - Schools,2578.00, 27-Jul-2018
745,Revenue,CAHD,Placements OLA Special Schools and RB,Other L.A.'s - General,Bristol City Council - Schools,1381.00, 27-Jul-2018
746,Revenue,CAHD,Placements OLA Special Schools and RB,Other L.A.'s - General,Bristol City Council - Schools,2050.17, 27-Jul-2018
747,Revenue,CAHD,Placements OLA Special Schools and RB,Other L.A.'s - General,Bristol City Council - Schools,914.33, 27-Jul-2018
748,Revenue,CAHD,Placements OLA Special Schools and RB,Other L.A.'s - General,Bristol City Council - Schools,1381.00, 27-Jul-2018
749,Revenue,CAHD,Placements OLA Special Schools and RB,Other L.A.'s - General,Bristol City Council - Schools,2050.17, 27-Jul-2018
750,Revenue,CAHD,Placements OLA Special Schools and RB,Other L.A.'s - General,Bristol City Council - Schools,2578.00, 27-Jul-2018
751,Revenue,CAHD,Placements OLA Special Schools and RB,Other L.A.'s - General,Bristol City Council - Schools,809.00, 27-Jul-2018
752,Revenue,CAHD,Placements OLA Special Schools and RB,Other L.A.'s - General,Bristol City Council - Schools,883.50, 27-Jul-2018
753,Revenue,CAHD,Placements OLA Special Schools and RB,Other L.A.'s - General,Bristol City Council - Schools,4107.54, 27-Jul-2018
754,Revenue,CAHD,Placements OLA Special Schools and RB,Other L.A.'s - General,Bristol City Council - Schools,1031.20, 27-Jul-2018
755,Revenue,CAHD,Placements OLA Special Schools and RB,Other L.A.'s - General,Bristol City Council - Schools,2578.00, 27-Jul-2018
756,Revenue,CAHD,Placements OLA Special Schools and RB,Other L.A.'s - General,Bristol City Council - Schools,809.00, 27-Jul-2018
757,Revenue,CAHD,Placements OLA Special Schools and RB,Other L.A.'s - General,Bristol City Council - Schools,2578.00, 27-Jul-2018
758,Revenue,CAHD,Placements OLA Special Schools and RB,Other L.A.'s - General,Bristol City Council - Schools,883.50, 27-Jul-2018
759,Revenue,CAHD,Placements OLA Special Schools and RB,Other L.A.'s - General,Bristol City Council - Schools,2062.40, 27-Jul-2018
760,Revenue,CAHD,Placements OLA Special Schools and RB,Other L.A.'s - General,Bristol City Council - Schools,2578.00, 27-Jul-2018
761,Revenue,CAHD,Placements OLA Special Schools and RB,Other L.A.'s - General,Bristol City Council - Schools,2859.33, 27-Jul-2018
762,Revenue,CAHD,Placements OLA Special Schools and RB,Other L.A.'s - General,Bristol City Council - Schools,883.50, 27-Jul-2018
763,Revenue,CAHD,Home Care - Elderly - North,Day Care / Social Activities,Bristol Community Links North,1015.20, 03-Jul-2018
764,Revenue,CAHD,Home Care - Elderly - North,Day Care / Social Activities,Bristol Community Links North,1015.20, 31-Jul-2018
765,Revenue,CAHD,CSC - Asylum Seekers - Unaccompanied,Lecturers (P/T Claims) Pay,Bristol Tuition Limited,1744.00, 12-Jul-2018
766,Revenue,CAHD,CSC - Asylum Seekers - Unaccompanied,Lecturers (P/T Claims) Pay,Bristol Tuition Limited,2374.00, 13-Jul-2018
767,Revenue,CAHD,Statemented Support Payments to OLAs,Other L.A.'s - General,Broadlands Academy,1331.66, 26-Jul-2018
768,Revenue,CAHD,South Glos Users in South Glos Homes,Permanent Nursing,Brunelcare,677.83, 13-Jul-2018
769,Revenue,CAHD,South Glos Users in South Glos Homes,Permanent Nursing,Brunelcare,677.83, 13-Jul-2018
770,Revenue,CAHD,South Glos Users in South Glos Homes,Permanent Nursing,Brunelcare,677.83, 13-Jul-2018
771,Revenue,CAHD,South Glos Users in South Glos Homes,Permanent Nursing,Brunelcare,677.83, 13-Jul-2018
772,Revenue,CAHD,South Glos Users in South Glos Homes,Permanent Nursing,Brunelcare,677.83, 13-Jul-2018
773,Revenue,CAHD,South Glos Users in South Glos Homes,Permanent Nursing,Brunelcare,677.83, 13-Jul-2018
774,Revenue,CAHD,South Glos Users in South Glos Homes,Permanent Nursing,Brunelcare,677.83, 13-Jul-2018
775,Revenue,CAHD,South Glos Users in South Glos Homes,Permanent Nursing,Brunelcare,677.83, 13-Jul-2018
776,Revenue,CAHD,South Glos Users in South Glos Homes,Permanent Nursing,Brunelcare,677.83, 13-Jul-2018
777,Revenue,CAHD,South Glos Users in South Glos Homes,Permanent Nursing,Brunelcare,677.83, 13-Jul-2018
778,Revenue,CAHD,South Glos Users in South Glos Homes,Permanent Nursing,Brunelcare,677.83, 13-Jul-2018
779,Revenue,CAHD,Bed purchasing - Elderly S117 - South,Permanent Nursing,Brunelcare,4145.36, 13-Jul-2018
780,Revenue,CAHD,Bed purchasing - Elderly S117 - South,Permanent Nursing,Brunelcare,3467.53, 13-Jul-2018
781,Revenue,CAHD,Bed purchasing - Elderly S117 - South,Permanent Nursing,Brunelcare,3467.53, 13-Jul-2018
782,Revenue,CAHD,Bed Purchasing - Elderly S117- North,Permanent Nursing,Brunelcare,3467.53, 13-Jul-2018
783,Revenue,CAHD,Bed Purchasing - Elderly S117- North,Permanent Nursing,Brunelcare,3467.53, 13-Jul-2018
784,Revenue,CAHD,Bed Purchasing - Southmead Hospital,Permanent Nursing,Brunelcare,2337.64, 13-Jul-2018
785,Revenue,CAHD,Bed Purchasing - Southmead Hospital,Permanent Nursing,Brunelcare,2875.67, 13-Jul-2018
786,Revenue,CAHD,Bed Purchasing - South,Permanent Nursing,Brunelcare,2875.67, 13-Jul-2018
787,Revenue,CAHD,Bed Purchasing - South,Permanent Nursing,Brunelcare,2531.49, 13-Jul-2018
788,Revenue,CAHD,Bed Purchasing - South,Permanent Nursing,Brunelcare,2679.86, 13-Jul-2018
789,Revenue,CAHD,Bed Purchasing - South,Permanent Nursing,Brunelcare,2905.67, 13-Jul-2018
790,Revenue,CAHD,Bed Purchasing - South,Permanent Nursing,Brunelcare,2875.67, 13-Jul-2018
791,Revenue,CAHD,Enhanced Dementia Beds,Respite Planned - Nursing,Brunelcare,4152.86, 13-Jul-2018
792,Revenue,CAHD,Bed Purchasing - South,Respite Planned - Nursing,Brunelcare,924.67, 13-Jul-2018
793,Revenue,CAHD,Bed Purchasing - South,Respite Planned - Nursing,Brunelcare,809.09, 13-Jul-2018
794,Revenue,CAHD,Bed Purchasing - North,Permanent Nursing,Brunelcare,2835.47, 13-Jul-2018
795,Revenue,CAHD,Bed Purchasing - North,Permanent Nursing,Brunelcare,2791.41, 13-Jul-2018
796,Revenue,CAHD,Bed Purchasing - North,Permanent Nursing,Brunelcare,2875.67, 13-Jul-2018
797,Revenue,CAHD,Bed Purchasing - North,Permanent Nursing,Brunelcare,3467.53, 13-Jul-2018
798,Revenue,CAHD,Bed Purchasing - North,Respite Planned - Nursing,Brunelcare,577.92, 13-Jul-2018
799,Revenue,CAHD,Bed Purchasing - North,Respite Planned - Nursing,Brunelcare,690.89, 13-Jul-2018
800,Revenue,CAHD,Bed Purchasing - South,Respite Emergency - Nursing,Brunelcare,1618.18, 13-Jul-2018
801,Revenue,CAHD,Enhanced Dementia Beds,Respite Planned - Nursing,Brunelcare,3460.71, 13-Jul-2018
802,Revenue,CAHD,Pathway 2 - (Interim Beds),Permanent Nursing,Brunelcare,17511.00, 19-Jul-2018
803,Revenue,CAHD,Home Care - Elderly - South,Day Care / Social Activities,Brunelcare,150.15, 06-Jul-2018
804,Revenue,CAHD,Home Care - Elderly - South,Other Small Contracts,Brunelcare,13727.35, 06-Jul-2018
805,Revenue,CAHD,Home Care - Elderly - North,Other Small Contracts,Brunelcare,2811.90, 06-Jul-2018
806,Revenue,CAHD,Pathway 1 - Re-Ablement Home Care,Other Small Contracts,Brunelcare,8321.95, 20-Jul-2018
807,Revenue,CAHD,Pathway 1 - Re-Ablement Home Care,Other Small Contracts,Brunelcare,1961.05, 31-Jul-2018
808,Revenue,CAHD,Pathway 1 - Re-Ablement Home Care,Other Small Contracts,Brunelcare,2830.10, 31-Jul-2018
809,Revenue,CAHD,Pathway 1 - Re-Ablement Home Care,Other Small Contracts,Brunelcare,1774.50, 31-Jul-2018
810,Revenue,CAHD,Early Years Inclusion Fund,Other Public Bodies,Buckingham Gardens Day Nursery,1000.00, 13-Jul-2018
811,Revenue,CAHD,Bed Purchasing - North,Permanent Nursing,Bupa Care Services  Bridge House,1796.12, 03-Jul-2018
812,Revenue,CAHD,Jointly Funded H&SC Packages,Permanent Nursing,Bupa Care Services  Bridge House,4484.08, 03-Jul-2018
813,Revenue,CAHD,South Glos Users in all other LA Homes,Permanent Nursing,Bupa Care Services  Bridge House,870.36, 03-Jul-2018
814,Revenue,CAHD,Bed Purchasing - North,Permanent Nursing,Bupa Care Services  Bridge House,1796.12, 31-Jul-2018
815,Revenue,CAHD,Jointly Funded H&SC Packages,Permanent Nursing,Bupa Care Services  Bridge House,4484.08, 31-Jul-2018
816,Revenue,CAHD,South Glos Users in all other LA Homes,Permanent Nursing,Bupa Care Services  Bridge House,870.36, 31-Jul-2018
817,Revenue,CAHD,Bed Purchasing - North,Permanent Nursing,Bupa Care Services  Bridge House,2442.86, 03-Jul-2018
818,Revenue,CAHD,Bed Purchasing - North,Permanent Nursing,Bupa Care Services  Bridge House,2985.71, 03-Jul-2018
819,Revenue,CAHD,Bed Purchasing - North,Permanent Nursing,Bupa Care Services  Bridge House,3800.00, 31-Jul-2018
820,Revenue,CAHD,Training Budget - Children`s Social Serv,Training Expenses,BW Training & Coaching Ltd,1800.00, 02-Jul-2018
821,Revenue,CAHD,Training Budget - Children`s Social Serv,Training Expenses,BW Training & Coaching Ltd,900.00, 02-Jul-2018
822,Revenue,CAHD,Training Budget - Children`s Social Serv,Training Expenses,BW Training & Coaching Ltd,500.00, 04-Jul-2018
823,Revenue,CAHD,Training Budget - Children`s Social Serv,Training Expenses,BW Training & Coaching Ltd,1800.00, 12-Jul-2018
824,Revenue,CAHD,CSC - Vinney Green Secure Unit,R & M by Departments,BWS Standfast Fire & Security Systems,961.00, 30-Jul-2018
825,Revenue,CAHD,School Improvement and Support,Consultants Fees,Cabot Learning Federation,3400.00, 24-Jul-2018
826,Revenue,CAHD,Academy Resource Base Funding,Other Public Bodies,Cabot Learning Federation,1175.88, 24-Jul-2018
827,Revenue,CAHD,Academy Resource Base Funding,Other Public Bodies,Cabot Learning Federation,1540.83, 24-Jul-2018
828,Revenue,CAHD,Academy Resource Base Funding,Other Public Bodies,Cabot Learning Federation,1702.96, 24-Jul-2018
829,Revenue,CAHD,Academy Resource Base Funding,Other Public Bodies,Cabot Learning Federation,1175.88, 24-Jul-2018
830,Revenue,CAHD,Academy Resource Base Funding,Other Public Bodies,Cabot Learning Federation,1540.83, 24-Jul-2018
831,Revenue,CAHD,Academy Resource Base Funding,Other Public Bodies,Cabot Learning Federation,1175.88, 24-Jul-2018
832,Revenue,CAHD,Academy Resource Base Funding,Other Public Bodies,Cabot Learning Federation,1540.83, 24-Jul-2018
833,Revenue,CAHD,Academy Resource Base Funding,Other Public Bodies,Cabot Learning Federation,1175.88, 24-Jul-2018
834,Revenue,CAHD,Academy Resource Base Funding,Other Public Bodies,Cabot Learning Federation,648.71, 24-Jul-2018
835,Revenue,CAHD,Academy Resource Base Funding,Other Public Bodies,Cabot Learning Federation,1702.96, 24-Jul-2018
836,Revenue,CAHD,Academy Resource Base Funding,Other Public Bodies,Cabot Learning Federation,1540.83, 24-Jul-2018
837,Revenue,CAHD,Academy Resource Base Funding,Other Public Bodies,Cabot Learning Federation,892.04, 24-Jul-2018
838,Revenue,CAHD,Schools Block Growth Contingency,Other Public Bodies,Cabot Learning Federation,20833.33, 24-Jul-2018
839,Revenue,CAHD,Statemented Support Payments to OLAs,Other L.A.'s - General,Cabot Learning Federation,518.03, 26-Jul-2018
840,Revenue,CAHD,Statemented Support Academies,Schools Funding,Cabot Learning Federation,706.70, 26-Jul-2018
841,Revenue,CAHD,Statemented Support Academies,Schools Funding,Cabot Learning Federation,753.87, 26-Jul-2018
842,Revenue,CAHD,Statemented Support Academies,Schools Funding,Cabot Learning Federation,659.53, 26-Jul-2018
843,Revenue,CAHD,Statemented Support Academies,Schools Funding,Cabot Learning Federation,706.70, 26-Jul-2018
844,Revenue,CAHD,Statemented Support Academies,Schools Funding,Cabot Learning Federation,518.03, 26-Jul-2018
845,Revenue,CAHD,Statemented Support Academies,Schools Funding,Cabot Learning Federation,836.41, 26-Jul-2018
846,Revenue,CAHD,Statemented Support Academies,Schools Funding,Cabot Learning Federation,553.41, 26-Jul-2018
847,Revenue,CAHD,Statemented Support Academies,Schools Funding,Cabot Learning Federation,553.41, 26-Jul-2018
848,Revenue,CAHD,Statemented Support Academies,Schools Funding,Cabot Learning Federation,576.99, 26-Jul-2018
849,Revenue,CAHD,Statemented Support Academies,Schools Funding,Cabot Learning Federation,753.87, 26-Jul-2018
850,Revenue,CAHD,Statemented Support Academies,Schools Funding,Cabot Learning Federation,954.33, 26-Jul-2018
851,Revenue,CAHD,Statemented Support Academies,Schools Funding,Cabot Learning Federation,706.70, 26-Jul-2018
852,Revenue,CAHD,Statemented Support Academies,Schools Funding,Cabot Learning Federation,553.41, 26-Jul-2018
853,Revenue,CAHD,Statemented Support Academies,Schools Funding,Cabot Learning Federation,694.91, 26-Jul-2018
854,Revenue,CAHD,Statemented Support Academies,Schools Funding,Cabot Learning Federation,529.83, 26-Jul-2018
855,Revenue,CAHD,Statemented Support Academies,Schools Funding,Cabot Learning Federation,883.58, 26-Jul-2018
856,Revenue,CAHD,Statemented Support Academies,Schools Funding,Cabot Learning Federation,694.91, 26-Jul-2018
857,Revenue,CAHD,Statemented Support Academies,Schools Funding,Cabot Learning Federation,1084.03, 26-Jul-2018
858,Revenue,CAHD,Statemented Support Academies,Schools Funding,Cabot Learning Federation,954.33, 26-Jul-2018
859,Revenue,CAHD,Statemented Support Payments to OLAs,Other L.A.'s - General,Cabot Learning Federation,600.58, 26-Jul-2018
860,Revenue,CAHD,Statemented Support Academies,Schools Funding,Cabot Learning Federation,859.99, 26-Jul-2018
861,Revenue,CAHD,Statemented Support Academies,Schools Funding,Cabot Learning Federation,600.58, 26-Jul-2018
862,Revenue,CAHD,Statemented Support Academies,Schools Funding,Cabot Learning Federation,1048.66, 26-Jul-2018
863,Revenue,CAHD,Statemented Support Academies,Schools Funding,Cabot Learning Federation,506.24, 26-Jul-2018
864,Revenue,CAHD,Statemented Support Academies,Schools Funding,Cabot Learning Federation,1048.66, 26-Jul-2018
865,Revenue,CAHD,Statemented Support Payments to OLAs,Other L.A.'s - General,Cabot Learning Federation,600.58, 26-Jul-2018
866,Revenue,CAHD,Statemented Support Payments to OLAs,Other L.A.'s - General,Cabot Learning Federation,1072.24, 26-Jul-2018
867,Revenue,CAHD,Statemented Support Payments to OLAs,Other L.A.'s - General,Cabot Learning Federation,588.78, 26-Jul-2018
868,Revenue,CAHD,Statemented Support Academies,Schools Funding,Cabot Learning Federation,918.95, 26-Jul-2018
869,Revenue,CAHD,Schools Specific Grant Income,Other Public Bodies,Caerphilly County Borough Council,630.00, 20-Jul-2018
870,Revenue,CAHD,CSC - Residential Placements,Permanent Residential,Cambian Asperger Syndrome Services Limited,2891.88, 26-Jul-2018
871,Revenue,CAHD,CSC - Residential Placements,Permanent Residential,Cambian Asperger Syndrome Services Limited,43860.18, 26-Jul-2018
872,Revenue,CAHD,CSC - Residential Placements,Permanent Residential,Cambian Asperger Syndrome Services Limited,2409.90, 26-Jul-2018
873,Revenue,CAHD,18-25 Year Olds,Respite Planned - Residential,Cambian Whinfell School Limited,1838.92, 13-Jul-2018
874,Revenue,CAHD,18-25 Year Olds,Respite Planned - Residential,Cambian Whinfell School Limited,919.46, 13-Jul-2018
875,Revenue,CAHD,18-25 Year Olds,Respite Planned - Residential,Cambian Whinfell School Limited,919.46, 13-Jul-2018
876,Revenue,CAHD,18-25 Year Olds,Respite Planned - Residential,Cambian Whinfell School Limited,3218.11, 13-Jul-2018
877,Revenue,CAHD,18-25 Year Olds,Respite Planned - Residential,Cambian Whinfell School Limited,1379.19, 19-Jul-2018
878,Revenue,CAHD,Early Years Development,Membership Fees,Cambium Sustainable Landscapes & Training,832.00, 30-Jul-2018
879,Revenue,CAHD,Home Care - Elderly - North,Day Care / Social Activities,Camphill Communities Thornbury Limited,957.94, 06-Jul-2018
880,Revenue,CAHD,Home Care - Elderly - North,Other Small Contracts,Camphill Communities Thornbury Limited,54.48, 06-Jul-2018
881,Revenue,CAHD,Home Care - Elderly - North,Supported Living,Camphill Communities Thornbury Limited,998.80, 06-Jul-2018
882,Revenue,CAHD,Home Care - Elderly - North,Day Care / Social Activities,Camphill Communities Thornbury Limited,1112.30, 13-Jul-2018
883,Revenue,CAHD,Home Care - Elderly - North,Other Small Contracts,Camphill Communities Thornbury Limited,167.98, 13-Jul-2018
884,Revenue,CAHD,Home Care - Elderly - North,Supported Living,Camphill Communities Thornbury Limited,1007.88, 13-Jul-2018
885,Revenue,CAHD,Home Care - Elderly - North,Day Care / Social Activities,Camphill Communities Thornbury Limited,971.56, 20-Jul-2018
886,Revenue,CAHD,Home Care - Elderly - North,Other Small Contracts,Camphill Communities Thornbury Limited,163.44, 20-Jul-2018
887,Revenue,CAHD,Home Care - Elderly - North,Supported Living,Camphill Communities Thornbury Limited,876.22, 20-Jul-2018
888,Revenue,CAHD,Home Care - Elderly - North,Day Care / Social Activities,Camphill Communities Thornbury Limited,871.68, 27-Jul-2018
889,Revenue,CAHD,Home Care - Elderly - North,Other Small Contracts,Camphill Communities Thornbury Limited,177.06, 27-Jul-2018
890,Revenue,CAHD,Home Care - Elderly - North,Supported Living,Camphill Communities Thornbury Limited,962.48, 27-Jul-2018
891,Revenue,CAHD,Bed Purchasing - Elderly S117- North,Permanent Residential,Canjayor,2468.44, 03-Jul-2018
892,Revenue,CAHD,Bed Purchasing - Elderly S117- North,Permanent Residential,Canjayor,2468.44, 31-Jul-2018
893,Revenue,CAHD,Home Care - Elderly - South,Other Small Contracts,Care 1st Homecare,1553.80, 27-Jul-2018
894,Revenue,CAHD,Home Care - Elderly - North,Other Small Contracts,Care 1st Homecare,1105.94, 27-Jul-2018
895,Revenue,CAHD,Younger MH non-res purchasing,Other Small Contracts,Care 1st Homecare,127.96, 27-Jul-2018
896,Revenue,CAHD,Home Care - Elderly - South,Other Small Contracts,Care 1st Homecare,1508.10, 27-Jul-2018
897,Revenue,CAHD,Home Care - Elderly - North,Other Small Contracts,Care 1st Homecare,914.00, 27-Jul-2018
898,Revenue,CAHD,Younger MH non-res purchasing,Other Small Contracts,Care 1st Homecare,127.96, 27-Jul-2018
899,Revenue,CAHD,18-25 Year Olds,Other Small Contracts,Care Horizons Limited,178.98, 31-Jul-2018
900,Revenue,CAHD,Home Care - Elderly - South,Other Small Contracts,Care Horizons Limited,833.67, 31-Jul-2018
901,Revenue,CAHD,Home Care - Elderly - North,Day Care / Social Activities,Care Horizons Limited,348.54, 31-Jul-2018
902,Revenue,CAHD,Home Care - Elderly - North,Other Small Contracts,Care Horizons Limited,518.10, 31-Jul-2018
903,Revenue,CAHD,Younger MH non-res purchasing,Other Small Contracts,Care Horizons Limited,226.08, 31-Jul-2018
904,Revenue,CAHD,18-25 Year Olds,Other Small Contracts,Care Horizons Limited,188.40, 17-Jul-2018
905,Revenue,CAHD,Home Care - Elderly - South,Other Small Contracts,Care Horizons Limited,923.16, 17-Jul-2018
906,Revenue,CAHD,Home Care - Elderly - North,Day Care / Social Activities,Care Horizons Limited,376.80, 17-Jul-2018
907,Revenue,CAHD,Home Care - Elderly - North,Other Small Contracts,Care Horizons Limited,480.42, 17-Jul-2018
908,Revenue,CAHD,Younger MH non-res purchasing,Other Small Contracts,Care Horizons Limited,226.08, 17-Jul-2018
909,Revenue,CAHD,Home Care - Elderly - South,Other Small Contracts,Caring Comes 1st Ltd,654.90, 03-Jul-2018
910,Revenue,CAHD,Statemented Support Academies,Schools Funding,Castle School Education Trust,659.53, 26-Jul-2018
911,Revenue,CAHD,Statemented Support Academies,Schools Funding,Castle School Education Trust,635.95, 26-Jul-2018
912,Revenue,CAHD,Statemented Support Academies,Schools Funding,Castle School Education Trust,918.95, 26-Jul-2018
913,Revenue,CAHD,Statemented Support Academies,Schools Funding,Castle School Education Trust,1072.24, 26-Jul-2018
914,Revenue,CAHD,Statemented Support Academies,Schools Funding,Castle School Education Trust,683.12, 26-Jul-2018
915,Revenue,CAHD,Statemented Support Academies,Schools Funding,Castle School Education Trust,1602.87, 26-Jul-2018
916,Revenue,CAHD,Statemented Support Academies,Schools Funding,Castle School Education Trust,1142.99, 26-Jul-2018
917,Revenue,CAHD,Statemented Support Academies,Schools Funding,Castle School Education Trust,1260.91, 26-Jul-2018
918,Revenue,CAHD,Statemented Support Academies,Schools Funding,Castle School Education Trust,647.74, 26-Jul-2018
919,Revenue,CAHD,Statemented Support Academies,Schools Funding,Castle School Education Trust,730.28, 26-Jul-2018
920,Revenue,CAHD,Statemented Support Academies,Schools Funding,Castle School Education Trust,1095.83, 26-Jul-2018
921,Revenue,CAHD,Statemented Support Academies,Schools Funding,Castle School Education Trust,718.49, 26-Jul-2018
922,Revenue,CAHD,Statemented Support Academies,Schools Funding,Castle School Education Trust,812.83, 26-Jul-2018
923,Revenue,CAHD,Statemented Support Academies,Schools Funding,Castle School Education Trust,553.41, 26-Jul-2018
924,Revenue,CAHD,Statemented Support Academies,Schools Funding,Castle School Education Trust,765.66, 26-Jul-2018
925,Revenue,CAHD,Statemented Support Academies,Schools Funding,Castle School Education Trust,966.12, 26-Jul-2018
926,Revenue,CAHD,Statemented Support Academies,Schools Funding,Castle School Education Trust,989.70, 26-Jul-2018
927,Revenue,CAHD,Statemented Support Academies,Schools Funding,Castle School Education Trust,576.99, 26-Jul-2018
928,Revenue,CAHD,Statemented Support Academies,Schools Funding,Castle School Education Trust,1378.83, 26-Jul-2018
929,Revenue,CAHD,Statemented Support Academies,Schools Funding,Castle School Education Trust,1201.95, 26-Jul-2018
930,Revenue,CAHD,Statemented Support Academies,Schools Funding,Castle School Education Trust,659.53, 26-Jul-2018
931,Revenue,CAHD,Statemented Support Academies,Schools Funding,Castle School Education Trust,718.49, 26-Jul-2018
932,Revenue,CAHD,Schools Block Growth Contingency,Other Public Bodies,Castle School Education Trust,20833.33, 24-Jul-2018
933,Revenue,CAHD,Academy Resource Base Funding,Other Public Bodies,Castle School Education Trust,1702.96, 24-Jul-2018
934,Revenue,CAHD,Academy Resource Base Funding,Other Public Bodies,Castle School Education Trust,2189.53, 24-Jul-2018
935,Revenue,CAHD,Academy Resource Base Funding,Other Public Bodies,Castle School Education Trust,1702.96, 24-Jul-2018
936,Revenue,CAHD,Academy Resource Base Funding,Other Public Bodies,Castle School Education Trust,1702.96, 24-Jul-2018
937,Revenue,CAHD,Statemented Support Academies,Schools Funding,Castle School Education Trust,612.37, 26-Jul-2018
938,Revenue,CAHD,Statemented Support Academies,Schools Funding,Castle School Education Trust,1626.45, 26-Jul-2018
939,Revenue,CAHD,Statemented Support Academies,Schools Funding,Castle School Education Trust,812.83, 26-Jul-2018
940,Revenue,CAHD,Statemented Support Academies,Schools Funding,Castle School Education Trust,706.70, 26-Jul-2018
941,Revenue,CAHD,Statemented Support Academies,Schools Funding,Castle School Education Trust,588.78, 26-Jul-2018
942,Revenue,CAHD,Statemented Support Academies,Schools Funding,Castle School Education Trust,989.70, 26-Jul-2018
943,Revenue,CAHD,Statemented Support Academies,Schools Funding,Castle School Education Trust,1048.66, 26-Jul-2018
944,Revenue,CAHD,Statemented Support Academies,Schools Funding,Castle School Education Trust,1331.66, 26-Jul-2018
945,Revenue,CAHD,Statemented Support Academies,Schools Funding,Castle School Education Trust,1697.20, 26-Jul-2018
946,Revenue,CAHD,Statemented Support Academies,Schools Funding,Castle School Education Trust,1166.58, 26-Jul-2018
947,Revenue,CAHD,Statemented Support Academies,Schools Funding,Castle School Education Trust,918.95, 26-Jul-2018
948,Revenue,CAHD,Home Care - Elderly - North,Day Care / Social Activities,Causeway House,1202.80, 03-Jul-2018
949,Revenue,CAHD,Home Care - Elderly - North,Day Care / Social Activities,Causeway House,1202.80, 31-Jul-2018
950,Revenue,CAHD,Home Care - Elderly - South,Day Care / Social Activities,Causeway House,5130.52, 03-Jul-2018
951,Revenue,CAHD,Home Care - Elderly - South,Day Care / Social Activities,Causeway House,5130.52, 31-Jul-2018
952,Revenue,CAHD,18-25 Year Olds,Day Care / Social Activities,Causeway House,4311.60, 31-Jul-2018
953,Revenue,CAHD,18-25 Year Olds,Day Care / Social Activities,Causeway House,693.90, 31-Jul-2018
954,Revenue,CAHD,Home Care - Elderly - North,Day Care / Social Activities,Causeway House,4393.52, 03-Jul-2018
955,Revenue,CAHD,Home Care - Elderly - North,Day Care / Social Activities,Causeway House,4393.52, 31-Jul-2018
956,Revenue,CAHD,Home Care - Elderly - North,Day Care / Social Activities,Causeway House,3800.76, 03-Jul-2018
957,Revenue,CAHD,Home Care - Elderly - North,Day Care / Social Activities,Causeway House,3800.76, 31-Jul-2018
958,Revenue,CAHD,Home Care - Elderly - North,Day Care / Social Activities,Causeway House,2029.16, 03-Jul-2018
959,Revenue,CAHD,Home Care - Elderly - North,Day Care / Social Activities,Causeway House,2029.16, 31-Jul-2018
960,Revenue,CAHD,Home Care - Elderly - North,Day Care / Social Activities,Causeway House,3150.88, 03-Jul-2018
961,Revenue,CAHD,Home Care - Elderly - North,Day Care / Social Activities,Causeway House,3150.88, 31-Jul-2018
962,Revenue,CAHD,Home Care - Elderly - North,Day Care / Social Activities,Causeway House,4694.24, 03-Jul-2018
963,Revenue,CAHD,Home Care - Elderly - North,Day Care / Social Activities,Causeway House,4694.24, 31-Jul-2018
964,Revenue,CAHD,Home Care - Elderly - North,Day Care / Social Activities,Causeway House,3566.88, 03-Jul-2018
965,Revenue,CAHD,Home Care - Elderly - North,Day Care / Social Activities,Causeway House,3566.88, 31-Jul-2018
966,Revenue,CAHD,Home Care - Elderly - North,Day Care / Social Activities,Causeway House,3075.56, 03-Jul-2018
967,Revenue,CAHD,Home Care - Elderly - North,Day Care / Social Activities,Causeway House,3075.56, 31-Jul-2018
968,Revenue,CAHD,Home Care - Elderly - North,Day Care / Social Activities,Causeway House,555.12, 03-Jul-2018
969,Revenue,CAHD,Home Care - Elderly - North,Day Care / Social Activities,Causeway House,555.12, 31-Jul-2018
970,Revenue,CAHD,Bed Purchasing - Elderly S117- North,Permanent Nursing,Cedar Care Homes Limited,4434.68, 03-Jul-2018
971,Revenue,CAHD,Bed Purchasing - Elderly S117- North,Permanent Nursing,Cedar Care Homes Limited,4434.68, 31-Jul-2018
972,Revenue,CAHD,Bed Purchasing - Elderly S117- North,Permanent Residential,Challenge House,2511.12, 03-Jul-2018
973,Revenue,CAHD,Bed Purchasing - Elderly S117- North,Permanent Residential,Challenge House,2511.12, 31-Jul-2018
974,Revenue,CAHD,Bed Purchasing - Southmead Hospital,Respite Emergency - Residential,Challenge House,2315.16, 03-Jul-2018
975,Revenue,CAHD,Bed Purchasing - Southmead Hospital,Respite Emergency - Residential,Challenge House,2315.16, 31-Jul-2018
976,Revenue,CAHD,Bed Purchasing - Southmead Hospital,Respite Planned - Residential,Challenge House,1496.61, 03-Jul-2018
977,Revenue,CAHD,Bed Purchasing - North,Permanent Residential,Challenge House,2180.68, 03-Jul-2018
978,Revenue,CAHD,Bed Purchasing - North,Permanent Residential,Challenge House,2180.68, 31-Jul-2018
979,Revenue,CAHD,Bed Purchasing - North,Permanent Residential,Challenge House,2315.16, 03-Jul-2018
980,Revenue,CAHD,Bed Purchasing - North,Permanent Residential,Challenge House,2315.16, 31-Jul-2018
981,Revenue,CAHD,Bed Purchasing - North,Permanent Residential,Challenge House,2262.20, 03-Jul-2018
982,Revenue,CAHD,Bed Purchasing - North,Permanent Residential,Challenge House,2262.20, 31-Jul-2018
983,Revenue,CAHD,Bed Purchasing - North,Permanent Residential,Challenge House,2039.72, 03-Jul-2018
984,Revenue,CAHD,Bed Purchasing - North,Permanent Residential,Challenge House,2039.72, 31-Jul-2018
985,Revenue,CAHD,Bed Purchasing - North,Permanent Nursing,Challenge House,6114.00, 31-Jul-2018
986,Revenue,CAHD,Bed Purchasing - Elderly S117- North,Permanent Nursing,Challenge House,4679.28, 31-Jul-2018
987,Revenue,CAHD,Bed Purchasing - Southmead Hospital,Permanent Residential,Challenge House,4687.44, 31-Jul-2018
988,Revenue,CAHD,Bed Purchasing - North,Permanent Residential,Challenge House,5367.68, 31-Jul-2018
989,Revenue,CAHD,Bed Purchasing - Southmead Hospital,Permanent Nursing,Challenge House,5022.24, 31-Jul-2018
990,Revenue,CAHD,Bed Purchasing - Southmead Hospital,Permanent Nursing,Challenge House,1714.29, 31-Jul-2018
991,Revenue,CAHD,Bed Purchasing - Southmead Hospital,Permanent Nursing,Challenge House,1178.57, 31-Jul-2018
992,Revenue,CAHD,Bed Purchasing - Southmead Hospital,Respite Emergency - Residential,Challenge House,3214.29, 31-Jul-2018
993,Revenue,CAHD,Bed Purchasing - Southmead Hospital,Respite Emergency - Residential,Challenge House,2142.86, 31-Jul-2018
994,Revenue,CAHD,Bed Purchasing - North,Permanent Nursing,Challenge House,4679.28, 31-Jul-2018
995,Revenue,CAHD,Bed Purchasing - Southmead Hospital,Permanent Nursing,Challenge House,6114.00, 31-Jul-2018
996,Revenue,CAHD,Bed Purchasing - North,Respite Emergency - Residential,Challenge House,1392.86, 31-Jul-2018
997,Revenue,CAHD,Bed Purchasing - North,Respite Emergency - Residential,Challenge House,750.00, 31-Jul-2018
998,Revenue,CAHD,EARLY YEARS DEPRIVATION PAYMENT,Preventative Assistance,Charfield Pre-School,508.86, 06-Jul-2018
999,Revenue,CAHD,Home Care - Elderly - South,Other Small Contracts,Cherish Able Care Limited,7639.83, 06-Jul-2018
1000,Revenue,CAHD,Home Care - Elderly - North,Other Small Contracts,Cherish Able Care Limited,2673.60, 06-Jul-2018
1001,Revenue,CAHD,Home Care - Elderly - South,Other Small Contracts,Cherish Able Care Limited,7292.51, 19-Jul-2018
1002,Revenue,CAHD,Home Care - Elderly - North,Other Small Contracts,Cherish Able Care Limited,2695.00, 19-Jul-2018
1003,Revenue,CAHD,Home Care - Elderly - South,Other Small Contracts,Cherish Able Care Limited,6908.64, 20-Jul-2018
1004,Revenue,CAHD,Home Care - Elderly - North,Other Small Contracts,Cherish Able Care Limited,2714.84, 20-Jul-2018
1005,Revenue,CAHD,Home Care - Elderly - South,Other Small Contracts,Cherish Able Care Limited,6976.68, 27-Jul-2018
1006,Revenue,CAHD,Home Care - Elderly - North,Other Small Contracts,Cherish Able Care Limited,2792.23, 27-Jul-2018
1007,Revenue,CAHD,Home Care - Elderly - South,Supported Living,Cherry Orchards,1813.32, 05-Jul-2018
1008,Revenue,CAHD,Home Care - Elderly - South,Other Small Contracts,Cherry Orchards,5886.72, 03-Jul-2018
1009,Revenue,CAHD,Home Care - Elderly - South,Other Small Contracts,Cherry Orchards,5886.72, 20-Jul-2018
1010,Revenue,CAHD,Early Years High Needs Support,Other Private Contractors,Cherry Tree Day Nursery,910.13, 23-Jul-2018
1011,Revenue,CAHD,Bed purchasing -S28A  Under 65 - North,Permanent Residential,Chescombe Lodge,9535.60, 03-Jul-2018
1012,Revenue,CAHD,Bed purchasing -S28A  Under 65 - North,Permanent Residential,Chescombe Lodge,9535.60, 31-Jul-2018
1013,Revenue,CAHD,CSC - Agency Fostering,Foster Parent Allowances,Child Care Bureau Limited,3801.30, 02-Jul-2018
1014,Revenue,CAHD,CSC - Agency Fostering,Foster Parent Allowances,Child Care Bureau Limited,3928.01, 26-Jul-2018
1015,Revenue,CAHD,CSC - LAC Placements,Client Transport,Childrens Contact Services Ltd,4156.70, 12-Jul-2018
1016,Revenue,CAHD,CSC - LAC Placements,Client Transport,Childrens Contact Services Ltd,4856.70, 19-Jul-2018
1017,Revenue,CAHD,CSC - LAC Placements,Client Transport,Childrens Contact Services Ltd,4350.40, 19-Jul-2018
1018,Revenue,CAHD,EARLY YEARS DEPRIVATION PAYMENT,Preventative Assistance,Chipping Sodbury Pre School,503.21, 06-Jul-2018
1019,Revenue,CAHD,Tobacco Control,Other Small Contracts,Christchurch Family Medical  Centre,580.00, 23-Jul-2018
1020,Revenue,CAHD,Home Care - Elderly - South,Other Small Contracts,Cintre,166.60, 24-Jul-2018
1021,Revenue,CAHD,Home Care - Elderly - North,Day Care / Social Activities,Cintre,85.68, 24-Jul-2018
1022,Revenue,CAHD,Home Care - Elderly - North,Other Small Contracts,Cintre,580.72, 24-Jul-2018
1023,Revenue,CAHD,18-25 Year Olds,Other Small Contracts,Cintre,133.28, 17-Jul-2018
1024,Revenue,CAHD,Home Care - Elderly - South,Other Small Contracts,Cintre,242.76, 17-Jul-2018
1025,Revenue,CAHD,Home Care - Elderly - North,Other Small Contracts,Cintre,723.52, 17-Jul-2018
1026,Revenue,CAHD,18-25 Year Olds,Other Small Contracts,Cintre,133.28, 24-Jul-2018
1027,Revenue,CAHD,Home Care - Elderly - South,Other Small Contracts,Cintre,266.56, 24-Jul-2018
1028,Revenue,CAHD,Home Care - Elderly - North,Other Small Contracts,Cintre,561.68, 24-Jul-2018
1029,Revenue,CAHD,Learning Difficulties,Premises Hire,Circadian Trust,650.00, 04-Jul-2018
1030,Revenue,CAHD,Learning Difficulties,Premises Hire,Circadian Trust,520.00, 04-Jul-2018
1031,Revenue,CAHD,Post 16 High Needs Placements,Other Private Contractors,Cirencester College,10349.68, 10-Jul-2018
1032,Revenue,CAHD,MH Purchasing - Younger,Permanent Residential,Claro Homes,35767.16, 03-Jul-2018
1033,Revenue,CAHD,MH Purchasing - Younger,Permanent Residential,Claro Homes,5623.50, 03-Jul-2018
1034,Revenue,CAHD,MH Purchasing - Younger,Permanent Residential,Claro Homes,2803.60, 03-Jul-2018
1035,Revenue,CAHD,MH Purchasing - Younger,Permanent Residential,Claro Homes,7009.00, 03-Jul-2018
1036,Revenue,CAHD,MH Purchasing - Younger,Fees & Charges Income - General,Claro Homes,1688.30, 03-Jul-2018
1037,Revenue,CAHD,MH Purchasing - Younger,Fees & Charges Income - General,Claro Homes,1806.91, 03-Jul-2018
1038,Revenue,CAHD,MH Purchasing - Younger,Fees & Charges Income - General,Claro Homes,8755.04, 03-Jul-2018
1039,Revenue,CAHD,MH Purchasing - Younger,Fees & Charges Income - General,Claro Homes,1723.23, 03-Jul-2018
1040,Revenue,CAHD,MH Purchasing - Younger,Permanent Residential,Claro Homes,2803.60, 31-Jul-2018
1041,Revenue,CAHD,Section 117 Placements MH Younger,Permanent Residential,Claro Homes,3471.28, 03-Jul-2018
1042,Revenue,CAHD,Section 117 Placements MH Younger,Permanent Residential,Claro Homes,3471.28, 31-Jul-2018
1043,Revenue,CAHD,Bed Purchasing - Southmead Hospital,Respite Planned - Nursing,Claro Homes,3240.44, 03-Jul-2018
1044,Revenue,CAHD,Bed Purchasing - Southmead Hospital,Respite Planned - Nursing,Claro Homes,3240.44, 31-Jul-2018
1045,Revenue,CAHD,Bed Purchasing - South,Permanent Residential,Cleeve Lodge,5271.43, 03-Jul-2018
1046,Revenue,CAHD,Bed Purchasing - South,Permanent Residential,Cleeve Lodge,3600.00, 03-Jul-2018
1047,Revenue,CAHD,Bed Purchasing - South,Fees & Charges Income - General,Cleeve Lodge,816.25, 03-Jul-2018
1048,Revenue,CAHD,Bed Purchasing - South,Permanent Residential,Cleeve Lodge,3600.00, 31-Jul-2018
1049,Revenue,CAHD,Bed Purchasing - South,Respite Planned - Residential,Cleeve Lodge,1028.57, 31-Jul-2018
1050,Revenue,CAHD,Bed Purchasing - South,Permanent Residential,Cleeve Lodge,1277.76, 03-Jul-2018
1051,Revenue,CAHD,Bed Purchasing - South,Permanent Residential,Cleeve Lodge,1277.76, 31-Jul-2018
1052,Revenue,CAHD,Bed Purchasing - Southmead Hospital,Permanent Residential,Cleeve Lodge,2853.20, 03-Jul-2018
1053,Revenue,CAHD,Bed Purchasing - Southmead Hospital,Permanent Residential,Cleeve Lodge,2853.20, 31-Jul-2018
1054,Revenue,CAHD,Bed Purchasing - South,Permanent Residential,Cleeve Lodge,3014.16, 03-Jul-2018
1055,Revenue,CAHD,Bed Purchasing - South,Permanent Residential,Cleeve Lodge,3014.16, 31-Jul-2018
1056,Revenue,CAHD,Bed Purchasing - South,Permanent Residential,Cleeve Lodge,3220.04, 03-Jul-2018
1057,Revenue,CAHD,Bed Purchasing - South,Permanent Residential,Cleeve Lodge,3220.04, 31-Jul-2018
1058,Revenue,CAHD,Bed Purchasing - South,Permanent Residential,Cleeve Lodge,2787.08, 03-Jul-2018
1059,Revenue,CAHD,Bed Purchasing - South,Permanent Residential,Cleeve Lodge,2787.08, 31-Jul-2018
1060,Revenue,CAHD,Bed Purchasing - South,Permanent Residential,Cleeve Lodge,2573.84, 03-Jul-2018
1061,Revenue,CAHD,Bed Purchasing - South,Permanent Residential,Cleeve Lodge,2573.84, 31-Jul-2018
1062,Revenue,CAHD,Bed Purchasing - South,Permanent Residential,Cleeve Lodge,2955.12, 03-Jul-2018
1063,Revenue,CAHD,Bed Purchasing - South,Permanent Residential,Cleeve Lodge,2955.12, 31-Jul-2018
1064,Revenue,CAHD,Bed Purchasing - South,Permanent Residential,Cleeve Lodge,2534.00, 03-Jul-2018
1065,Revenue,CAHD,Bed Purchasing - South,Permanent Residential,Cleeve Lodge,2534.00, 31-Jul-2018
1066,Revenue,CAHD,Bed Purchasing - South,Permanent Residential,Clerkenleap Barn,6195.32, 03-Jul-2018
1067,Revenue,CAHD,Bed Purchasing - South,Permanent Residential,Clerkenleap Barn,6195.32, 31-Jul-2018
1068,Revenue,CAHD,Bed Purchasing - South,Permanent Residential,Collingwood Residential Home,6604.29, 31-Jul-2018
1069,Revenue,CAHD,Bed Purchasing - South,Permanent Residential,Collingwood Residential Home,2760.00, 31-Jul-2018
1070,Revenue,CAHD,Bed Purchasing - South,Permanent Residential,Collingwood Residential Home,2188.76, 03-Jul-2018
1071,Revenue,CAHD,Bed Purchasing - South,Permanent Residential,Collingwood Residential Home,2188.76, 31-Jul-2018
1072,Revenue,CAHD,Bed Purchasing - Southmead Hospital,Permanent Residential,Collingwood Residential Home,2477.40, 03-Jul-2018
1073,Revenue,CAHD,Bed Purchasing - Southmead Hospital,Permanent Residential,Collingwood Residential Home,2477.40, 31-Jul-2018
1074,Revenue,CAHD,Bed Purchasing - South,Permanent Residential,Collingwood Residential Home,2374.20, 03-Jul-2018
1075,Revenue,CAHD,Bed Purchasing - South,Permanent Residential,Collingwood Residential Home,2374.20, 31-Jul-2018
1076,Revenue,CAHD,Bed Purchasing - South,Permanent Residential,Collingwood Residential Home,2364.08, 03-Jul-2018
1077,Revenue,CAHD,Bed Purchasing - South,Permanent Residential,Collingwood Residential Home,2364.08, 31-Jul-2018
1078,Revenue,CAHD,Bed Purchasing - Southmead Hospital,Permanent Residential,Collingwood Residential Home,2571.43, 31-Jul-2018
1079,Revenue,CAHD,Bed Purchasing - South,Fees & Charges Income - General,Collingwood Residential Home,1086.76, 03-Jul-2018
1080,Revenue,CAHD,Bed Purchasing - South,Permanent Residential,Collingwood Residential Home,2547.52, 03-Jul-2018
1081,Revenue,CAHD,Bed Purchasing - South,Permanent Residential,Collingwood Residential Home,2547.52, 31-Jul-2018
1082,Revenue,CAHD,Bed Purchasing - South,Permanent Residential,Collingwood Residential Home,6114.00, 03-Jul-2018
1083,Revenue,CAHD,Bed Purchasing - South,Permanent Residential,Collingwood Residential Home,2445.60, 03-Jul-2018
1084,Revenue,CAHD,Bed Purchasing - South,Permanent Residential,Collingwood Residential Home,1714.29, 03-Jul-2018
1085,Revenue,CAHD,Bed Purchasing - South,Permanent Residential,Collingwood Residential Home,2445.60, 31-Jul-2018
1086,Revenue,CAHD,CSC - Vinney Green Secure Unit,R & M by Departments,Complete Weed Control (North Wessex) Ltd,598.00, 11-Jul-2018
1087,Revenue,CAHD,Home Care - Elderly - North,Other Small Contracts,Complimenting Care and Training Services (CCTS) Lt,10570.73, 06-Jul-2018
1088,Revenue,CAHD,Pathway 1 - Re-Ablement Home Care,Other Small Contracts,Complimenting Care and Training Services (CCTS) Lt,3581.97, 04-Jul-2018
1089,Revenue,CAHD,Statemented Support Equipment,Educational Supplies & Equipment,Connevans Limited,1067.25, 06-Jul-2018
1090,Revenue,CAHD,Bed and Breakfast,Bed & Breakfast,Connolly & Callaghan Limited,539.00, 30-Jul-2018
1091,Revenue,CAHD,Bed and Breakfast,Bed & Breakfast,Connolly & Callaghan Limited,490.00, 02-Jul-2018
1092,Revenue,CAHD,Bed and Breakfast,Bed & Breakfast,Connolly & Callaghan Limited,581.00, 02-Jul-2018
1093,Revenue,CAHD,Bed and Breakfast,Bed & Breakfast,Connolly & Callaghan Limited,539.00, 02-Jul-2018
1094,Revenue,CAHD,Bed and Breakfast,Bed & Breakfast,Connolly & Callaghan Limited,497.00, 09-Jul-2018
1095,Revenue,CAHD,Bed and Breakfast,Bed & Breakfast,Connolly & Callaghan Limited,448.00, 02-Jul-2018
1096,Revenue,CAHD,Bed and Breakfast,Bed & Breakfast,Connolly & Callaghan Limited,490.00, 02-Jul-2018
1097,Revenue,CAHD,Bed and Breakfast,Bed & Breakfast,Connolly & Callaghan Limited,539.00, 02-Jul-2018
1098,Revenue,CAHD,Bed and Breakfast,Bed & Breakfast,Connolly & Callaghan Limited,581.00, 02-Jul-2018
1099,Revenue,CAHD,Bed and Breakfast,Bed & Breakfast,Connolly & Callaghan Limited,539.00, 02-Jul-2018
1100,Revenue,CAHD,Bed and Breakfast,Bed & Breakfast,Connolly & Callaghan Limited,539.00, 02-Jul-2018
1101,Revenue,CAHD,Bed and Breakfast,Bed & Breakfast,Connolly & Callaghan Limited,420.00, 02-Jul-2018
1102,Revenue,CAHD,Bed and Breakfast,Bed & Breakfast,Connolly & Callaghan Limited,441.00, 02-Jul-2018
1103,Revenue,CAHD,Bed and Breakfast,Bed & Breakfast,Connolly & Callaghan Limited,497.00, 09-Jul-2018
1104,Revenue,CAHD,Bed and Breakfast,Bed & Breakfast,Connolly & Callaghan Limited,490.00, 13-Jul-2018
1105,Revenue,CAHD,Bed and Breakfast,Bed & Breakfast,Connolly & Callaghan Limited,539.00, 11-Jul-2018
1106,Revenue,CAHD,Bed and Breakfast,Bed & Breakfast,Connolly & Callaghan Limited,581.00, 10-Jul-2018
1107,Revenue,CAHD,Bed and Breakfast,Bed & Breakfast,Connolly & Callaghan Limited,539.00, 10-Jul-2018
1108,Revenue,CAHD,Bed and Breakfast,Bed & Breakfast,Connolly & Callaghan Limited,539.00, 11-Jul-2018
1109,Revenue,CAHD,Bed and Breakfast,Bed & Breakfast,Connolly & Callaghan Limited,581.00, 11-Jul-2018
1110,Revenue,CAHD,Bed and Breakfast,Bed & Breakfast,Connolly & Callaghan Limited,420.00, 10-Jul-2018
1111,Revenue,CAHD,Bed and Breakfast,Bed & Breakfast,Connolly & Callaghan Limited,441.00, 11-Jul-2018
1112,Revenue,CAHD,Bed and Breakfast,Bed & Breakfast,Connolly & Callaghan Limited,497.00, 10-Jul-2018
1113,Revenue,CAHD,Bed and Breakfast,Bed & Breakfast,Connolly & Callaghan Limited,490.00, 27-Jul-2018
1114,Revenue,CAHD,Bed and Breakfast,Bed & Breakfast,Connolly & Callaghan Limited,539.00, 26-Jul-2018
1115,Revenue,CAHD,Bed and Breakfast,Bed & Breakfast,Connolly & Callaghan Limited,581.00, 30-Jul-2018
1116,Revenue,CAHD,Bed and Breakfast,Bed & Breakfast,Connolly & Callaghan Limited,539.00, 26-Jul-2018
1117,Revenue,CAHD,Bed and Breakfast,Bed & Breakfast,Connolly & Callaghan Limited,539.00, 26-Jul-2018
1118,Revenue,CAHD,Bed and Breakfast,Bed & Breakfast,Connolly & Callaghan Limited,581.00, 26-Jul-2018
1119,Revenue,CAHD,Bed and Breakfast,Bed & Breakfast,Connolly & Callaghan Limited,420.00, 26-Jul-2018
1120,Revenue,CAHD,Bed and Breakfast,Bed & Breakfast,Connolly & Callaghan Limited,441.00, 26-Jul-2018
1121,Revenue,CAHD,Bed and Breakfast,Bed & Breakfast,Connolly & Callaghan Limited,497.00, 27-Jul-2018
1122,Revenue,CAHD,Bed and Breakfast,Bed & Breakfast,Connolly & Callaghan Limited,490.00, 26-Jul-2018
1123,Revenue,CAHD,Bed and Breakfast,Bed & Breakfast,Connolly & Callaghan Limited,678.00, 26-Jul-2018
1124,Revenue,CAHD,Bed and Breakfast,Bed & Breakfast,Connolly & Callaghan Limited,581.00, 30-Jul-2018
1125,Revenue,CAHD,Bed and Breakfast,Bed & Breakfast,Connolly & Callaghan Limited,539.00, 26-Jul-2018
1126,Revenue,CAHD,Bed and Breakfast,Bed & Breakfast,Connolly & Callaghan Limited,539.00, 27-Jul-2018
1127,Revenue,CAHD,Bed and Breakfast,Bed & Breakfast,Connolly & Callaghan Limited,581.00, 27-Jul-2018
1128,Revenue,CAHD,Bed and Breakfast,Bed & Breakfast,Connolly & Callaghan Limited,420.00, 26-Jul-2018
1129,Revenue,CAHD,Bed and Breakfast,Bed & Breakfast,Connolly & Callaghan Limited,441.00, 27-Jul-2018
1130,Revenue,CAHD,Bed and Breakfast,Bed & Breakfast,Connolly & Callaghan Limited,497.00, 27-Jul-2018
1131,Revenue,CAHD,CSC - Vinney Green Secure Unit,Other Supplies & Services,Coram Voice,1948.50, 27-Jul-2018
1132,Revenue,CAHD,CSC - Fostering Carer Support,Care Mgt/Asesmnt Staff Pay,Core Assets Expert Services Ltd T/A Carter Brown,434.80, 13-Jul-2018
1133,Revenue,CAHD,CSC - Allowances,Legal Fees,Core Assets Expert Services Ltd T/A Carter Brown,2500.00, 27-Jul-2018
1134,Revenue,CAHD,Parent Partnership,Fees - General,Cornwall County Council,3250.00, 03-Jul-2018
1135,Revenue,CAHD,Early Years Inclusion Fund,Other Public Bodies,Courtney Ladybirds Pre-School,2200.00, 18-Jul-2018
1136,Revenue,CAHD,EARLY YEARS DEPRIVATION PAYMENT,Preventative Assistance,Courtney Ladybirds Pre-School,1093.37, 06-Jul-2018
1137,Revenue,CAHD,Early Years Pupil Premium Grant,Preventative Assistance,Courtney Ladybirds Pre-School,666.19, 06-Jul-2018
1138,Revenue,CAHD,Bed Purchasing - Southmead Hospital,Permanent Nursing,Cranhill Nursing Home,3566.52, 03-Jul-2018
1139,Revenue,CAHD,Bed Purchasing - Southmead Hospital,Permanent Nursing,Cranhill Nursing Home,3566.52, 31-Jul-2018
1140,Revenue,CAHD,Bed Purchasing - North,Permanent Residential,Cream Iii Ltd,8441.40, 03-Jul-2018
1141,Revenue,CAHD,Bed Purchasing - North,Permanent Residential,Cream Iii Ltd,8441.40, 31-Jul-2018
1142,Revenue,CAHD,18-25 Year Olds,Permanent Residential,Cream Iii Ltd,9843.56, 03-Jul-2018
1143,Revenue,CAHD,18-25 Year Olds,Permanent Residential,Cream Iii Ltd,9843.56, 31-Jul-2018
1144,Revenue,CAHD,Bed purchasing -S28A  Under 65 - North,Permanent Residential,Creedy Court,10349.56, 03-Jul-2018
1145,Revenue,CAHD,Bed purchasing -S28A  Under 65 - North,Permanent Residential,Creedy Court,36223.46, 31-Jul-2018
1146,Revenue,CAHD,Bed purchasing -S28A  Under 65 - North,Permanent Residential,Creedy Court,10349.56, 31-Jul-2018
1147,Revenue,CAHD,Bed purchasing -S28A  Under 65 - North,Fees & Charges Income - General,Creedy Court,1941.39, 31-Jul-2018
1148,Revenue,CAHD,Bed Purchasing - S28A - Over 65- North,Permanent Residential,Creedy Court,8696.20, 03-Jul-2018
1149,Revenue,CAHD,Bed Purchasing - S28A - Over 65- North,Permanent Residential,Creedy Court,30436.70, 31-Jul-2018
1150,Revenue,CAHD,Bed Purchasing - S28A - Over 65- North,Permanent Residential,Creedy Court,8696.20, 31-Jul-2018
1151,Revenue,CAHD,Bed Purchasing - S28A - Over 65- North,Fees & Charges Income - General,Creedy Court,1913.67, 31-Jul-2018
1152,Revenue,CAHD,Bed Purchasing - North,Permanent Residential,Creedy Court,13724.60, 03-Jul-2018
1153,Revenue,CAHD,Bed Purchasing - North,Permanent Residential,Creedy Court,13724.60, 31-Jul-2018
1154,Revenue,CAHD,Training Budget - Children`s Social Serv,Training Expenses,Cruidin Training and Consultancy Ltd,5268.50, 06-Jul-2018
1155,Revenue,CAHD,CSC - Safeguarding Board,Training Expenses,Cruidin Training and Consultancy Ltd,1062.25, 06-Jul-2018
1156,Revenue,CAHD,CSC - Fostering Carer Support,Operational Equipment,D B Carpentry Limited,8980.00, 04-Jul-2018
1157,Revenue,CAHD,Bed Purchasing - South,Permanent Residential,Daneswood,11981.24, 03-Jul-2018
1158,Revenue,CAHD,Bed Purchasing - South,Permanent Residential,Daneswood,11981.24, 31-Jul-2018
1159,Revenue,CAHD,Home Care - Elderly - South,Day Care / Social Activities,Daneswood,1380.32, 03-Jul-2018
1160,Revenue,CAHD,Home Care - Elderly - South,Day Care / Social Activities,Daneswood,1380.32, 31-Jul-2018
1161,Revenue,CAHD,Bed Purchasing - North,Permanent Residential,Daneswood,10023.44, 03-Jul-2018
1162,Revenue,CAHD,Bed Purchasing - North,Permanent Residential,Daneswood,10023.44, 31-Jul-2018
1163,Revenue,CAHD,CSC - Legal Fees,Legal Fees,Daniel Woodman & Co Limited,2274.09, 20-Jul-2018
1164,Revenue,CAHD,Bed Purchasing - Elderly S117- North,Permanent Nursing,Danshell Healthcare Group,10617.44, 03-Jul-2018
1165,Revenue,CAHD,Jointly Funded H&SC Packages,Permanent Nursing,Danshell Healthcare Group,1575.48, 03-Jul-2018
1166,Revenue,CAHD,Bed Purchasing - Elderly S117- North,Permanent Nursing,Danshell Healthcare Group,10617.44, 31-Jul-2018
1167,Revenue,CAHD,Jointly Funded H&SC Packages,Permanent Nursing,Danshell Healthcare Group,1575.48, 31-Jul-2018
1168,Revenue,CAHD,Learning Difficulties PSL,Other Supplies & Services,Individual,2267.91, 20-Jul-2018
1169,Revenue,CAHD,Training - Adult Services,Training Expenses,Denise Hope,775.00, 02-Jul-2018
1170,Revenue,CAHD,Home Care - Elderly - South,Supported Living,Design House,2798.44, 03-Jul-2018
1171,Revenue,CAHD,Home Care - Elderly - South,Supported Living,Design House,2798.44, 31-Jul-2018
1172,Revenue,CAHD,Home Care - Elderly - South,Supported Living,Design House,2991.52, 03-Jul-2018
1173,Revenue,CAHD,Home Care - Elderly - South,Supported Living,Design House,2991.52, 31-Jul-2018
1174,Revenue,CAHD,Home Care - Elderly - South,Supported Living,Design House,3059.64, 03-Jul-2018
1175,Revenue,CAHD,Home Care - Elderly - South,Supported Living,Design House,3059.64, 31-Jul-2018
1176,Revenue,CAHD,Home Care - Elderly - South,Supported Living,Design House,2923.40, 03-Jul-2018
1177,Revenue,CAHD,Home Care - Elderly - South,Supported Living,Design House,2923.40, 31-Jul-2018
1178,Revenue,CAHD,Home Care - Elderly - South,Day Care / Social Activities,Design House,501.92, 03-Jul-2018
1179,Revenue,CAHD,Home Care - Elderly - South,Day Care / Social Activities,Design House,501.92, 31-Jul-2018
1180,Revenue,CAHD,Home Care - Elderly - North,Day Care / Social Activities,Design House,2383.88, 03-Jul-2018
1181,Revenue,CAHD,Home Care - Elderly - North,Day Care / Social Activities,Design House,2383.88, 31-Jul-2018
1182,Revenue,CAHD,Home Care - Elderly - South,Day Care / Social Activities,Design House,1499.56, 03-Jul-2018
1183,Revenue,CAHD,Home Care - Elderly - South,Day Care / Social Activities,Design House,1499.56, 31-Jul-2018
1184,Revenue,CAHD,Home Care - Elderly - South,Supported Living,Design House,2577.00, 03-Jul-2018
1185,Revenue,CAHD,Home Care - Elderly - South,Supported Living,Design House,2577.00, 31-Jul-2018
1186,Revenue,CAHD,Home Care - Elderly - South,Supported Living,Design House,2577.00, 03-Jul-2018
1187,Revenue,CAHD,Home Care - Elderly - South,Supported Living,Design House,2577.00, 31-Jul-2018
1188,Revenue,CAHD,Home Care - Elderly - South,Supported Living,Design House,2099.16, 03-Jul-2018
1189,Revenue,CAHD,Home Care - Elderly - South,Supported Living,Design House,2099.16, 31-Jul-2018
1190,Revenue,CAHD,Home Care - Elderly - South,Day Care / Social Activities,Design House,501.92, 03-Jul-2018
1191,Revenue,CAHD,Home Care - Elderly - South,Supported Living,Design House,1852.24, 03-Jul-2018
1192,Revenue,CAHD,Home Care - Elderly - South,Day Care / Social Activities,Design House,501.92, 31-Jul-2018
1193,Revenue,CAHD,Home Care - Elderly - South,Supported Living,Design House,1852.24, 31-Jul-2018
1194,Revenue,CAHD,Home Care - Elderly - South,Supported Living,Design House,2457.84, 03-Jul-2018
1195,Revenue,CAHD,Home Care - Elderly - South,Supported Living,Design House,2457.84, 31-Jul-2018
1196,Revenue,CAHD,Home Care - Elderly - South,Supported Living,Design House,4206.60, 03-Jul-2018
1197,Revenue,CAHD,Home Care - Elderly - South,Supported Living,Design House,4206.60, 31-Jul-2018
1198,Revenue,CAHD,Home Care - Elderly - South,Supported Living,Design House,2982.96, 03-Jul-2018
1199,Revenue,CAHD,Home Care - Elderly - South,Supported Living,Design House,2982.96, 31-Jul-2018
1200,Revenue,CAHD,Home Care - Elderly - South,Day Care / Social Activities,Design House,1470.80, 03-Jul-2018
1201,Revenue,CAHD,Home Care - Elderly - South,Day Care / Social Activities,Design House,1470.80, 31-Jul-2018
1202,Revenue,CAHD,Home Care - Elderly - South,Supported Living,Design House,2832.52, 03-Jul-2018
1203,Revenue,CAHD,Home Care - Elderly - South,Supported Living,Design House,2832.52, 31-Jul-2018
1204,Revenue,CAHD,Home Care - Elderly - South,Supported Living,Design House,2483.44, 03-Jul-2018
1205,Revenue,CAHD,Home Care - Elderly - South,Supported Living,Design House,2483.44, 31-Jul-2018
1206,Revenue,CAHD,Home Care - Elderly - South,Supported Living,Design House,2204.80, 03-Jul-2018
1207,Revenue,CAHD,Home Care - Elderly - South,Supported Living,Design House,2204.80, 31-Jul-2018
1208,Revenue,CAHD,Home Care - Elderly - South,Supported Living,Design House,2204.80, 03-Jul-2018
1209,Revenue,CAHD,Home Care - Elderly - South,Supported Living,Design House,2204.80, 31-Jul-2018
1210,Revenue,CAHD,Home Care - Elderly - South,Other Small Contracts,Dhek Bhal,395.78, 16-Jul-2018
1211,Revenue,CAHD,Home Care - Elderly - North,Other Small Contracts,Dhek Bhal,123.36, 16-Jul-2018
1212,Revenue,CAHD,Home Care - Elderly - South,Other Small Contracts,Dhek Bhal,406.06, 27-Jul-2018
1213,Revenue,CAHD,Home Care - Elderly - North,Other Small Contracts,Dhek Bhal,123.36, 27-Jul-2018
1214,Revenue,CAHD,Home Care - Elderly - North,Supported Living,Dimensions  Suite 2,18617.88, 03-Jul-2018
1215,Revenue,CAHD,Home Care - Elderly - South,Supported Living,Dimensions  Suite 2,1858.68, 31-Jul-2018
1216,Revenue,CAHD,Home Care - Elderly - South,Supported Living,Dimensions  Suite 2,1857.88, 03-Jul-2018
1217,Revenue,CAHD,Home Care - Elderly - South,Supported Living,Dimensions  Suite 2,1857.88, 31-Jul-2018
1218,Revenue,CAHD,Home Care - Elderly - South,Supported Living,Dimensions  Suite 2,1857.88, 03-Jul-2018
1219,Revenue,CAHD,Home Care - Elderly - South,Supported Living,Dimensions  Suite 2,1857.88, 31-Jul-2018
1220,Revenue,CAHD,Home Care - Elderly - South,Supported Living,Dimensions  Suite 2,1857.88, 03-Jul-2018
1221,Revenue,CAHD,Home Care - Elderly - South,Supported Living,Dimensions  Suite 2,1857.88, 31-Jul-2018
1222,Revenue,CAHD,Home Care - Elderly - North,Supported Living,Dimensions  Suite 2,1857.88, 03-Jul-2018
1223,Revenue,CAHD,Home Care - Elderly - North,Supported Living,Dimensions  Suite 2,1857.88, 31-Jul-2018
1224,Revenue,CAHD,Bed Purchasing - South,Permanent Residential,Dimensions  Suite 2,5498.80, 03-Jul-2018
1225,Revenue,CAHD,Bed Purchasing - South,Permanent Residential,Dimensions  Suite 2,5498.80, 31-Jul-2018
1226,Revenue,CAHD,Bed Purchasing - South,Permanent Residential,Dimensions  Suite 2,2740.36, 03-Jul-2018
1227,Revenue,CAHD,Bed Purchasing - South,Permanent Residential,Dimensions  Suite 2,2740.36, 31-Jul-2018
1228,Revenue,CAHD,Community Support - South,Preventative Assistance,Dobbins Industrial Cleaning Limited,790.00, 05-Jul-2018
1229,Revenue,CAHD,Home Care - Elderly - South,Day Care / Social Activities,DoCare Limited,73.78, 16-Jul-2018
1230,Revenue,CAHD,Home Care - Elderly - South,Other Small Contracts,DoCare Limited,927.64, 16-Jul-2018
1231,Revenue,CAHD,Home Care - Elderly - North,Other Small Contracts,DoCare Limited,5443.13, 16-Jul-2018
1232,Revenue,CAHD,Home Care - Elderly - South,Day Care / Social Activities,DoCare Limited,73.78, 16-Jul-2018
1233,Revenue,CAHD,Home Care - Elderly - South,Other Small Contracts,DoCare Limited,942.93, 16-Jul-2018
1234,Revenue,CAHD,Home Care - Elderly - North,Other Small Contracts,DoCare Limited,5663.02, 16-Jul-2018
1235,Revenue,CAHD,Home Care - Elderly - South,Day Care / Social Activities,DoCare Limited,73.78, 16-Jul-2018
1236,Revenue,CAHD,Home Care - Elderly - South,Other Small Contracts,DoCare Limited,906.04, 16-Jul-2018
1237,Revenue,CAHD,Home Care - Elderly - North,Other Small Contracts,DoCare Limited,5718.43, 16-Jul-2018
1238,Revenue,CAHD,Home Care - Elderly - South,Day Care / Social Activities,DoCare Limited,73.78, 26-Jul-2018
1239,Revenue,CAHD,Home Care - Elderly - South,Other Small Contracts,DoCare Limited,922.07, 26-Jul-2018
1240,Revenue,CAHD,Home Care - Elderly - North,Other Small Contracts,DoCare Limited,5838.37, 26-Jul-2018
1241,Revenue,CAHD,Statemented Support Academies,Schools Funding,Downend School,553.41, 26-Jul-2018
1242,Revenue,CAHD,Statemented Support Academies,Schools Funding,Downend School,1119.41, 26-Jul-2018
1243,Revenue,CAHD,Statemented Support Academies,Schools Funding,Downend School,541.62, 26-Jul-2018
1244,Revenue,CAHD,Statemented Support Academies,Schools Funding,Downend School,565.20, 26-Jul-2018
1245,Revenue,CAHD,Statemented Support Academies,Schools Funding,Downend School,1154.78, 26-Jul-2018
1246,Revenue,CAHD,Statemented Support Academies,Schools Funding,Downend School,671.33, 26-Jul-2018
1247,Revenue,CAHD,Statemented Support Academies,Schools Funding,Downend School,612.37, 26-Jul-2018
1248,Revenue,CAHD,Statemented Support Academies,Schools Funding,Downend School,553.41, 26-Jul-2018
1249,Revenue,CAHD,Statemented Support Academies,Schools Funding,Downend School,553.41, 26-Jul-2018
1250,Revenue,CAHD,Social Lettings Agency,Other Supplies & Services,Individual,605.64, 24-Jul-2018
1251,Revenue,CAHD,Bed Purchasing - North,Permanent Nursing,Drakes Court,2332.40, 03-Jul-2018
1252,Revenue,CAHD,South Glos Users in South Glos Homes,Permanent Nursing,Drakes Court,632.64, 03-Jul-2018
1253,Revenue,CAHD,Bed Purchasing - North,Permanent Nursing,Drakes Court,2332.40, 31-Jul-2018
1254,Revenue,CAHD,South Glos Users in South Glos Homes,Permanent Nursing,Drakes Court,632.64, 31-Jul-2018
1255,Revenue,CAHD,Bed Purchasing - Southmead Hospital,Permanent Nursing,Drakes Court,2832.84, 03-Jul-2018
1256,Revenue,CAHD,Bed Purchasing - Southmead Hospital,Permanent Nursing,Drakes Court,2832.84, 31-Jul-2018
1257,Revenue,CAHD,Bed Purchasing - North,Permanent Nursing,Drakes Court,2751.32, 03-Jul-2018
1258,Revenue,CAHD,South Glos Users in South Glos Homes,Permanent Nursing,Drakes Court,632.64, 03-Jul-2018
1259,Revenue,CAHD,Bed Purchasing - Southmead Hospital,Permanent Nursing,Drakes Court,2017.24, 03-Jul-2018
1260,Revenue,CAHD,South Glos Users in South Glos Homes,Permanent Nursing,Drakes Court,632.64, 03-Jul-2018
1261,Revenue,CAHD,Bed Purchasing - Southmead Hospital,Permanent Nursing,Drakes Court,2017.24, 31-Jul-2018
1262,Revenue,CAHD,South Glos Users in South Glos Homes,Permanent Nursing,Drakes Court,632.64, 31-Jul-2018
1263,Revenue,CAHD,Bed Purchasing - South,Permanent Nursing,Drakes Court,2832.84, 03-Jul-2018
1264,Revenue,CAHD,South Glos Users in South Glos Homes,Permanent Nursing,Drakes Court,632.64, 03-Jul-2018
1265,Revenue,CAHD,Bed Purchasing - South,Permanent Nursing,Drakes Court,2832.84, 31-Jul-2018
1266,Revenue,CAHD,South Glos Users in South Glos Homes,Permanent Nursing,Drakes Court,632.64, 31-Jul-2018
1267,Revenue,CAHD,South Glos Users in South Glos Homes,Permanent Nursing,Drakes Court,632.64, 03-Jul-2018
1268,Revenue,CAHD,South Glos Users in South Glos Homes,Permanent Nursing,Drakes Court,632.64, 31-Jul-2018
1269,Revenue,CAHD,Bed Purchasing - Southmead Hospital,Permanent Nursing,Drakes Court,2832.84, 03-Jul-2018
1270,Revenue,CAHD,South Glos Users in South Glos Homes,Permanent Nursing,Drakes Court,632.64, 03-Jul-2018
1271,Revenue,CAHD,Bed Purchasing - Southmead Hospital,Permanent Nursing,Drakes Court,2832.84, 31-Jul-2018
1272,Revenue,CAHD,South Glos Users in South Glos Homes,Permanent Nursing,Drakes Court,632.64, 31-Jul-2018
1273,Revenue,CAHD,South Glos Users in South Glos Homes,Permanent Nursing,Drakes Court,632.64, 03-Jul-2018
1274,Revenue,CAHD,South Glos Users in South Glos Homes,Permanent Nursing,Drakes Court,632.64, 31-Jul-2018
1275,Revenue,CAHD,Bed Purchasing - North,Permanent Nursing,Drakes Court,2017.24, 03-Jul-2018
1276,Revenue,CAHD,Bed Purchasing - North,Permanent Nursing,Drakes Court,2017.24, 31-Jul-2018
1277,Revenue,CAHD,Bed Purchasing - Southmead Hospital,Permanent Nursing,Drakes Court,2017.24, 03-Jul-2018
1278,Revenue,CAHD,South Glos Users in South Glos Homes,Permanent Nursing,Drakes Court,632.64, 03-Jul-2018
1279,Revenue,CAHD,Bed Purchasing - Southmead Hospital,Permanent Nursing,Drakes Court,2017.24, 31-Jul-2018
1280,Revenue,CAHD,South Glos Users in South Glos Homes,Permanent Nursing,Drakes Court,632.64, 31-Jul-2018
1281,Revenue,CAHD,South Glos Users in South Glos Homes,Permanent Nursing,Drakes Court,632.64, 03-Jul-2018
1282,Revenue,CAHD,South Glos Users in South Glos Homes,Permanent Nursing,Drakes Court,632.64, 31-Jul-2018
1283,Revenue,CAHD,South Glos Users in South Glos Homes,Permanent Nursing,Drakes Court,632.64, 03-Jul-2018
1284,Revenue,CAHD,South Glos Users in South Glos Homes,Permanent Nursing,Drakes Court,632.64, 31-Jul-2018
1285,Revenue,CAHD,South Glos Users in South Glos Homes,Permanent Nursing,Drakes Court,632.64, 03-Jul-2018
1286,Revenue,CAHD,South Glos Users in South Glos Homes,Permanent Nursing,Drakes Court,632.64, 31-Jul-2018
1287,Revenue,CAHD,Bed Purchasing - North,Permanent Residential,Drakes Court,1956.04, 03-Jul-2018
1288,Revenue,CAHD,Bed Purchasing - North,Permanent Residential,Drakes Court,1956.04, 31-Jul-2018
1289,Revenue,CAHD,Bed Purchasing - North,Respite Emergency - Residential,Drakes Court,1687.86, 03-Jul-2018
1290,Revenue,CAHD,Bed Purchasing - Central,Permanent Residential,Drakes Court,3077.86, 31-Jul-2018
1291,Revenue,CAHD,Bed Purchasing - Central,Permanent Residential,Drakes Court,2780.00, 31-Jul-2018
1292,Revenue,CAHD,Bed Purchasing - North,Permanent Nursing,Drakes Court,2683.84, 03-Jul-2018
1293,Revenue,CAHD,South Glos Users in South Glos Homes,Permanent Nursing,Drakes Court,632.64, 03-Jul-2018
1294,Revenue,CAHD,Bed Purchasing - North,Permanent Nursing,Drakes Court,2683.84, 31-Jul-2018
1295,Revenue,CAHD,South Glos Users in South Glos Homes,Permanent Nursing,Drakes Court,632.64, 31-Jul-2018
1296,Revenue,CAHD,South Glos Users in South Glos Homes,Permanent Nursing,Drakes Court,632.64, 03-Jul-2018
1297,Revenue,CAHD,South Glos Users in South Glos Homes,Permanent Nursing,Drakes Court,632.64, 31-Jul-2018
1298,Revenue,CAHD,South Glos Users in South Glos Homes,Permanent Nursing,Drakes Court,632.64, 03-Jul-2018
1299,Revenue,CAHD,South Glos Users in South Glos Homes,Permanent Nursing,Drakes Court,632.64, 31-Jul-2018
1300,Revenue,CAHD,South Glos Users in South Glos Homes,Permanent Nursing,Drakes Court,632.64, 03-Jul-2018
1301,Revenue,CAHD,South Glos Users in South Glos Homes,Permanent Nursing,Drakes Court,632.64, 31-Jul-2018
1302,Revenue,CAHD,MH Purchasing - Younger,Permanent Residential,Dunraven House,2316.16, 03-Jul-2018
1303,Revenue,CAHD,MH Purchasing - Younger,Permanent Residential,Dunraven House,2316.16, 31-Jul-2018
1304,Revenue,CAHD,Bed and Breakfast,Bed & Breakfast,Individual,476.00, 03-Jul-2018
1305,Revenue,CAHD,Bed and Breakfast,Bed & Breakfast,Individual,651.00, 02-Jul-2018
1306,Revenue,CAHD,Bed and Breakfast,Bed & Breakfast,Individual,476.00, 10-Jul-2018
1307,Revenue,CAHD,Bed and Breakfast,Bed & Breakfast,Individual,651.00, 11-Jul-2018
1308,Revenue,CAHD,Bed and Breakfast,Bed & Breakfast,Individual,1168.00, 11-Jul-2018
1309,Revenue,CAHD,Bed and Breakfast,Bed & Breakfast,Individual,476.00, 19-Jul-2018
1310,Revenue,CAHD,Bed and Breakfast,Bed & Breakfast,Individual,651.00, 19-Jul-2018
1311,Revenue,CAHD,Bed and Breakfast,Bed & Breakfast,Individual,584.00, 19-Jul-2018
1312,Revenue,CAHD,Bed and Breakfast,Bed & Breakfast,Individual,476.00, 30-Jul-2018
1313,Revenue,CAHD,Bed and Breakfast,Bed & Breakfast,Individual,651.00, 30-Jul-2018
1314,Revenue,CAHD,Bed Purchasing - North,Permanent Residential,East Court,2698.80, 03-Jul-2018
1315,Revenue,CAHD,Bed Purchasing - North,Permanent Residential,East Court,2698.80, 31-Jul-2018
1316,Revenue,CAHD,CAH Director,Long Service Awards,Edenred (UK Group) Limited,529.00, 13-Jul-2018
1317,Revenue,CAHD,CAH Assistant Directors,Long Service Awards,Edenred (UK Group) Limited,465.00, 13-Jul-2018
1318,Revenue,CAHD,Bed Purchasing - South,Respite Planned - Residential,Edgecumbe Lodge,835.71, 03-Jul-2018
1319,Revenue,CAHD,Bed Purchasing - Southmead Hospital,Permanent Residential,Edgecumbe Lodge,2148.68, 03-Jul-2018
1320,Revenue,CAHD,Bed Purchasing - Southmead Hospital,Permanent Residential,Edgecumbe Lodge,2148.68, 31-Jul-2018
1321,Revenue,CAHD,Bed Purchasing - North,Respite Planned - Residential,Edgecumbe Lodge,3097.76, 03-Jul-2018
1322,Revenue,CAHD,Bed Purchasing - North,Respite Planned - Residential,Edgecumbe Lodge,3097.76, 31-Jul-2018
1323,Revenue,CAHD,Bed Purchasing - South,Permanent Residential,Edgecumbe Lodge,2220.00, 03-Jul-2018
1324,Revenue,CAHD,Bed Purchasing - South,Permanent Residential,Edgecumbe Lodge,2220.00, 31-Jul-2018
1325,Revenue,CAHD,Bed Purchasing - South,Respite Planned - Residential,Edgecumbe Lodge,928.57, 31-Jul-2018
1326,Revenue,CAHD,Bed Purchasing - North,Permanent Residential,Edgecumbe Lodge,2364.56, 03-Jul-2018
1327,Revenue,CAHD,Bed Purchasing - North,Permanent Residential,Edgecumbe Lodge,2364.56, 31-Jul-2018
1328,Revenue,CAHD,Bed Purchasing - Central,Respite Planned - Residential,Edgecumbe Lodge,1671.43, 31-Jul-2018
1329,Revenue,CAHD,Bed Purchasing - South,Permanent Residential,Edgecumbe Lodge,2220.00, 03-Jul-2018
1330,Revenue,CAHD,Bed Purchasing - South,Permanent Residential,Edgecumbe Lodge,2220.00, 31-Jul-2018
1331,Revenue,CAHD,Bed Purchasing - South,Permanent Residential,Edgecumbe Lodge,2445.60, 03-Jul-2018
1332,Revenue,CAHD,Bed Purchasing - South,Permanent Residential,Edgecumbe Lodge,2445.60, 31-Jul-2018
1333,Revenue,CAHD,Bed Purchasing - South,Respite Planned - Residential,Edgecumbe Lodge,650.00, 31-Jul-2018
1334,Revenue,CAHD,Bed Purchasing - Southmead Hospital,Permanent Residential,Edgecumbe Lodge,2477.40, 03-Jul-2018
1335,Revenue,CAHD,Bed Purchasing - Southmead Hospital,Permanent Residential,Edgecumbe Lodge,2477.40, 31-Jul-2018
1336,Revenue,CAHD,Bed Purchasing - North,Permanent Residential,Edgecumbe Lodge,2197.20, 03-Jul-2018
1337,Revenue,CAHD,Bed Purchasing - North,Permanent Residential,Edgecumbe Lodge,2197.20, 31-Jul-2018
1338,Revenue,CAHD,Bed Purchasing - Southmead Hospital,Permanent Residential,Edgemont House Ltd,4364.29, 03-Jul-2018
1339,Revenue,CAHD,Bed Purchasing - Southmead Hospital,Permanent Residential,Edgemont House Ltd,2600.00, 03-Jul-2018
1340,Revenue,CAHD,Bed Purchasing - Southmead Hospital,Permanent Residential,Edgemont House Ltd,2600.00, 31-Jul-2018
1341,Revenue,CAHD,Bed Purchasing - Southmead Hospital,Permanent Residential,Edgemont House Ltd,4871.80, 03-Jul-2018
1342,Revenue,CAHD,Bed Purchasing - Southmead Hospital,Permanent Residential,Edgemont House Ltd,1948.72, 03-Jul-2018
1343,Revenue,CAHD,Bed Purchasing - Southmead Hospital,Fees & Charges Income - General,Edgemont House Ltd,1292.27, 03-Jul-2018
1344,Revenue,CAHD,Bed Purchasing - Southmead Hospital,Permanent Residential,Edgemont House Ltd,1948.72, 31-Jul-2018
1345,Revenue,CAHD,Bed Purchasing - South,Fees & Charges Income - General,Edgemont House Ltd,1491.76, 03-Jul-2018
1346,Revenue,CAHD,Bed Purchasing - South,Permanent Residential,Edgemont House Ltd,2649.40, 03-Jul-2018
1347,Revenue,CAHD,Bed Purchasing - South,Permanent Residential,Edgemont House Ltd,2649.40, 31-Jul-2018
1348,Revenue,CAHD,South Glos Users in South Glos Homes,Permanent Nursing,Edgemont View Nursing Home,632.64, 03-Jul-2018
1349,Revenue,CAHD,South Glos Users in South Glos Homes,Permanent Nursing,Edgemont View Nursing Home,632.64, 31-Jul-2018
1350,Revenue,CAHD,Bed Purchasing - South,Permanent Nursing,Edgemont View Nursing Home,3464.60, 03-Jul-2018
1351,Revenue,CAHD,South Glos Users in South Glos Homes,Permanent Nursing,Edgemont View Nursing Home,632.64, 03-Jul-2018
1352,Revenue,CAHD,Bed Purchasing - South,Permanent Nursing,Edgemont View Nursing Home,3464.60, 31-Jul-2018
1353,Revenue,CAHD,South Glos Users in South Glos Homes,Permanent Nursing,Edgemont View Nursing Home,632.64, 31-Jul-2018
1354,Revenue,CAHD,South Glos Users in South Glos Homes,Permanent Nursing,Edgemont View Nursing Home,632.64, 03-Jul-2018
1355,Revenue,CAHD,South Glos Users in South Glos Homes,Permanent Nursing,Edgemont View Nursing Home,632.64, 31-Jul-2018
1356,Revenue,CAHD,South Glos Users in South Glos Homes,Permanent Nursing,Edgemont View Nursing Home,632.64, 03-Jul-2018
1357,Revenue,CAHD,South Glos Users in South Glos Homes,Permanent Nursing,Edgemont View Nursing Home,632.64, 31-Jul-2018
1358,Revenue,CAHD,South Glos Users in South Glos Homes,Permanent Nursing,Edgemont View Nursing Home,632.64, 03-Jul-2018
1359,Revenue,CAHD,South Glos Users in South Glos Homes,Permanent Nursing,Edgemont View Nursing Home,632.64, 31-Jul-2018
1360,Revenue,CAHD,South Glos Users in South Glos Homes,Permanent Nursing,Edgemont View Nursing Home,632.64, 03-Jul-2018
1361,Revenue,CAHD,South Glos Users in South Glos Homes,Permanent Nursing,Edgemont View Nursing Home,632.64, 31-Jul-2018
1362,Revenue,CAHD,Bed Purchasing - South,Permanent Nursing,Edgemont View Nursing Home,2972.88, 03-Jul-2018
1363,Revenue,CAHD,South Glos Users in South Glos Homes,Permanent Nursing,Edgemont View Nursing Home,632.64, 03-Jul-2018
1364,Revenue,CAHD,Bed Purchasing - South,Permanent Nursing,Edgemont View Nursing Home,2972.88, 31-Jul-2018
1365,Revenue,CAHD,South Glos Users in South Glos Homes,Permanent Nursing,Edgemont View Nursing Home,632.64, 31-Jul-2018
1366,Revenue,CAHD,South Glos Users in South Glos Homes,Permanent Nursing,Edgemont View Nursing Home,632.64, 03-Jul-2018
1367,Revenue,CAHD,South Glos Users in South Glos Homes,Permanent Nursing,Edgemont View Nursing Home,632.64, 31-Jul-2018
1368,Revenue,CAHD,South Glos Users in South Glos Homes,Permanent Nursing,Edgemont View Nursing Home,632.64, 03-Jul-2018
1369,Revenue,CAHD,South Glos Users in South Glos Homes,Permanent Nursing,Edgemont View Nursing Home,632.64, 31-Jul-2018
1370,Revenue,CAHD,Bed Purchasing - South,Permanent Nursing,Edgemont View Nursing Home,2934.72, 03-Jul-2018
1371,Revenue,CAHD,South Glos Users in South Glos Homes,Permanent Nursing,Edgemont View Nursing Home,632.64, 03-Jul-2018
1372,Revenue,CAHD,Bed Purchasing - South,Permanent Nursing,Edgemont View Nursing Home,2934.72, 31-Jul-2018
1373,Revenue,CAHD,South Glos Users in South Glos Homes,Permanent Nursing,Edgemont View Nursing Home,632.64, 31-Jul-2018
1374,Revenue,CAHD,Bed Purchasing - South,Fees & Charges Income - General,Edgemont View Nursing Home,3579.99, 31-Jul-2018
1375,Revenue,CAHD,South Glos Users in South Glos Homes,Permanent Nursing,Edgemont View Nursing Home,632.64, 03-Jul-2018
1376,Revenue,CAHD,South Glos Users in South Glos Homes,Permanent Nursing,Edgemont View Nursing Home,632.64, 31-Jul-2018
1377,Revenue,CAHD,South Glos Users in South Glos Homes,Permanent Nursing,Edgemont View Nursing Home,632.64, 03-Jul-2018
1378,Revenue,CAHD,South Glos Users in South Glos Homes,Permanent Nursing,Edgemont View Nursing Home,632.64, 31-Jul-2018
1379,Revenue,CAHD,South Glos Users in South Glos Homes,Permanent Nursing,Edgemont View Nursing Home,632.64, 03-Jul-2018
1380,Revenue,CAHD,South Glos Users in South Glos Homes,Permanent Nursing,Edgemont View Nursing Home,632.64, 31-Jul-2018
1381,Revenue,CAHD,South Glos Users in South Glos Homes,Permanent Nursing,Edgemont View Nursing Home,632.64, 03-Jul-2018
1382,Revenue,CAHD,South Glos Users in South Glos Homes,Permanent Nursing,Edgemont View Nursing Home,632.64, 31-Jul-2018
1383,Revenue,CAHD,South Glos Users in South Glos Homes,Permanent Nursing,Edgemont View Nursing Home,632.64, 03-Jul-2018
1384,Revenue,CAHD,South Glos Users in South Glos Homes,Permanent Nursing,Edgemont View Nursing Home,632.64, 31-Jul-2018
1385,Revenue,CAHD,Bed Purchasing - South,Permanent Nursing,Edgemont View Nursing Home,2934.72, 03-Jul-2018
1386,Revenue,CAHD,South Glos Users in South Glos Homes,Permanent Nursing,Edgemont View Nursing Home,632.64, 03-Jul-2018
1387,Revenue,CAHD,Bed Purchasing - South,Permanent Nursing,Edgemont View Nursing Home,2934.72, 31-Jul-2018
1388,Revenue,CAHD,South Glos Users in South Glos Homes,Permanent Nursing,Edgemont View Nursing Home,632.64, 31-Jul-2018
1389,Revenue,CAHD,Bed Purchasing - South,Permanent Nursing,Edgemont View Nursing Home,2310.44, 03-Jul-2018
1390,Revenue,CAHD,South Glos Users in South Glos Homes,Permanent Nursing,Edgemont View Nursing Home,632.64, 03-Jul-2018
1391,Revenue,CAHD,Bed Purchasing - South,Permanent Nursing,Edgemont View Nursing Home,2310.44, 31-Jul-2018
1392,Revenue,CAHD,South Glos Users in South Glos Homes,Permanent Nursing,Edgemont View Nursing Home,632.64, 31-Jul-2018
1393,Revenue,CAHD,South Glos Users in South Glos Homes,Permanent Nursing,Edgemont View Nursing Home,632.64, 03-Jul-2018
1394,Revenue,CAHD,South Glos Users in South Glos Homes,Permanent Nursing,Edgemont View Nursing Home,632.64, 31-Jul-2018
1395,Revenue,CAHD,South Glos Users in South Glos Homes,Permanent Nursing,Edgemont View Nursing Home,632.64, 03-Jul-2018
1396,Revenue,CAHD,South Glos Users in South Glos Homes,Permanent Nursing,Edgemont View Nursing Home,632.64, 31-Jul-2018
1397,Revenue,CAHD,NTS Grant - Trainee Social Wor,Training Expenses,EG People Development,4284.00, 20-Jul-2018
1398,Revenue,CAHD,Planning and Partnerships Procurement,Other Supplies & Services,Eldercare,2167.51, 30-Jul-2018
1399,Revenue,CAHD,Home Care - Elderly - South,Other Small Contracts,Elite Home Care Ltd,6481.67, 27-Jul-2018
1400,Revenue,CAHD,Home Care - Elderly - North,Other Small Contracts,Elite Home Care Ltd,1328.81, 27-Jul-2018
1401,Revenue,CAHD,Home Care - Elderly - South,Other Small Contracts,Elite Home Care Ltd,6650.64, 27-Jul-2018
1402,Revenue,CAHD,Home Care - Elderly - North,Other Small Contracts,Elite Home Care Ltd,1319.55, 27-Jul-2018
1403,Revenue,CAHD,Home Care - Elderly - South,Other Small Contracts,Elite Home Care Ltd,6736.29, 27-Jul-2018
1404,Revenue,CAHD,Home Care - Elderly - North,Other Small Contracts,Elite Home Care Ltd,1328.81, 27-Jul-2018
1405,Revenue,CAHD,Home Care - Elderly - South,Other Small Contracts,Elite Home Care Ltd,6731.69, 27-Jul-2018
1406,Revenue,CAHD,Home Care - Elderly - North,Other Small Contracts,Elite Home Care Ltd,1305.66, 27-Jul-2018
1407,Revenue,CAHD,CSC - Safeguarding Board,Training Expenses,Individual,500.00, 13-Jul-2018
1408,Revenue,CAHD,Hospital Tuition,Other Private Contractors,Ellern Mede School,9920.00, 31-Jul-2018
1409,Revenue,CAHD,CSC - Agency Fostering,Foster Parent Allowances,Enhanced Foster Care Ltd,4650.00, 26-Jul-2018
1410,Revenue,CAHD,South Glos Users in South Glos Homes,Permanent Nursing,Fairview Court,632.64, 03-Jul-2018
1411,Revenue,CAHD,South Glos Users in South Glos Homes,Permanent Nursing,Fairview Court,632.64, 31-Jul-2018
1412,Revenue,CAHD,South Glos Users in South Glos Homes,Permanent Nursing,Fairview Court,632.64, 03-Jul-2018
1413,Revenue,CAHD,South Glos Users in South Glos Homes,Permanent Nursing,Fairview Court,632.64, 31-Jul-2018
1414,Revenue,CAHD,South Glos Users in South Glos Homes,Permanent Nursing,Fairview Court,632.64, 03-Jul-2018
1415,Revenue,CAHD,South Glos Users in South Glos Homes,Permanent Nursing,Fairview Court,632.64, 31-Jul-2018
1416,Revenue,CAHD,South Glos Users in South Glos Homes,Permanent Nursing,Fairview Court,632.64, 03-Jul-2018
1417,Revenue,CAHD,South Glos Users in South Glos Homes,Permanent Nursing,Fairview Court,632.64, 31-Jul-2018
1418,Revenue,CAHD,South Glos Users in South Glos Homes,Permanent Nursing,Fairview Court,632.64, 31-Jul-2018
1419,Revenue,CAHD,South Glos Users in South Glos Homes,Permanent Nursing,Fairview Court,519.67, 31-Jul-2018
1420,Revenue,CAHD,Bed Purchasing - Southmead Hospital,Fees & Charges Income - General,Fairview Court,549.23, 03-Jul-2018
1421,Revenue,CAHD,Bed Purchasing - Southmead Hospital,Permanent Nursing,Fairview Court,3464.60, 03-Jul-2018
1422,Revenue,CAHD,South Glos Users in South Glos Homes,Permanent Nursing,Fairview Court,632.64, 03-Jul-2018
1423,Revenue,CAHD,Bed Purchasing - Southmead Hospital,Permanent Nursing,Fairview Court,3464.60, 31-Jul-2018
1424,Revenue,CAHD,South Glos Users in South Glos Homes,Permanent Nursing,Fairview Court,632.64, 31-Jul-2018
1425,Revenue,CAHD,Bed Purchasing - Southmead Hospital,Permanent Nursing,Fairview Court,3423.84, 03-Jul-2018
1426,Revenue,CAHD,South Glos Users in South Glos Homes,Permanent Nursing,Fairview Court,632.64, 03-Jul-2018
1427,Revenue,CAHD,Bed Purchasing - Southmead Hospital,Permanent Nursing,Fairview Court,3423.84, 31-Jul-2018
1428,Revenue,CAHD,South Glos Users in South Glos Homes,Permanent Nursing,Fairview Court,632.64, 31-Jul-2018
1429,Revenue,CAHD,South Glos Users in South Glos Homes,Permanent Nursing,Fairview Court,632.64, 03-Jul-2018
1430,Revenue,CAHD,South Glos Users in South Glos Homes,Permanent Nursing,Fairview Court,632.64, 31-Jul-2018
1431,Revenue,CAHD,Bed Purchasing - Southmead Hospital,Permanent Nursing,Fairview Court,531.61, 03-Jul-2018
1432,Revenue,CAHD,Bed purchasing - Elderly S117 - South,Permanent Nursing,Fairview Court,4076.00, 03-Jul-2018
1433,Revenue,CAHD,South Glos Users in South Glos Homes,Permanent Nursing,Fairview Court,632.64, 03-Jul-2018
1434,Revenue,CAHD,Bed purchasing - Elderly S117 - South,Permanent Nursing,Fairview Court,4076.00, 31-Jul-2018
1435,Revenue,CAHD,South Glos Users in South Glos Homes,Permanent Nursing,Fairview Court,632.64, 31-Jul-2018
1436,Revenue,CAHD,South Glos Users in South Glos Homes,Permanent Nursing,Fairview Court,2394.99, 31-Jul-2018
1437,Revenue,CAHD,South Glos Users in South Glos Homes,Permanent Nursing,Fairview Court,2126.40, 31-Jul-2018
1438,Revenue,CAHD,South Glos Users in South Glos Homes,Permanent Nursing,Fairview Court,632.64, 31-Jul-2018
1439,Revenue,CAHD,Bed Purchasing - South,Permanent Nursing,Fairview Court,3303.20, 03-Jul-2018
1440,Revenue,CAHD,South Glos Users in South Glos Homes,Permanent Nursing,Fairview Court,632.64, 03-Jul-2018
1441,Revenue,CAHD,Bed Purchasing - South,Permanent Nursing,Fairview Court,3303.20, 31-Jul-2018
1442,Revenue,CAHD,South Glos Users in South Glos Homes,Permanent Nursing,Fairview Court,632.64, 31-Jul-2018
1443,Revenue,CAHD,Bed Purchasing - South,Permanent Nursing,Fairview Court,3721.08, 31-Jul-2018
1444,Revenue,CAHD,Bed Purchasing - South,Permanent Nursing,Fairview Court,2259.23, 31-Jul-2018
1445,Revenue,CAHD,Bed Purchasing - Southmead Hospital,Fees & Charges Income - General,Fairview Court,1302.09, 03-Jul-2018
1446,Revenue,CAHD,South Glos Users in South Glos Homes,Permanent Nursing,Fairview Court,632.64, 03-Jul-2018
1447,Revenue,CAHD,South Glos Users in South Glos Homes,Permanent Nursing,Fairview Court,632.64, 31-Jul-2018
1448,Revenue,CAHD,South Glos Users in South Glos Homes,Permanent Nursing,Fairview Court,7686.05, 31-Jul-2018
1449,Revenue,CAHD,South Glos Users in South Glos Homes,Permanent Nursing,Fairview Court,2394.99, 31-Jul-2018
1450,Revenue,CAHD,South Glos Users in South Glos Homes,Permanent Nursing,Fairview Court,632.64, 31-Jul-2018
1451,Revenue,CAHD,Bed Purchasing - Southmead Hospital,Permanent Nursing,Fairview Court,3464.60, 03-Jul-2018
1452,Revenue,CAHD,South Glos Users in South Glos Homes,Permanent Nursing,Fairview Court,632.64, 03-Jul-2018
1453,Revenue,CAHD,Bed Purchasing - Southmead Hospital,Permanent Nursing,Fairview Court,3464.60, 31-Jul-2018
1454,Revenue,CAHD,South Glos Users in South Glos Homes,Permanent Nursing,Fairview Court,632.64, 31-Jul-2018
1455,Revenue,CAHD,South Glos Users in South Glos Homes,Permanent Nursing,Fairview Court,632.64, 03-Jul-2018
1456,Revenue,CAHD,South Glos Users in South Glos Homes,Permanent Nursing,Fairview Court,632.64, 31-Jul-2018
1457,Revenue,CAHD,South Glos Users in South Glos Homes,Permanent Nursing,Fairview Court,632.64, 03-Jul-2018
1458,Revenue,CAHD,South Glos Users in South Glos Homes,Permanent Nursing,Fairview Court,632.64, 31-Jul-2018
1459,Revenue,CAHD,South Glos Users in South Glos Homes,Permanent Nursing,Fairview Court,632.64, 03-Jul-2018
1460,Revenue,CAHD,South Glos Users in South Glos Homes,Permanent Nursing,Fairview Court,632.64, 31-Jul-2018
1461,Revenue,CAHD,South Glos Users in South Glos Homes,Permanent Nursing,Fairview Court,632.64, 03-Jul-2018
1462,Revenue,CAHD,South Glos Users in South Glos Homes,Permanent Nursing,Fairview Court,632.64, 31-Jul-2018
1463,Revenue,CAHD,South Glos Users in South Glos Homes,Permanent Nursing,Fairview Court,632.64, 03-Jul-2018
1464,Revenue,CAHD,South Glos Users in South Glos Homes,Permanent Nursing,Fairview Court,632.64, 31-Jul-2018
1465,Revenue,CAHD,Bed Purchasing - Southmead Hospital,Permanent Nursing,Fairview Court,7650.00, 03-Jul-2018
1466,Revenue,CAHD,Bed Purchasing - Southmead Hospital,Permanent Nursing,Fairview Court,2550.00, 03-Jul-2018
1467,Revenue,CAHD,Bed Purchasing - Southmead Hospital,Permanent Nursing,Fairview Court,850.00, 03-Jul-2018
1468,Revenue,CAHD,Bed Purchasing - Southmead Hospital,Fees & Charges Income - General,Fairview Court,1223.17, 03-Jul-2018
1469,Revenue,CAHD,Bed Purchasing - Southmead Hospital,Permanent Nursing,Fairview Court,3400.00, 31-Jul-2018
1470,Revenue,CAHD,South Glos Users in South Glos Homes,Permanent Nursing,Fairview Court,632.64, 03-Jul-2018
1471,Revenue,CAHD,South Glos Users in South Glos Homes,Permanent Nursing,Fairview Court,632.64, 31-Jul-2018
1472,Revenue,CAHD,South Glos Users in South Glos Homes,Permanent Nursing,Fairview Court,2394.99, 31-Jul-2018
1473,Revenue,CAHD,South Glos Users in South Glos Homes,Permanent Nursing,Fairview Court,632.64, 31-Jul-2018
1474,Revenue,CAHD,South Glos Users in South Glos Homes,Permanent Nursing,Fairview Court,575.90, 31-Jul-2018
1475,Revenue,CAHD,South Glos Users in South Glos Homes,Permanent Nursing,Fairview Court,632.64, 03-Jul-2018
1476,Revenue,CAHD,South Glos Users in South Glos Homes,Permanent Nursing,Fairview Court,632.64, 31-Jul-2018
1477,Revenue,CAHD,Bed Purchasing - North,Permanent Nursing,Fairview Court,3464.60, 03-Jul-2018
1478,Revenue,CAHD,South Glos Users in South Glos Homes,Permanent Nursing,Fairview Court,632.64, 03-Jul-2018
1479,Revenue,CAHD,Bed Purchasing - North,Permanent Nursing,Fairview Court,3464.60, 31-Jul-2018
1480,Revenue,CAHD,South Glos Users in South Glos Homes,Permanent Nursing,Fairview Court,632.64, 31-Jul-2018
1481,Revenue,CAHD,South Glos Users in South Glos Homes,Permanent Nursing,Fairview Court,632.64, 03-Jul-2018
1482,Revenue,CAHD,South Glos Users in South Glos Homes,Permanent Nursing,Fairview Court,632.64, 31-Jul-2018
1483,Revenue,CAHD,Bed Purchasing - Southmead Hospital,Permanent Nursing,Fairview Court,3400.00, 03-Jul-2018
1484,Revenue,CAHD,Bed Purchasing - Southmead Hospital,Permanent Nursing,Fairview Court,3400.00, 31-Jul-2018
1485,Revenue,CAHD,South Glos Users in South Glos Homes,Permanent Nursing,Fairview Court,632.64, 03-Jul-2018
1486,Revenue,CAHD,South Glos Users in South Glos Homes,Permanent Nursing,Fairview Court,632.64, 31-Jul-2018
1487,Revenue,CAHD,South Glos Users in South Glos Homes,Permanent Nursing,Fairview Court,632.64, 03-Jul-2018
1488,Revenue,CAHD,South Glos Users in South Glos Homes,Permanent Nursing,Fairview Court,632.64, 31-Jul-2018
1489,Revenue,CAHD,Bed Purchasing - Southmead Hospital,Permanent Nursing,Fairview Court,3464.60, 03-Jul-2018
1490,Revenue,CAHD,Bed Purchasing - Southmead Hospital,Permanent Nursing,Fairview Court,3464.60, 31-Jul-2018
1491,Revenue,CAHD,Bed Purchasing - South,Permanent Nursing,Fairview Court,3057.00, 03-Jul-2018
1492,Revenue,CAHD,South Glos Users in South Glos Homes,Permanent Nursing,Fairview Court,632.64, 03-Jul-2018
1493,Revenue,CAHD,Bed Purchasing - South,Permanent Nursing,Fairview Court,3057.00, 31-Jul-2018
1494,Revenue,CAHD,South Glos Users in South Glos Homes,Permanent Nursing,Fairview Court,632.64, 31-Jul-2018
1495,Revenue,CAHD,South Glos Users in South Glos Homes,Permanent Nursing,Fairview Court,632.64, 03-Jul-2018
1496,Revenue,CAHD,South Glos Users in South Glos Homes,Permanent Nursing,Fairview Court,632.64, 31-Jul-2018
1497,Revenue,CAHD,Bed Purchasing - South,Permanent Nursing,Fairview Court,3464.60, 03-Jul-2018
1498,Revenue,CAHD,South Glos Users in South Glos Homes,Permanent Nursing,Fairview Court,632.64, 03-Jul-2018
1499,Revenue,CAHD,Bed Purchasing - South,Fees & Charges Income - General,Fairview Court,1465.56, 03-Jul-2018
1500,Revenue,CAHD,Bed Purchasing - South,Permanent Nursing,Fairview Court,3464.60, 31-Jul-2018
1501,Revenue,CAHD,South Glos Users in South Glos Homes,Permanent Nursing,Fairview Court,632.64, 31-Jul-2018
1502,Revenue,CAHD,Bed Purchasing - Southmead Hospital,Permanent Nursing,Fairview Court,3464.60, 03-Jul-2018
1503,Revenue,CAHD,South Glos Users in South Glos Homes,Permanent Nursing,Fairview Court,632.64, 03-Jul-2018
1504,Revenue,CAHD,Bed Purchasing - Southmead Hospital,Permanent Nursing,Fairview Court,3464.60, 31-Jul-2018
1505,Revenue,CAHD,South Glos Users in South Glos Homes,Permanent Nursing,Fairview Court,632.64, 31-Jul-2018
1506,Revenue,CAHD,South Glos Users in South Glos Homes,Permanent Nursing,Fairview Court,632.64, 03-Jul-2018
1507,Revenue,CAHD,South Glos Users in South Glos Homes,Permanent Nursing,Fairview Court,632.64, 31-Jul-2018
1508,Revenue,CAHD,South Glos Users in South Glos Homes,Permanent Nursing,Fairview Court,632.64, 03-Jul-2018
1509,Revenue,CAHD,South Glos Users in South Glos Homes,Permanent Nursing,Fairview Court,632.64, 31-Jul-2018
1510,Revenue,CAHD,Bed purchasing - Elderly S117 - South,Permanent Residential,Fairview House,2219.20, 03-Jul-2018
1511,Revenue,CAHD,Bed purchasing - Elderly S117 - South,Permanent Residential,Fairview House,2219.20, 31-Jul-2018
1512,Revenue,CAHD,Bed Purchasing - South,Permanent Residential,Fairview House,2149.60, 03-Jul-2018
1513,Revenue,CAHD,Bed Purchasing - South,Permanent Residential,Fairview House,2149.60, 31-Jul-2018
1514,Revenue,CAHD,Bed Purchasing - South,Permanent Residential,Fairview House,2219.20, 03-Jul-2018
1515,Revenue,CAHD,Bed Purchasing - South,Permanent Residential,Fairview House,2219.20, 31-Jul-2018
1516,Revenue,CAHD,Bed Purchasing - South,Permanent Residential,Fairview House,2148.68, 03-Jul-2018
1517,Revenue,CAHD,Bed Purchasing - South,Permanent Residential,Fairview House,2148.68, 31-Jul-2018
1518,Revenue,CAHD,Bed Purchasing - Southmead Hospital,Respite Planned - Residential,Fairview House,2785.71, 31-Jul-2018
1519,Revenue,CAHD,Bed Purchasing - South,Permanent Residential,Fairview House,2219.20, 03-Jul-2018
1520,Revenue,CAHD,Bed Purchasing - South,Permanent Residential,Fairview House,2219.20, 31-Jul-2018
1521,Revenue,CAHD,Bed Purchasing - South,Permanent Residential,Fairview House,2148.68, 03-Jul-2018
1522,Revenue,CAHD,Bed Purchasing - South,Permanent Residential,Fairview House,2148.68, 31-Jul-2018
1523,Revenue,CAHD,Bed Purchasing - South,Permanent Residential,Fairview House,2157.48, 03-Jul-2018
1524,Revenue,CAHD,Bed Purchasing - South,Permanent Residential,Fairview House,2157.48, 31-Jul-2018
1525,Revenue,CAHD,Bed Purchasing - Southmead Hospital,Permanent Residential,Fairview House,2547.52, 03-Jul-2018
1526,Revenue,CAHD,Bed Purchasing - Southmead Hospital,Permanent Residential,Fairview House,2547.52, 31-Jul-2018
1527,Revenue,CAHD,Bed Purchasing - Southmead Hospital,Permanent Residential,Faith House,1957.14, 03-Jul-2018
1528,Revenue,CAHD,Bed Purchasing - Southmead Hospital,Permanent Residential,Faith House,782.86, 03-Jul-2018
1529,Revenue,CAHD,Bed Purchasing - Southmead Hospital,Permanent Residential,Faith House,880.71, 03-Jul-2018
1530,Revenue,CAHD,Bed Purchasing - Southmead Hospital,Permanent Residential,Faith House,2740.00, 31-Jul-2018
1531,Revenue,CAHD,Bed Purchasing - North,Permanent Residential,Faith House,2792.08, 03-Jul-2018
1532,Revenue,CAHD,Bed Purchasing - North,Permanent Residential,Faith House,2792.08, 31-Jul-2018
1533,Revenue,CAHD,Bed Purchasing - South,Permanent Residential,Faith House,4110.00, 31-Jul-2018
1534,Revenue,CAHD,Bed Purchasing - Southmead Hospital,Permanent Nursing,Festival House,2983.44, 03-Jul-2018
1535,Revenue,CAHD,Bed Purchasing - Southmead Hospital,Permanent Nursing,Festival House,2983.44, 31-Jul-2018
1536,Revenue,CAHD,Bed Purchasing - North,Permanent Residential,Festival House,3872.20, 03-Jul-2018
1537,Revenue,CAHD,"Education, Learning and Skills",Fees - General,FFT Education Ltd,5274.91, 04-Jul-2018
1538,Revenue,CAHD,Performance Management Support,Software Purchase,FFT Education Ltd,750.00, 20-Jul-2018
1539,Revenue,CAHD,"Education, Learning and Skills",Fees - General,FFT Education Ltd,1130.93, 13-Jul-2018
1540,Revenue,CAHD,"Education, Learning and Skills",Fees - General,FFT Education Ltd,812.29, 13-Jul-2018
1541,Revenue,CAHD,Bed Purchasing - North,Permanent Nursing,Field House Care Home,2105.84, 03-Jul-2018
1542,Revenue,CAHD,Bed Purchasing - North,Permanent Nursing,Field House Care Home,2164.36, 03-Jul-2018
1543,Revenue,CAHD,Bed Purchasing - North,Permanent Nursing,Field House Care Home,2164.36, 31-Jul-2018
1544,Revenue,CAHD,Bed Purchasing - Southmead Hospital,Permanent Nursing,Field House Care Home,3440.00, 03-Jul-2018
1545,Revenue,CAHD,Bed Purchasing - Southmead Hospital,Permanent Nursing,Field House Care Home,2088.57, 03-Jul-2018
1546,Revenue,CAHD,Bed Purchasing - Southmead Hospital,Permanent Nursing,Field House Care Home,1965.71, 31-Jul-2018
1547,Revenue,CAHD,Bed Purchasing - Southmead Hospital,Permanent Nursing,Field House Care Home,1474.29, 31-Jul-2018
1548,Revenue,CAHD,South Glos Users in South Glos Homes,Permanent Nursing,Field House Care Home,632.64, 03-Jul-2018
1549,Revenue,CAHD,South Glos Users in South Glos Homes,Permanent Nursing,Field House Care Home,632.64, 31-Jul-2018
1550,Revenue,CAHD,Bed Purchasing - Southmead Hospital,Permanent Nursing,Field House Care Home,3440.00, 31-Jul-2018
1551,Revenue,CAHD,Bed Purchasing - Southmead Hospital,Permanent Nursing,Field House Care Home,1351.43, 31-Jul-2018
1552,Revenue,CAHD,Bed Purchasing - Southmead Hospital,Permanent Nursing,Field House Care Home,3323.84, 03-Jul-2018
1553,Revenue,CAHD,Bed Purchasing - Southmead Hospital,Permanent Nursing,Field House Care Home,3323.84, 31-Jul-2018
1554,Revenue,CAHD,Bed Purchasing - North,Permanent Nursing,Field House Care Home,3505.36, 03-Jul-2018
1555,Revenue,CAHD,Bed Purchasing - North,Permanent Nursing,Field House Care Home,3505.36, 31-Jul-2018
1556,Revenue,CAHD,Bed Purchasing - Southmead Hospital,Permanent Nursing,Field House Care Home,3342.32, 03-Jul-2018
1557,Revenue,CAHD,Bed Purchasing - Southmead Hospital,Permanent Nursing,Field House Care Home,3342.32, 31-Jul-2018
1558,Revenue,CAHD,Bed Purchasing - Southmead Hospital,Respite Planned - Nursing,Field House Care Home,3342.32, 03-Jul-2018
1559,Revenue,CAHD,Bed Purchasing - Southmead Hospital,Respite Planned - Nursing,Field House Care Home,3342.32, 31-Jul-2018
1560,Revenue,CAHD,Bed Purchasing - North,Permanent Nursing,Field House Care Home,3342.32, 03-Jul-2018
1561,Revenue,CAHD,Bed Purchasing - North,Permanent Nursing,Field House Care Home,3342.32, 31-Jul-2018
1562,Revenue,CAHD,Bed Purchasing - North,Permanent Nursing,Field House Care Home,2164.36, 03-Jul-2018
1563,Revenue,CAHD,Bed Purchasing - North,Permanent Nursing,Field House Care Home,2164.36, 31-Jul-2018
1564,Revenue,CAHD,South Glos Users in South Glos Homes,Permanent Nursing,Field House Care Home,632.64, 03-Jul-2018
1565,Revenue,CAHD,South Glos Users in South Glos Homes,Permanent Nursing,Field House Care Home,632.64, 31-Jul-2018
1566,Revenue,CAHD,Bed Purchasing - North,Permanent Nursing,Field House Care Home,2164.36, 03-Jul-2018
1567,Revenue,CAHD,Bed Purchasing - North,Permanent Nursing,Field House Care Home,555.43, 03-Jul-2018
1568,Revenue,CAHD,Bed Purchasing - North,Permanent Nursing,Field House Care Home,2164.36, 31-Jul-2018
1569,Revenue,CAHD,Bed Purchasing - Southmead Hospital,Permanent Nursing,Field House Care Home,8559.60, 03-Jul-2018
1570,Revenue,CAHD,Bed Purchasing - Southmead Hospital,Permanent Nursing,Field House Care Home,3423.84, 03-Jul-2018
1571,Revenue,CAHD,Bed Purchasing - Southmead Hospital,Fees & Charges Income - General,Field House Care Home,3333.39, 03-Jul-2018
1572,Revenue,CAHD,Bed Purchasing - Southmead Hospital,Permanent Nursing,Field House Care Home,3423.84, 31-Jul-2018
1573,Revenue,CAHD,Bed Purchasing - North,Permanent Nursing,Field House Care Home,3423.84, 03-Jul-2018
1574,Revenue,CAHD,Bed Purchasing - North,Permanent Nursing,Field House Care Home,3423.84, 31-Jul-2018
1575,Revenue,CAHD,Bed Purchasing - North,Respite Planned - Residential,Fieldview,1607.14, 03-Jul-2018
1576,Revenue,CAHD,Bed Purchasing - North,Permanent Residential,Fieldview,2890.28, 03-Jul-2018
1577,Revenue,CAHD,Bed Purchasing - North,Permanent Residential,Fieldview,2890.28, 31-Jul-2018
1578,Revenue,CAHD,Bed Purchasing - North,Permanent Residential,Fieldview,3668.40, 03-Jul-2018
1579,Revenue,CAHD,Bed Purchasing - North,Permanent Residential,Fieldview,3668.40, 31-Jul-2018
1580,Revenue,CAHD,MH Purchasing - Younger,Permanent Nursing,Fieldview,5367.68, 03-Jul-2018
1581,Revenue,CAHD,MH Purchasing - Younger,Permanent Nursing,Fieldview,5367.68, 31-Jul-2018
1582,Revenue,CAHD,Bed Purchasing - South,Permanent Residential,Fig House,2890.28, 03-Jul-2018
1583,Revenue,CAHD,Bed Purchasing - South,Permanent Residential,Fig House,2890.28, 31-Jul-2018
1584,Revenue,CAHD,Statemented Support Payments to OLAs,Other L.A.'s - General,Filton Avenue Primary School,1131.20, 26-Jul-2018
1585,Revenue,CAHD,A & CL - Functional Skills 17/18,Premises Hire,Filton Community Association,660.00, 24-Jul-2018
1586,Revenue,CAHD,CSC - Fostering Carer Support,Advertising - General,Filton Voice Limited,2448.00, 20-Jul-2018
1587,Revenue,CAHD,Early Years Inclusion Fund,Other Public Bodies,First Friends (Mangotsfield),1800.00, 09-Jul-2018
1588,Revenue,CAHD,EARLY YEARS DEPRIVATION PAYMENT,Preventative Assistance,First Step Pre School Ltd,706.76, 06-Jul-2018
1589,Revenue,CAHD,CSC - Agency Fostering,Foster Parent Allowances,Five Rivers Child Care Limited,3336.60, 03-Jul-2018
1590,Revenue,CAHD,CSC - Agency Fostering,Foster Parent Allowances,Five Rivers Child Care Limited,3447.82, 31-Jul-2018
1591,Revenue,CAHD,CSC - Agency Fostering,Foster Parent Allowances,Five Rivers Child Care Limited,3447.82, 31-Jul-2018
1592,Revenue,CAHD,CSC - Agency Fostering,Foster Parent Allowances,Five Rivers Child Care Limited,4069.86, 31-Jul-2018
1593,Revenue,CAHD,CSC - Agency Fostering,Foster Parent Allowances,Five Rivers Child Care Limited,4291.29, 31-Jul-2018
1594,Revenue,CAHD,CSC - Agency Fostering,Foster Parent Allowances,Five Rivers Child Care Limited,3518.19, 31-Jul-2018
1595,Revenue,CAHD,Home Care - Elderly - South,Other Small Contracts,Fourways Care Limited,4134.72, 20-Jul-2018
1596,Revenue,CAHD,Home Care - Elderly - North,Other Small Contracts,Fourways Care Limited,5391.78, 20-Jul-2018
1597,Revenue,CAHD,Home care - Elderly MH - North,Other Small Contracts,Fourways Care Limited,411.72, 20-Jul-2018
1598,Revenue,CAHD,Home Care - Elderly - South,Other Small Contracts,Fourways Care Limited,2995.92, 19-Jul-2018
1599,Revenue,CAHD,Home Care - Elderly - North,Other Small Contracts,Fourways Care Limited,5781.60, 19-Jul-2018
1600,Revenue,CAHD,Home care - Elderly MH - North,Other Small Contracts,Fourways Care Limited,170.82, 19-Jul-2018
1601,Revenue,CAHD,Home Care - Elderly - South,Other Small Contracts,Fourways Care Limited,2785.68, 31-Jul-2018
1602,Revenue,CAHD,Home Care - Elderly - North,Other Small Contracts,Fourways Care Limited,6298.44, 31-Jul-2018
1603,Revenue,CAHD,Home Care - Elderly - South,Other Small Contracts,Fourways Care Limited,2952.12, 31-Jul-2018
1604,Revenue,CAHD,Home Care - Elderly - North,Other Small Contracts,Fourways Care Limited,6661.98, 31-Jul-2018
1605,Revenue,CAHD,Pathway 1 - Re-Ablement Home Care,Other Small Contracts,Fourways Care Limited,788.40, 26-Jul-2018
1606,Revenue,CAHD,Pathway 1 - Re-Ablement Home Care,Other Small Contracts,Fourways Care Limited,1375.32, 26-Jul-2018
1607,Revenue,CAHD,Pathway 1 - Re-Ablement Home Care,Other Small Contracts,Fourways Care Limited,1147.56, 26-Jul-2018
1608,Revenue,CAHD,Pathway 1 - Re-Ablement Home Care,Other Small Contracts,Fourways Care Limited,924.18, 26-Jul-2018
1609,Revenue,CAHD,Freeways,Permanent Residential,Freeways Trust Limited,3748.60, 31-Jul-2018
1610,Revenue,CAHD,Freeways,Permanent Residential,Freeways Trust Limited,2410.80, 31-Jul-2018
1611,Revenue,CAHD,Freeways,Permanent Residential,Freeways Trust Limited,2410.80, 31-Jul-2018
1612,Revenue,CAHD,Freeways,Permanent Residential,Freeways Trust Limited,3507.76, 31-Jul-2018
1613,Revenue,CAHD,Freeways,Permanent Residential,Freeways Trust Limited,2410.80, 31-Jul-2018
1614,Revenue,CAHD,Freeways,Permanent Residential,Freeways Trust Limited,3553.44, 31-Jul-2018
1615,Revenue,CAHD,Freeways,Permanent Residential,Freeways Trust Limited,2674.68, 31-Jul-2018
1616,Revenue,CAHD,Freeways,Permanent Residential,Freeways Trust Limited,3719.68, 31-Jul-2018
1617,Revenue,CAHD,Freeways,Permanent Residential,Freeways Trust Limited,2267.40, 31-Jul-2018
1618,Revenue,CAHD,Freeways,Permanent Residential,Freeways Trust Limited,2847.12, 31-Jul-2018
1619,Revenue,CAHD,Freeways,Permanent Residential,Freeways Trust Limited,2819.80, 31-Jul-2018
1620,Revenue,CAHD,Freeways,Permanent Residential,Freeways Trust Limited,3183.32, 31-Jul-2018
1621,Revenue,CAHD,Freeways,Permanent Residential,Freeways Trust Limited,2410.80, 31-Jul-2018
1622,Revenue,CAHD,Freeways,Respite Planned - Residential,Freeways Trust Limited,549.69, 31-Jul-2018
1623,Revenue,CAHD,Freeways,Respite Planned - Residential,Freeways Trust Limited,549.69, 31-Jul-2018
1624,Revenue,CAHD,Freeways,Respite Planned - Residential,Freeways Trust Limited,1190.99, 31-Jul-2018
1625,Revenue,CAHD,Freeways,Respite Planned - Residential,Freeways Trust Limited,2107.13, 31-Jul-2018
1626,Revenue,CAHD,Freeways,Respite Planned - Residential,Freeways Trust Limited,641.30, 31-Jul-2018
1627,Revenue,CAHD,Freeways,Respite Planned - Residential,Freeways Trust Limited,1282.60, 31-Jul-2018
1628,Revenue,CAHD,Freeways,Respite Planned - Residential,Freeways Trust Limited,2290.36, 31-Jul-2018
1629,Revenue,CAHD,Freeways,Respite Planned - Residential,Freeways Trust Limited,1465.83, 31-Jul-2018
1630,Revenue,CAHD,Home Care - Elderly - South,Day Care / Social Activities,Freeways Trust Limited,516.32, 26-Jul-2018
1631,Revenue,CAHD,Home Care - Elderly - North,Other Small Contracts,Freeways Trust Limited,700.72, 30-Jul-2018
1632,Revenue,CAHD,Home Care - Elderly - South,Day Care / Social Activities,Freeways Trust Limited,1015.20, 23-Jul-2018
1633,Revenue,CAHD,Home Care - Elderly - North,Supported Living,Freeways Trust Ltd,825.80, 03-Jul-2018
1634,Revenue,CAHD,Home Care - Elderly - North,Supported Living,Freeways Trust Ltd,825.80, 31-Jul-2018
1635,Revenue,CAHD,Bed purchasing - S28A Under 65 - South,Permanent Residential,Freeways Trust Ltd,3795.56, 03-Jul-2018
1636,Revenue,CAHD,Bed purchasing - S28A Under 65 - South,Permanent Residential,Freeways Trust Ltd,3795.56, 31-Jul-2018
1637,Revenue,CAHD,Bed Purchasing - North,Permanent Residential,Freeways Trust Ltd,3675.20, 03-Jul-2018
1638,Revenue,CAHD,Bed Purchasing - North,Permanent Residential,Freeways Trust Ltd,3675.20, 31-Jul-2018
1639,Revenue,CAHD,Bed Purchasing - South,Permanent Residential,Freeways Trust Ltd,3897.84, 03-Jul-2018
1640,Revenue,CAHD,Bed Purchasing - South,Permanent Residential,Freeways Trust Ltd,3897.84, 31-Jul-2018
1641,Revenue,CAHD,Bed Purchasing - North,Permanent Residential,Freeways Trust Ltd,2943.20, 03-Jul-2018
1642,Revenue,CAHD,Bed Purchasing - North,Permanent Residential,Freeways Trust Ltd,2943.20, 31-Jul-2018
1643,Revenue,CAHD,Bed Purchasing - South,Permanent Residential,Freeways Trust Ltd,3101.48, 03-Jul-2018
1644,Revenue,CAHD,Bed Purchasing - South,Permanent Residential,Freeways Trust Ltd,3101.48, 31-Jul-2018
1645,Revenue,CAHD,Bed Purchasing - North,Permanent Residential,Freeways Trust Ltd,3250.60, 03-Jul-2018
1646,Revenue,CAHD,Bed Purchasing - North,Permanent Residential,Freeways Trust Ltd,3250.60, 31-Jul-2018
1647,Revenue,CAHD,Bed Purchasing - North,Permanent Residential,Freeways Trust Ltd,3890.76, 03-Jul-2018
1648,Revenue,CAHD,Bed Purchasing - North,Permanent Residential,Freeways Trust Ltd,3890.76, 31-Jul-2018
1649,Revenue,CAHD,18-25 Year Olds,Permanent Residential,Freeways Trust Ltd,3594.20, 03-Jul-2018
1650,Revenue,CAHD,18-25 Year Olds,Permanent Residential,Freeways Trust Ltd,3594.20, 31-Jul-2018
1651,Revenue,CAHD,Section 117 Placements MH Younger,Permanent Residential,Freeways Trust Ltd,3260.80, 03-Jul-2018
1652,Revenue,CAHD,Section 117 Placements MH Younger,Permanent Residential,Freeways Trust Ltd,3260.80, 31-Jul-2018
1653,Revenue,CAHD,Home Care - Elderly - South,Day Care / Social Activities,Frenchay Beckspool Building,801.44, 03-Jul-2018
1654,Revenue,CAHD,Home Care - Elderly - South,Day Care / Social Activities,Frenchay Beckspool Building,801.44, 31-Jul-2018
1655,Revenue,CAHD,Home Care - Elderly - North,Day Care / Social Activities,Frenchay Beckspool Building,1202.16, 03-Jul-2018
1656,Revenue,CAHD,Home Care - Elderly - North,Day Care / Social Activities,Frenchay Beckspool Building,1851.36, 31-Jul-2018
1657,Revenue,CAHD,Home Care - Elderly - South,Day Care / Social Activities,Frenchay Beckspool Building,880.40, 03-Jul-2018
1658,Revenue,CAHD,Home Care - Elderly - South,Day Care / Social Activities,Frenchay Beckspool Building,880.40, 31-Jul-2018
1659,Revenue,CAHD,Home Care - Elderly - South,Day Care / Social Activities,Frenchay Beckspool Building,536.96, 03-Jul-2018
1660,Revenue,CAHD,Home Care - Elderly - South,Day Care / Social Activities,Frenchay Beckspool Building,625.12, 31-Jul-2018
1661,Revenue,CAHD,Home Care - Elderly - South,Day Care / Social Activities,Frenchay Beckspool Building,541.76, 31-Jul-2018
1662,Revenue,CAHD,Bed Purchasing - Southmead Hospital,Permanent Nursing,Frenchay Park Nursing Home,3400.00, 03-Jul-2018
1663,Revenue,CAHD,Bed Purchasing - Southmead Hospital,Permanent Nursing,Frenchay Park Nursing Home,1700.00, 03-Jul-2018
1664,Revenue,CAHD,Bed Purchasing - Southmead Hospital,Permanent Nursing,Frenchay Park Nursing Home,3400.00, 31-Jul-2018
1665,Revenue,CAHD,Bed Purchasing - Southmead Hospital,Permanent Nursing,Frenchay Park Nursing Home,3260.80, 03-Jul-2018
1666,Revenue,CAHD,Bed Purchasing - Southmead Hospital,Permanent Nursing,Frenchay Park Nursing Home,3260.80, 31-Jul-2018
1667,Revenue,CAHD,Early Years High Needs Support,Other Private Contractors,Frenchay Pre School Playgroup,910.13, 23-Jul-2018
1668,Revenue,CAHD,CSC - Residential Placements,Permanent Residential,Friends Therapeutic Community Trust,15000.00, 02-Jul-2018
1669,Revenue,CAHD,CSC - Social Work Team - NORTH,Agency Staff (Admin/Support Staff) Pay,Frontline Staffing Ltd,1731.23, 11-Jul-2018
1670,Revenue,CAHD,CSC - Social Work Team - NORTH,Agency Staff (Admin/Support Staff) Pay,Frontline Staffing Ltd,1731.23, 11-Jul-2018
1671,Revenue,CAHD,South Glos Users in South Glos Homes,Permanent Nursing,Fshc  1St Floor,632.64, 03-Jul-2018
1672,Revenue,CAHD,South Glos Users in South Glos Homes,Permanent Nursing,Fshc  1St Floor,632.64, 31-Jul-2018
1673,Revenue,CAHD,Bed Purchasing - South,Permanent Nursing,Fshc  1St Floor,2670.96, 03-Jul-2018
1674,Revenue,CAHD,South Glos Users in South Glos Homes,Permanent Nursing,Fshc  1St Floor,632.64, 03-Jul-2018
1675,Revenue,CAHD,Bed Purchasing - South,Permanent Nursing,Fshc  1St Floor,2670.96, 31-Jul-2018
1676,Revenue,CAHD,South Glos Users in South Glos Homes,Permanent Nursing,Fshc  1St Floor,632.64, 31-Jul-2018
1677,Revenue,CAHD,Bed Purchasing - Southmead Hospital,Permanent Nursing,Fshc  1St Floor,2324.64, 03-Jul-2018
1678,Revenue,CAHD,Bed Purchasing - Southmead Hospital,Permanent Nursing,Fshc  1St Floor,2324.64, 31-Jul-2018
1679,Revenue,CAHD,Bed Purchasing - South,Permanent Nursing,Fshc  1St Floor,2310.44, 03-Jul-2018
1680,Revenue,CAHD,South Glos Users in South Glos Homes,Permanent Nursing,Fshc  1St Floor,632.64, 03-Jul-2018
1681,Revenue,CAHD,Bed Purchasing - South,Permanent Nursing,Fshc  1St Floor,2310.44, 31-Jul-2018
1682,Revenue,CAHD,South Glos Users in South Glos Homes,Permanent Nursing,Fshc  1St Floor,632.64, 31-Jul-2018
1683,Revenue,CAHD,Bed Purchasing - Southmead Hospital,Permanent Nursing,Fshc  1St Floor,2436.12, 03-Jul-2018
1684,Revenue,CAHD,South Glos Users in South Glos Homes,Permanent Nursing,Fshc  1St Floor,632.64, 03-Jul-2018
1685,Revenue,CAHD,Bed Purchasing - Southmead Hospital,Permanent Nursing,Fshc  1St Floor,2436.12, 31-Jul-2018
1686,Revenue,CAHD,South Glos Users in South Glos Homes,Permanent Nursing,Fshc  1St Floor,632.64, 31-Jul-2018
1687,Revenue,CAHD,Bed Purchasing - Southmead Hospital,Permanent Nursing,Fshc  1St Floor,2310.44, 03-Jul-2018
1688,Revenue,CAHD,South Glos Users in South Glos Homes,Permanent Nursing,Fshc  1St Floor,632.64, 03-Jul-2018
1689,Revenue,CAHD,Bed Purchasing - Southmead Hospital,Permanent Nursing,Fshc  1St Floor,2310.44, 31-Jul-2018
1690,Revenue,CAHD,South Glos Users in South Glos Homes,Permanent Nursing,Fshc  1St Floor,632.64, 31-Jul-2018
1691,Revenue,CAHD,Bed Purchasing - South,Permanent Residential,Fshc  1St Floor,2404.84, 03-Jul-2018
1692,Revenue,CAHD,Bed Purchasing - South,Permanent Residential,Fshc  1St Floor,2404.84, 31-Jul-2018
1693,Revenue,CAHD,Bed Purchasing - Southmead Hospital,Permanent Nursing,Fshc  1St Floor,2560.00, 03-Jul-2018
1694,Revenue,CAHD,Bed Purchasing - Southmead Hospital,Permanent Nursing,Fshc  1St Floor,2560.00, 31-Jul-2018
1695,Revenue,CAHD,Bed Purchasing - Southmead Hospital,Respite Planned - Residential,Fshc  1St Floor,5760.00, 03-Jul-2018
1696,Revenue,CAHD,Bed Purchasing - Southmead Hospital,Respite Planned - Residential,Fshc  1St Floor,3394.29, 31-Jul-2018
1697,Revenue,CAHD,Bed Purchasing - Southmead Hospital,Respite Planned - Residential,Fshc  1St Floor,720.00, 31-Jul-2018
1698,Revenue,CAHD,Bed Purchasing - South,Permanent Nursing,Fshc  1St Floor,3200.00, 03-Jul-2018
1699,Revenue,CAHD,Bed Purchasing - South,Permanent Nursing,Fshc  1St Floor,1942.86, 03-Jul-2018
1700,Revenue,CAHD,Bed Purchasing - South,Permanent Nursing,Fshc  1St Floor,3200.00, 31-Jul-2018
1701,Revenue,CAHD,Bed Purchasing - South,Fees & Charges Income - General,Fshc  1St Floor,868.06, 31-Jul-2018
1702,Revenue,CAHD,South Glos Users in South Glos Homes,Permanent Nursing,Fshc  1St Floor,632.64, 03-Jul-2018
1703,Revenue,CAHD,South Glos Users in South Glos Homes,Permanent Nursing,Fshc  1St Floor,632.64, 31-Jul-2018
1704,Revenue,CAHD,South Glos Users in South Glos Homes,Permanent Nursing,Fshc  1St Floor,632.64, 03-Jul-2018
1705,Revenue,CAHD,South Glos Users in South Glos Homes,Permanent Nursing,Fshc  1St Floor,632.64, 31-Jul-2018
1706,Revenue,CAHD,Bed Purchasing - Southmead Hospital,Permanent Nursing,Fshc  1St Floor,2310.44, 03-Jul-2018
1707,Revenue,CAHD,Bed Purchasing - Southmead Hospital,Permanent Nursing,Fshc  1St Floor,2310.44, 31-Jul-2018
1708,Revenue,CAHD,Bed Purchasing - Southmead Hospital,Respite Emergency - Residential,Fshc  1St Floor,1521.43, 03-Jul-2018
1709,Revenue,CAHD,Bed Purchasing - Southmead Hospital,Permanent Nursing,Fshc  1St Floor,2404.84, 03-Jul-2018
1710,Revenue,CAHD,South Glos Users in South Glos Homes,Permanent Nursing,Fshc  1St Floor,632.64, 03-Jul-2018
1711,Revenue,CAHD,Bed Purchasing - Southmead Hospital,Permanent Nursing,Fshc  1St Floor,2404.84, 31-Jul-2018
1712,Revenue,CAHD,South Glos Users in South Glos Homes,Permanent Nursing,Fshc  1St Floor,632.64, 31-Jul-2018
1713,Revenue,CAHD,Bed Purchasing - South,Respite Emergency - Residential,Fshc  1St Floor,2986.56, 03-Jul-2018
1714,Revenue,CAHD,Bed Purchasing - South,Respite Emergency - Residential,Fshc  1St Floor,2986.56, 31-Jul-2018
1715,Revenue,CAHD,Bed Purchasing - South,Permanent Nursing,Fshc  1St Floor,3565.71, 03-Jul-2018
1716,Revenue,CAHD,Bed Purchasing - South,Permanent Nursing,Fshc  1St Floor,2560.00, 03-Jul-2018
1717,Revenue,CAHD,Bed Purchasing - South,Permanent Nursing,Fshc  1St Floor,2560.00, 31-Jul-2018
1718,Revenue,CAHD,South Glos Users in South Glos Homes,Permanent Nursing,Fshc  1St Floor,1491.22, 31-Jul-2018
1719,Revenue,CAHD,South Glos Users in South Glos Homes,Permanent Nursing,Fshc  1St Floor,632.64, 31-Jul-2018
1720,Revenue,CAHD,Bed Purchasing - South,Permanent Nursing,Fshc  1St Floor,2663.20, 03-Jul-2018
1721,Revenue,CAHD,Bed Purchasing - South,Fees & Charges Income - General,Fshc  1St Floor,2151.20, 03-Jul-2018
1722,Revenue,CAHD,Bed Purchasing - South,Fees & Charges Income - General,Fshc  1St Floor,1605.74, 03-Jul-2018
1723,Revenue,CAHD,Bed Purchasing - South,Permanent Nursing,Fshc  1St Floor,2663.20, 31-Jul-2018
1724,Revenue,CAHD,South Glos Users in South Glos Homes,Permanent Nursing,Fshc  1St Floor,632.64, 03-Jul-2018
1725,Revenue,CAHD,South Glos Users in South Glos Homes,Permanent Nursing,Fshc  1St Floor,632.64, 31-Jul-2018
1726,Revenue,CAHD,Bed Purchasing - South,Respite Planned - Nursing,Fshc  1St Floor,1002.86, 03-Jul-2018
1727,Revenue,CAHD,South Glos Users in South Glos Homes,Permanent Nursing,Fshc  1St Floor,632.64, 03-Jul-2018
1728,Revenue,CAHD,South Glos Users in South Glos Homes,Permanent Nursing,Fshc  1St Floor,632.64, 31-Jul-2018
1729,Revenue,CAHD,Bed Purchasing - Southmead Hospital,Respite Planned - Nursing,Fshc  1St Floor,1548.88, 03-Jul-2018
1730,Revenue,CAHD,South Glos Users in South Glos Homes,Permanent Nursing,Fshc  1St Floor,2394.99, 31-Jul-2018
1731,Revenue,CAHD,South Glos Users in South Glos Homes,Permanent Nursing,Fshc  1St Floor,886.00, 31-Jul-2018
1732,Revenue,CAHD,South Glos Users in South Glos Homes,Permanent Nursing,Fshc  1St Floor,632.64, 31-Jul-2018
1733,Revenue,CAHD,South Glos Users in South Glos Homes,Permanent Nursing,Fshc  1St Floor,632.64, 03-Jul-2018
1734,Revenue,CAHD,South Glos Users in South Glos Homes,Permanent Nursing,Fshc  1St Floor,632.64, 31-Jul-2018
1735,Revenue,CAHD,South Glos Users in South Glos Homes,Permanent Nursing,Fshc  1St Floor,1671.98, 31-Jul-2018
1736,Revenue,CAHD,South Glos Users in South Glos Homes,Permanent Nursing,Fshc  1St Floor,632.64, 31-Jul-2018
1737,Revenue,CAHD,South Glos Users in South Glos Homes,Permanent Nursing,Fshc  1St Floor,632.64, 03-Jul-2018
1738,Revenue,CAHD,South Glos Users in South Glos Homes,Permanent Nursing,Fshc  1St Floor,632.64, 31-Jul-2018
1739,Revenue,CAHD,Bed Purchasing - Southmead Hospital,Permanent Nursing,Fshc  1St Floor,2324.64, 03-Jul-2018
1740,Revenue,CAHD,South Glos Users in South Glos Homes,Permanent Nursing,Fshc  1St Floor,632.64, 03-Jul-2018
1741,Revenue,CAHD,Bed Purchasing - Southmead Hospital,Permanent Nursing,Fshc  1St Floor,2324.64, 31-Jul-2018
1742,Revenue,CAHD,South Glos Users in South Glos Homes,Permanent Nursing,Fshc  1St Floor,632.64, 31-Jul-2018
1743,Revenue,CAHD,Bed Purchasing - Southmead Hospital,Permanent Nursing,Fshc  1St Floor,2404.84, 03-Jul-2018
1744,Revenue,CAHD,South Glos Users in South Glos Homes,Permanent Nursing,Fshc  1St Floor,632.64, 03-Jul-2018
1745,Revenue,CAHD,Bed Purchasing - Southmead Hospital,Fees & Charges Income - General,Fshc  1St Floor,5343.73, 31-Jul-2018
1746,Revenue,CAHD,Bed Purchasing - Southmead Hospital,Permanent Nursing,Fshc  1St Floor,2404.84, 31-Jul-2018
1747,Revenue,CAHD,South Glos Users in South Glos Homes,Permanent Nursing,Fshc  1St Floor,632.64, 31-Jul-2018
1748,Revenue,CAHD,Bed Purchasing - South,Permanent Nursing,Fshc  1St Floor,2310.44, 03-Jul-2018
1749,Revenue,CAHD,South Glos Users in South Glos Homes,Permanent Nursing,Fshc  1St Floor,632.64, 03-Jul-2018
1750,Revenue,CAHD,Bed Purchasing - South,Permanent Nursing,Fshc  1St Floor,2310.44, 31-Jul-2018
1751,Revenue,CAHD,South Glos Users in South Glos Homes,Permanent Nursing,Fshc  1St Floor,632.64, 31-Jul-2018
1752,Revenue,CAHD,Bed Purchasing - Southmead Hospital,Permanent Nursing,Fshc  1St Floor,2310.44, 03-Jul-2018
1753,Revenue,CAHD,South Glos Users in South Glos Homes,Permanent Nursing,Fshc  1St Floor,632.64, 03-Jul-2018
1754,Revenue,CAHD,Bed Purchasing - Southmead Hospital,Permanent Nursing,Fshc  1St Floor,2310.44, 31-Jul-2018
1755,Revenue,CAHD,South Glos Users in South Glos Homes,Permanent Nursing,Fshc  1St Floor,632.64, 31-Jul-2018
1756,Revenue,CAHD,Bed Purchasing - South,Permanent Nursing,Fshc  1St Floor,2310.44, 03-Jul-2018
1757,Revenue,CAHD,South Glos Users in South Glos Homes,Permanent Nursing,Fshc  1St Floor,632.64, 03-Jul-2018
1758,Revenue,CAHD,Bed Purchasing - South,Permanent Nursing,Fshc  1St Floor,2310.44, 31-Jul-2018
1759,Revenue,CAHD,South Glos Users in South Glos Homes,Permanent Nursing,Fshc  1St Floor,632.64, 31-Jul-2018
1760,Revenue,CAHD,Bed Purchasing - South,Permanent Nursing,Fshc  1St Floor,2324.64, 03-Jul-2018
1761,Revenue,CAHD,South Glos Users in South Glos Homes,Permanent Nursing,Fshc  1St Floor,632.64, 03-Jul-2018
1762,Revenue,CAHD,Bed Purchasing - South,Permanent Nursing,Fshc  1St Floor,2324.64, 31-Jul-2018
1763,Revenue,CAHD,South Glos Users in South Glos Homes,Permanent Nursing,Fshc  1St Floor,632.64, 31-Jul-2018
1764,Revenue,CAHD,Bed Purchasing - North,Respite Emergency - Residential,Fshc  1St Floor,1560.00, 03-Jul-2018
1765,Revenue,CAHD,Bed Purchasing - North,Respite Emergency - Nursing,Fshc  1St Floor,1560.00, 03-Jul-2018
1766,Revenue,CAHD,Bed Purchasing - Southmead Hospital,Permanent Nursing,Fshc  1St Floor,3200.00, 03-Jul-2018
1767,Revenue,CAHD,South Glos Users in South Glos Homes,Permanent Nursing,Fshc  1St Floor,1717.17, 31-Jul-2018
1768,Revenue,CAHD,Bed Purchasing - Southmead Hospital,Permanent Nursing,Fshc  1St Floor,2285.71, 31-Jul-2018
1769,Revenue,CAHD,Bed Purchasing - Southmead Hospital,Permanent Nursing,Fshc  1St Floor,914.29, 31-Jul-2018
1770,Revenue,CAHD,South Glos Users in South Glos Homes,Permanent Nursing,Fshc  1St Floor,632.64, 31-Jul-2018
1771,Revenue,CAHD,Bed Purchasing - South,Fees & Charges Income - General,Fshc  1St Floor,4735.71, 03-Jul-2018
1772,Revenue,CAHD,Bed Purchasing - South,Permanent Nursing,Fshc  1St Floor,2600.00, 03-Jul-2018
1773,Revenue,CAHD,South Glos Users in South Glos Homes,Permanent Nursing,Fshc  1St Floor,632.64, 03-Jul-2018
1774,Revenue,CAHD,Bed Purchasing - South,Permanent Nursing,Fshc  1St Floor,5385.71, 03-Jul-2018
1775,Revenue,CAHD,Bed Purchasing - South,Fees & Charges Income - General,Fshc  1St Floor,1124.53, 03-Jul-2018
1776,Revenue,CAHD,Bed Purchasing - South,Permanent Nursing,Fshc  1St Floor,2600.00, 31-Jul-2018
1777,Revenue,CAHD,South Glos Users in South Glos Homes,Permanent Nursing,Fshc  1St Floor,632.64, 31-Jul-2018
1778,Revenue,CAHD,Bed Purchasing - Southmead Hospital,Respite Planned - Nursing,Fshc  1St Floor,4022.86, 03-Jul-2018
1779,Revenue,CAHD,Bed Purchasing - Southmead Hospital,Permanent Nursing,Fshc  1St Floor,2445.60, 03-Jul-2018
1780,Revenue,CAHD,Bed Purchasing - Southmead Hospital,Permanent Nursing,Fshc  1St Floor,2445.60, 31-Jul-2018
1781,Revenue,CAHD,South Glos Users in South Glos Homes,Permanent Nursing,Fshc  1St Floor,632.64, 03-Jul-2018
1782,Revenue,CAHD,South Glos Users in South Glos Homes,Permanent Nursing,Fshc  1St Floor,632.64, 31-Jul-2018
1783,Revenue,CAHD,Bed Purchasing - South,Permanent Nursing,Fshc  1St Floor,2404.84, 03-Jul-2018
1784,Revenue,CAHD,South Glos Users in South Glos Homes,Permanent Nursing,Fshc  1St Floor,632.64, 03-Jul-2018
1785,Revenue,CAHD,Bed Purchasing - South,Permanent Nursing,Fshc  1St Floor,2404.84, 31-Jul-2018
1786,Revenue,CAHD,South Glos Users in South Glos Homes,Permanent Nursing,Fshc  1St Floor,632.64, 31-Jul-2018
1787,Revenue,CAHD,Bed Purchasing - Southmead Hospital,Permanent Nursing,Fshc  1St Floor,2864.24, 03-Jul-2018
1788,Revenue,CAHD,Bed Purchasing - Southmead Hospital,Permanent Nursing,Fshc  1St Floor,2864.24, 31-Jul-2018
1789,Revenue,CAHD,Bed Purchasing - Southmead Hospital,Permanent Nursing,Fshc  1St Floor,2310.44, 03-Jul-2018
1790,Revenue,CAHD,South Glos Users in South Glos Homes,Permanent Nursing,Fshc  1St Floor,632.64, 03-Jul-2018
1791,Revenue,CAHD,Bed Purchasing - Southmead Hospital,Permanent Nursing,Fshc  1St Floor,2310.44, 31-Jul-2018
1792,Revenue,CAHD,South Glos Users in South Glos Homes,Permanent Nursing,Fshc  1St Floor,632.64, 31-Jul-2018
1793,Revenue,CAHD,Bed Purchasing - Southmead Hospital,Permanent Nursing,Fshc  1St Floor,2339.64, 03-Jul-2018
1794,Revenue,CAHD,South Glos Users in South Glos Homes,Permanent Nursing,Fshc  1St Floor,632.64, 03-Jul-2018
1795,Revenue,CAHD,Bed Purchasing - Southmead Hospital,Permanent Nursing,Fshc  1St Floor,2339.64, 31-Jul-2018
1796,Revenue,CAHD,South Glos Users in South Glos Homes,Permanent Nursing,Fshc  1St Floor,632.64, 31-Jul-2018
1797,Revenue,CAHD,Bed Purchasing - North,Permanent Nursing,Fshc  1St Floor,2339.64, 03-Jul-2018
1798,Revenue,CAHD,South Glos Users in South Glos Homes,Permanent Nursing,Fshc  1St Floor,632.64, 03-Jul-2018
1799,Revenue,CAHD,Bed Purchasing - North,Permanent Nursing,Fshc  1St Floor,2339.64, 31-Jul-2018
1800,Revenue,CAHD,South Glos Users in South Glos Homes,Permanent Nursing,Fshc  1St Floor,632.64, 31-Jul-2018
1801,Revenue,CAHD,Bed Purchasing - Southmead Hospital,Permanent Nursing,Fshc  1St Floor,2339.64, 03-Jul-2018
1802,Revenue,CAHD,South Glos Users in South Glos Homes,Permanent Nursing,Fshc  1St Floor,632.64, 03-Jul-2018
1803,Revenue,CAHD,Bed Purchasing - Southmead Hospital,Permanent Nursing,Fshc  1St Floor,2339.64, 31-Jul-2018
1804,Revenue,CAHD,South Glos Users in South Glos Homes,Permanent Nursing,Fshc  1St Floor,632.64, 31-Jul-2018
1805,Revenue,CAHD,South Glos Users in South Glos Homes,Permanent Nursing,Fshc  1St Floor,632.64, 03-Jul-2018
1806,Revenue,CAHD,South Glos Users in South Glos Homes,Permanent Nursing,Fshc  1St Floor,632.64, 31-Jul-2018
1807,Revenue,CAHD,Bed Purchasing - Southmead Hospital,Permanent Nursing,Fshc  1St Floor,2310.44, 03-Jul-2018
1808,Revenue,CAHD,South Glos Users in South Glos Homes,Permanent Nursing,Fshc  1St Floor,632.64, 03-Jul-2018
1809,Revenue,CAHD,Bed Purchasing - Southmead Hospital,Permanent Nursing,Fshc  1St Floor,2310.44, 31-Jul-2018
1810,Revenue,CAHD,South Glos Users in South Glos Homes,Permanent Nursing,Fshc  1St Floor,632.64, 31-Jul-2018
1811,Revenue,CAHD,Bed Purchasing - Southmead Hospital,Permanent Residential,Fshc  1St Floor,2148.68, 03-Jul-2018
1812,Revenue,CAHD,Bed Purchasing - Southmead Hospital,Permanent Residential,Fshc  1St Floor,2148.68, 31-Jul-2018
1813,Revenue,CAHD,South Glos Users in South Glos Homes,Permanent Nursing,Fshc  1St Floor,2394.99, 31-Jul-2018
1814,Revenue,CAHD,South Glos Users in South Glos Homes,Permanent Nursing,Fshc  1St Floor,632.64, 31-Jul-2018
1815,Revenue,CAHD,South Glos Users in South Glos Homes,Permanent Nursing,Fshc  1St Floor,632.64, 03-Jul-2018
1816,Revenue,CAHD,South Glos Users in South Glos Homes,Permanent Nursing,Fshc  1St Floor,632.64, 31-Jul-2018
1817,Revenue,CAHD,Bed Purchasing - North,Permanent Residential,Fshc  1St Floor,2832.84, 03-Jul-2018
1818,Revenue,CAHD,Bed Purchasing - North,Permanent Residential,Fshc  1St Floor,2832.84, 31-Jul-2018
1819,Revenue,CAHD,Bed Purchasing - South,Permanent Residential,Fshc  1St Floor,2751.32, 03-Jul-2018
1820,Revenue,CAHD,Bed Purchasing - South,Permanent Residential,Fshc  1St Floor,2751.32, 31-Jul-2018
1821,Revenue,CAHD,Bed Purchasing - North,Permanent Nursing,Fshc  1St Floor,2339.64, 03-Jul-2018
1822,Revenue,CAHD,South Glos Users in South Glos Homes,Permanent Nursing,Fshc  1St Floor,632.64, 03-Jul-2018
1823,Revenue,CAHD,Bed Purchasing - North,Permanent Nursing,Fshc  1St Floor,2339.64, 31-Jul-2018
1824,Revenue,CAHD,South Glos Users in South Glos Homes,Permanent Nursing,Fshc  1St Floor,632.64, 31-Jul-2018
1825,Revenue,CAHD,South Glos Users in South Glos Homes,Permanent Nursing,Fshc  1St Floor,632.64, 03-Jul-2018
1826,Revenue,CAHD,South Glos Users in South Glos Homes,Permanent Nursing,Fshc  1St Floor,632.64, 31-Jul-2018
1827,Revenue,CAHD,Bed Purchasing - Southmead Hospital,Permanent Nursing,Fshc  1St Floor,2311.20, 03-Jul-2018
1828,Revenue,CAHD,South Glos Users in South Glos Homes,Permanent Nursing,Fshc  1St Floor,632.64, 03-Jul-2018
1829,Revenue,CAHD,Bed Purchasing - Southmead Hospital,Permanent Nursing,Fshc  1St Floor,2311.20, 31-Jul-2018
1830,Revenue,CAHD,South Glos Users in South Glos Homes,Permanent Nursing,Fshc  1St Floor,632.64, 31-Jul-2018
1831,Revenue,CAHD,Bed Purchasing - Southmead Hospital,Permanent Nursing,Fshc  1St Floor,2310.44, 03-Jul-2018
1832,Revenue,CAHD,South Glos Users in South Glos Homes,Permanent Nursing,Fshc  1St Floor,632.64, 03-Jul-2018
1833,Revenue,CAHD,Bed Purchasing - Southmead Hospital,Permanent Nursing,Fshc  1St Floor,2310.44, 31-Jul-2018
1834,Revenue,CAHD,South Glos Users in South Glos Homes,Permanent Nursing,Fshc  1St Floor,632.64, 31-Jul-2018
1835,Revenue,CAHD,Bed Purchasing - North,Permanent Nursing,Fshc  1St Floor,2310.44, 03-Jul-2018
1836,Revenue,CAHD,South Glos Users in South Glos Homes,Permanent Nursing,Fshc  1St Floor,632.64, 03-Jul-2018
1837,Revenue,CAHD,Bed Purchasing - North,Permanent Nursing,Fshc  1St Floor,2310.44, 31-Jul-2018
1838,Revenue,CAHD,South Glos Users in South Glos Homes,Permanent Nursing,Fshc  1St Floor,632.64, 31-Jul-2018
1839,Revenue,CAHD,Bed Purchasing - North,Permanent Nursing,Fshc  1St Floor,2310.44, 03-Jul-2018
1840,Revenue,CAHD,Bed Purchasing - North,Permanent Nursing,Fshc  1St Floor,2310.44, 31-Jul-2018
1841,Revenue,CAHD,South Glos Users in South Glos Homes,Permanent Nursing,Fshc  1St Floor,632.64, 03-Jul-2018
1842,Revenue,CAHD,South Glos Users in South Glos Homes,Permanent Nursing,Fshc  1St Floor,632.64, 31-Jul-2018
1843,Revenue,CAHD,Bed Purchasing - Southmead Hospital,Permanent Residential,Fshc  1St Floor,3375.00, 03-Jul-2018
1844,Revenue,CAHD,Bed Purchasing - Southmead Hospital,Permanent Residential,Fshc  1St Floor,2700.00, 03-Jul-2018
1845,Revenue,CAHD,Bed Purchasing - Southmead Hospital,Fees & Charges Income - General,Fshc  1St Floor,670.77, 03-Jul-2018
1846,Revenue,CAHD,Bed Purchasing - Southmead Hospital,Permanent Residential,Fshc  1St Floor,2025.00, 31-Jul-2018
1847,Revenue,CAHD,Bed Purchasing - Southmead Hospital,Permanent Residential,Fshc  1St Floor,675.00, 31-Jul-2018
1848,Revenue,CAHD,Bed Purchasing - North,Permanent Nursing,Fshc  1St Floor,2339.64, 03-Jul-2018
1849,Revenue,CAHD,South Glos Users in South Glos Homes,Permanent Nursing,Fshc  1St Floor,632.64, 03-Jul-2018
1850,Revenue,CAHD,Bed Purchasing - North,Permanent Nursing,Fshc  1St Floor,2339.64, 31-Jul-2018
1851,Revenue,CAHD,South Glos Users in South Glos Homes,Permanent Nursing,Fshc  1St Floor,632.64, 31-Jul-2018
1852,Revenue,CAHD,Bed Purchasing - North,Permanent Nursing,Fshc  1St Floor,2339.64, 03-Jul-2018
1853,Revenue,CAHD,South Glos Users in South Glos Homes,Permanent Nursing,Fshc  1St Floor,632.64, 03-Jul-2018
1854,Revenue,CAHD,Bed Purchasing - North,Permanent Nursing,Fshc  1St Floor,2339.64, 31-Jul-2018
1855,Revenue,CAHD,South Glos Users in South Glos Homes,Permanent Nursing,Fshc  1St Floor,632.64, 31-Jul-2018
1856,Revenue,CAHD,Bed Purchasing - North,Permanent Nursing,Fshc  1St Floor,2310.44, 03-Jul-2018
1857,Revenue,CAHD,South Glos Users in South Glos Homes,Permanent Nursing,Fshc  1St Floor,632.64, 03-Jul-2018
1858,Revenue,CAHD,Bed Purchasing - North,Permanent Nursing,Fshc  1St Floor,2310.44, 31-Jul-2018
1859,Revenue,CAHD,South Glos Users in South Glos Homes,Permanent Nursing,Fshc  1St Floor,632.64, 31-Jul-2018
1860,Revenue,CAHD,South Glos Users in South Glos Homes,Permanent Nursing,Fshc  1St Floor,632.64, 03-Jul-2018
1861,Revenue,CAHD,South Glos Users in South Glos Homes,Permanent Nursing,Fshc  1St Floor,632.64, 31-Jul-2018
1862,Revenue,CAHD,South Glos Users in South Glos Homes,Permanent Nursing,Fshc  1St Floor,2746.60, 31-Jul-2018
1863,Revenue,CAHD,South Glos Users in South Glos Homes,Permanent Nursing,Fshc  1St Floor,2394.99, 31-Jul-2018
1864,Revenue,CAHD,South Glos Users in South Glos Homes,Permanent Nursing,Fshc  1St Floor,632.64, 31-Jul-2018
1865,Revenue,CAHD,Bed Purchasing - North,Permanent Nursing,Fshc  1St Floor,2211.86, 31-Jul-2018
1866,Revenue,CAHD,Bed Purchasing - North,Permanent Nursing,Fshc  1St Floor,2041.71, 31-Jul-2018
1867,Revenue,CAHD,Bed Purchasing - North,Permanent Nursing,Fshc  1St Floor,2211.86, 31-Jul-2018
1868,Revenue,CAHD,Bed Purchasing - North,Permanent Residential,Fshc  1St Floor,2751.32, 03-Jul-2018
1869,Revenue,CAHD,Bed Purchasing - North,Permanent Residential,Fshc  1St Floor,2751.32, 31-Jul-2018
1870,Revenue,CAHD,Bed Purchasing - North,Permanent Nursing,Fshc  1St Floor,2310.44, 03-Jul-2018
1871,Revenue,CAHD,Bed Purchasing - North,Permanent Nursing,Fshc  1St Floor,2310.44, 31-Jul-2018
1872,Revenue,CAHD,South Glos Users in South Glos Homes,Permanent Nursing,Fshc  1St Floor,632.64, 03-Jul-2018
1873,Revenue,CAHD,South Glos Users in South Glos Homes,Permanent Nursing,Fshc  1St Floor,632.64, 31-Jul-2018
1874,Revenue,CAHD,South Glos Users in South Glos Homes,Permanent Nursing,Fshc  1St Floor,632.64, 03-Jul-2018
1875,Revenue,CAHD,South Glos Users in South Glos Homes,Permanent Nursing,Fshc  1St Floor,632.64, 31-Jul-2018
